date,department/service,beneficiary,amount,summary of purpose,category,transaction number,SAP vendor number
01.08.2019,ADULT SOCIAL CARE,AURORA OPTIONS,"3,148.16",LD LTS 18-64,SUPPORTED LIVING,2102977224,1000066695
01.08.2019,ADULT SOCIAL CARE,AURORA OPTIONS,"3,180.00",LD LTS 18-64,SUPPORTED LIVING,2102977629,1000066695
01.08.2019,CENTRAL FUNCTIONS,KENT COUNTY COUNCIL - LASER,"2,541.32",HEATING ACCOUNT,GAS,5902370525,1000012926
01.08.2019,CENTRAL FUNCTIONS,KENT COUNTY COUNCIL - LASER,"11,120.57",HEATING ACCOUNT,GAS,5902370518,1000012926
01.08.2019,CENTRAL FUNCTIONS,KENT COUNTY COUNCIL - LASER,"52,814.57",HEATING ACCOUNT,GAS,5902370525,1000012926
01.08.2019,CENTRAL FUNCTIONS,KENT COUNTY COUNCIL - LASER,"505,712.04",HEATING ACCOUNT,GAS,5902370518,1000012926
01.08.2019,CHILDREN'S SERVICES,PARENTS AND CHILDREN TOGETHER,"4,409.90",ADOPTION REFORM GRANT (PART B),PROFESSIONAL FEES,5902369900,1000068128
01.08.2019,CHILDREN'S SERVICES,LEADERSHIPWISE LTD,"1,000.00",INTERVENTION FUND,MISCELLANEOUS RECHARGES,5902370256,1000081634
01.08.2019,CHILDREN'S SERVICES,CARE O LINE,385,SCH TRANS - CONTRACT COST,AGENCY STAFF,5902370532,11241743
01.08.2019,COMMUNITIES,LETTSOM MOVE FORWARD T&RA,"1,650.00",TRSIG,GRANTS,5902369836,1000055710
01.08.2019,COMMUNITIES,NEWINGTON T&RA,"4,290.00",TRSIG,GRANTS,5902369912,1000015851
01.08.2019,CUSTOMER EXPERIENCE,BMG RESEARCH LTD,"2,050.00",CUSTOMER SUPPORT,PROFESSIONAL FEES,5902370060,1000079652
01.08.2019,ENVIRONMENT AND LEISURE,INTO SERVICES LONDON LTD,280,CAPITAL PS (LEISURE),CONST'N MAIN CONTRACT - NON CERTIFICATED,5902370461,1000059328
01.08.2019,ENVIRONMENT AND LEISURE,INTO SERVICES LONDON LTD,"3,145.00",CAPITAL PS (LEISURE),CONST'N MAIN CONTRACT - NON CERTIFICATED,5902369942,1000059328
01.08.2019,ENVIRONMENT AND LEISURE,INTO SERVICES LONDON LTD,"3,600.00",CAPITAL PS (LEISURE),CONST'N MAIN CONTRACT - NON CERTIFICATED,5902370597,1000059328
01.08.2019,ENVIRONMENT AND LEISURE,ETC SPORTS SURFACES LTD,"4,372.50",CAPITAL PS (LEISURE),CONSTRUCTION FEES  - EXTERNAL,2102983704,3000001845
01.08.2019,ENVIRONMENT DIRECTORATE,ARNOLD CLARK VEHICLE MANAGEMENT,"-11,215.62",CAR LEASING CTRL A/C,VEHICLE LEASING CHARGES,5902371587,1000079116
01.08.2019,ENVIRONMENT DIRECTORATE,ARNOLD CLARK VEHICLE MANAGEMENT,"-11,165.25",CAR LEASING CTRL A/C,VEHICLE LEASING CHARGES,5902371586,1000079116
01.08.2019,ENVIRONMENT DIRECTORATE,ARNOLD CLARK VEHICLE MANAGEMENT,"-10,626.33",CAR LEASING CTRL A/C,VEHICLE LEASING CHARGES,5902371587,1000079116
01.08.2019,ENVIRONMENT DIRECTORATE,ARNOLD CLARK VEHICLE MANAGEMENT,"-10,569.40",CAR LEASING CTRL A/C,VEHICLE LEASING CHARGES,5902371586,1000079116
01.08.2019,ENVIRONMENT DIRECTORATE,ARNOLD CLARK VEHICLE MANAGEMENT,"10,569.40",CAR LEASING CTRL A/C,VEHICLE LEASING CHARGES,5902371581,1000079116
01.08.2019,ENVIRONMENT DIRECTORATE,ARNOLD CLARK VEHICLE MANAGEMENT,"10,626.33",CAR LEASING CTRL A/C,VEHICLE LEASING CHARGES,5902371582,1000079116
01.08.2019,ENVIRONMENT DIRECTORATE,ARNOLD CLARK VEHICLE MANAGEMENT,"11,165.25",CAR LEASING CTRL A/C,VEHICLE LEASING CHARGES,5902371581,1000079116
01.08.2019,ENVIRONMENT DIRECTORATE,ARNOLD CLARK VEHICLE MANAGEMENT,"11,215.62",CAR LEASING CTRL A/C,VEHICLE LEASING CHARGES,5902371582,1000079116
01.08.2019,ENVIRONMENT DIRECTORATE,THE T.P. PARTNERSHIP,400,ESTATE CLEANING-GENERAL,OTHER CONTRACTORS,5902370641,1000045906
01.08.2019,ENVIRONMENT DIRECTORATE,THE T.P. PARTNERSHIP,445,ESTATE CLEANING-GENERAL,OTHER CONTRACTORS,5902370639,1000045906
01.08.2019,EXCHEQUER SERVICES,HBINFO LTD,540,ADMINISTRATIVE SUPPORT,TRAINING,5902370268,1000052365
01.08.2019,LEISURE DIRECTORATE,BANKSIDE OPEN SPACES TRUST,"4,914.25",ENVIRONMENT & LEISURE GRANTS,OTHER CONTRACTORS,5902370513,1000018290
01.08.2019,MODERNISATION HGF,ROYAL MAIL GROUP LTD,"3,785.13",160 TOOLEY ST.,POSTAGES,5902370583,1000008168
01.08.2019,PUBLIC HEALTH,BARTS HEALTH NHS TRUST,"10,515.09",SEXUAL HEALTH - STI,EXTERNAL AGENCIES AND BODIES,5902371086,1000055762
02.08.2019,ADULT SOCIAL CARE,LONDON CARE LTD,"4,355.00",EXTRA CARE CONTRACT,HOMECARE - C&V,5902371199,1000003398
02.08.2019,ADULT SOCIAL CARE,OUT AND ABOUT COMMUNITY SERVICES,255,LD LTS 18-64,DAYCARE,2102986080,1000078603
02.08.2019,ADULT SOCIAL CARE,BEDE CAFE PROJECT,260,LD LTS 18-64,DAYCARE,2102986095,1553877
02.08.2019,ADULT SOCIAL CARE,BEDE CAFE PROJECT,260,LD LTS 18-64,DAYCARE,2102986110,1553877
02.08.2019,ADULT SOCIAL CARE,BEDE CAFE PROJECT,260,LD LTS 18-64,DAYCARE,2102986119,1553877
02.08.2019,ADULT SOCIAL CARE,BEDE CAFE PROJECT,332,LD LTS 18-64,DAYCARE,2102986093,1553877
02.08.2019,ADULT SOCIAL CARE,OUT AND ABOUT COMMUNITY SERVICES,340,LD LTS 18-64,DAYCARE,2102986084,1000078603
02.08.2019,ADULT SOCIAL CARE,ACT TOO LTD,400,LD LTS 18-64,DAYCARE,2102986082,1000053657
02.08.2019,ADULT SOCIAL CARE,AURORA OPTIONS,408,LD LTS 18-64,DAYCARE,2102986848,1000066695
02.08.2019,ADULT SOCIAL CARE,BEDE CAFE PROJECT,460,LD LTS 18-64,DAYCARE,2102986123,1553877
02.08.2019,ADULT SOCIAL CARE,BEDE CAFE PROJECT,520,LD LTS 18-64,DAYCARE,2102986098,1553877
02.08.2019,ADULT SOCIAL CARE,BEDE CAFE PROJECT,520,LD LTS 18-64,DAYCARE,2102986107,1553877
02.08.2019,ADULT SOCIAL CARE,BEDE CAFE PROJECT,520,LD LTS 18-64,DAYCARE,2102986117,1553877
02.08.2019,ADULT SOCIAL CARE,BEDE CAFE PROJECT,520,LD LTS 18-64,DAYCARE,2102986130,1553877
02.08.2019,ADULT SOCIAL CARE,BEDE CAFE PROJECT,590,LD LTS 18-64,DAYCARE,2102986129,1553877
02.08.2019,ADULT SOCIAL CARE,BEDE CAFE PROJECT,632,LD LTS 18-64,DAYCARE,2102986094,1553877
02.08.2019,ADULT SOCIAL CARE,BEDE CAFE PROJECT,670,LD LTS 18-64,DAYCARE,2102986105,1553877
02.08.2019,ADULT SOCIAL CARE,BEDE CAFE PROJECT,712,LD LTS 18-64,DAYCARE,2102986096,1553877
02.08.2019,ADULT SOCIAL CARE,BEDE CAFE PROJECT,780,LD LTS 18-64,DAYCARE,2102986111,1553877
02.08.2019,ADULT SOCIAL CARE,BEDE CAFE PROJECT,780,LD LTS 18-64,DAYCARE,2102986114,1553877
02.08.2019,ADULT SOCIAL CARE,BEDE CAFE PROJECT,876,LD LTS 18-64,DAYCARE,2102986121,1553877
02.08.2019,ADULT SOCIAL CARE,BEDE CAFE PROJECT,920.4,LD LTS 18-64,DAYCARE,2102986115,1553877
02.08.2019,ADULT SOCIAL CARE,BEDE CAFE PROJECT,"1,020.00",LD LTS 18-64,DAYCARE,2102986097,1553877
02.08.2019,ADULT SOCIAL CARE,BEDE CAFE PROJECT,"1,020.00",LD LTS 18-64,DAYCARE,2102986108,1553877
02.08.2019,ADULT SOCIAL CARE,BEDE CAFE PROJECT,"1,040.00",LD LTS 18-64,DAYCARE,2102986101,1553877
02.08.2019,ADULT SOCIAL CARE,BEDE CAFE PROJECT,"1,040.00",LD LTS 18-64,DAYCARE,2102986106,1553877
02.08.2019,ADULT SOCIAL CARE,BEDE CAFE PROJECT,"1,040.00",LD LTS 18-64,DAYCARE,2102986113,1553877
02.08.2019,ADULT SOCIAL CARE,BEDE CAFE PROJECT,"1,040.00",LD LTS 18-64,DAYCARE,2102986124,1553877
02.08.2019,ADULT SOCIAL CARE,BEDE CAFE PROJECT,"1,040.00",LD LTS 18-64,DAYCARE,2102986127,1553877
02.08.2019,ADULT SOCIAL CARE,BEDE CAFE PROJECT,"1,180.00",LD LTS 18-64,DAYCARE,2102986120,1553877
02.08.2019,ADULT SOCIAL CARE,BEDE CAFE PROJECT,"1,264.00",LD LTS 18-64,DAYCARE,2102986102,1553877
02.08.2019,ADULT SOCIAL CARE,BEDE CAFE PROJECT,"1,300.00",LD LTS 18-64,DAYCARE,2102986128,1553877
02.08.2019,ADULT SOCIAL CARE,BEDE CAFE PROJECT,"1,580.00",LD LTS 18-64,DAYCARE,2102986100,1553877
02.08.2019,ADULT SOCIAL CARE,BEDE CAFE PROJECT,"1,752.00",LD LTS 18-64,DAYCARE,2102986109,1553877
02.08.2019,ADULT SOCIAL CARE,BEDE CAFE PROJECT,"1,752.00",LD LTS 18-64,DAYCARE,2102986122,1553877
02.08.2019,ADULT SOCIAL CARE,BEDE CAFE PROJECT,"2,920.00",LD LTS 18-64,DAYCARE,2102986112,1553877
02.08.2019,ADULT SOCIAL CARE,BEDE CAFE PROJECT,"2,920.00",LD LTS 18-64,DAYCARE,2102986118,1553877
02.08.2019,ADULT SOCIAL CARE,REDACTED PERSONAL INFORMATION,-304.5,LD LTS 18-64,DISCRETIONARY FLEXIBLE FEES & INCOME,REDACTED,REDACTED
02.08.2019,ADULT SOCIAL CARE,PEOPLEPLUS ILS,-327,LD LTS 18-64,DISCRETIONARY FLEXIBLE FEES & INCOME,2102986651,1000061886
02.08.2019,ADULT SOCIAL CARE,REDACTED PERSONAL INFORMATION,"-4,578.00",LD LTS 18-64,PAYMENTS TO CLIENTS (DIRECT PAYMENTS),REDACTED,REDACTED
02.08.2019,ADULT SOCIAL CARE,REDACTED PERSONAL INFORMATION,"-2,330.43",LD LTS 18-64,PAYMENTS TO CLIENTS (DIRECT PAYMENTS),REDACTED,REDACTED
02.08.2019,ADULT SOCIAL CARE,REDACTED PERSONAL INFORMATION,269.6,LD LTS 18-64,PAYMENTS TO CLIENTS (DIRECT PAYMENTS),REDACTED,REDACTED
02.08.2019,ADULT SOCIAL CARE,REDACTED PERSONAL INFORMATION,288.8,LD LTS 18-64,PAYMENTS TO CLIENTS (DIRECT PAYMENTS),REDACTED,REDACTED
02.08.2019,ADULT SOCIAL CARE,REDACTED PERSONAL INFORMATION,300,LD LTS 18-64,PAYMENTS TO CLIENTS (DIRECT PAYMENTS),REDACTED,REDACTED
02.08.2019,ADULT SOCIAL CARE,REDACTED PERSONAL INFORMATION,300,LD LTS 18-64,PAYMENTS TO CLIENTS (DIRECT PAYMENTS),REDACTED,REDACTED
02.08.2019,ADULT SOCIAL CARE,REDACTED PERSONAL INFORMATION,319.52,LD LTS 18-64,PAYMENTS TO CLIENTS (DIRECT PAYMENTS),REDACTED,REDACTED
02.08.2019,ADULT SOCIAL CARE,REDACTED PERSONAL INFORMATION,320,LD LTS 18-64,PAYMENTS TO CLIENTS (DIRECT PAYMENTS),REDACTED,REDACTED
02.08.2019,ADULT SOCIAL CARE,REDACTED PERSONAL INFORMATION,327.2,LD LTS 18-64,PAYMENTS TO CLIENTS (DIRECT PAYMENTS),REDACTED,REDACTED
02.08.2019,ADULT SOCIAL CARE,REDACTED PERSONAL INFORMATION,430.8,LD LTS 18-64,PAYMENTS TO CLIENTS (DIRECT PAYMENTS),REDACTED,REDACTED
02.08.2019,ADULT SOCIAL CARE,REDACTED PERSONAL INFORMATION,460.04,LD LTS 18-64,PAYMENTS TO CLIENTS (DIRECT PAYMENTS),REDACTED,REDACTED
02.08.2019,ADULT SOCIAL CARE,REDACTED PERSONAL INFORMATION,484.32,LD LTS 18-64,PAYMENTS TO CLIENTS (DIRECT PAYMENTS),REDACTED,REDACTED
02.08.2019,ADULT SOCIAL CARE,REDACTED PERSONAL INFORMATION,522.6,LD LTS 18-64,PAYMENTS TO CLIENTS (DIRECT PAYMENTS),REDACTED,REDACTED
02.08.2019,ADULT SOCIAL CARE,REDACTED PERSONAL INFORMATION,569.12,LD LTS 18-64,PAYMENTS TO CLIENTS (DIRECT PAYMENTS),REDACTED,REDACTED
02.08.2019,ADULT SOCIAL CARE,REDACTED PERSONAL INFORMATION,594.4,LD LTS 18-64,PAYMENTS TO CLIENTS (DIRECT PAYMENTS),REDACTED,REDACTED
02.08.2019,ADULT SOCIAL CARE,REDACTED PERSONAL INFORMATION,639.2,LD LTS 18-64,PAYMENTS TO CLIENTS (DIRECT PAYMENTS),REDACTED,REDACTED
02.08.2019,ADULT SOCIAL CARE,REDACTED PERSONAL INFORMATION,676,LD LTS 18-64,PAYMENTS TO CLIENTS (DIRECT PAYMENTS),REDACTED,REDACTED
02.08.2019,ADULT SOCIAL CARE,REDACTED PERSONAL INFORMATION,718,LD LTS 18-64,PAYMENTS TO CLIENTS (DIRECT PAYMENTS),REDACTED,REDACTED
02.08.2019,ADULT SOCIAL CARE,REDACTED PERSONAL INFORMATION,730.6,LD LTS 18-64,PAYMENTS TO CLIENTS (DIRECT PAYMENTS),REDACTED,REDACTED
02.08.2019,ADULT SOCIAL CARE,REDACTED PERSONAL INFORMATION,738,LD LTS 18-64,PAYMENTS TO CLIENTS (DIRECT PAYMENTS),REDACTED,REDACTED
02.08.2019,ADULT SOCIAL CARE,REDACTED PERSONAL INFORMATION,809.8,LD LTS 18-64,PAYMENTS TO CLIENTS (DIRECT PAYMENTS),REDACTED,REDACTED
02.08.2019,ADULT SOCIAL CARE,REDACTED PERSONAL INFORMATION,956.16,LD LTS 18-64,PAYMENTS TO CLIENTS (DIRECT PAYMENTS),REDACTED,REDACTED
02.08.2019,ADULT SOCIAL CARE,REDACTED PERSONAL INFORMATION,"1,019.44",LD LTS 18-64,PAYMENTS TO CLIENTS (DIRECT PAYMENTS),REDACTED,REDACTED
02.08.2019,ADULT SOCIAL CARE,REDACTED PERSONAL INFORMATION,"1,025.20",LD LTS 18-64,PAYMENTS TO CLIENTS (DIRECT PAYMENTS),REDACTED,REDACTED
02.08.2019,ADULT SOCIAL CARE,REDACTED PERSONAL INFORMATION,"1,036.24",LD LTS 18-64,PAYMENTS TO CLIENTS (DIRECT PAYMENTS),REDACTED,REDACTED
02.08.2019,ADULT SOCIAL CARE,REDACTED PERSONAL INFORMATION,"1,197.96",LD LTS 18-64,PAYMENTS TO CLIENTS (DIRECT PAYMENTS),REDACTED,REDACTED
02.08.2019,ADULT SOCIAL CARE,REDACTED PERSONAL INFORMATION,"1,200.00",LD LTS 18-64,PAYMENTS TO CLIENTS (DIRECT PAYMENTS),REDACTED,REDACTED
02.08.2019,ADULT SOCIAL CARE,REDACTED PERSONAL INFORMATION,"1,290.16",LD LTS 18-64,PAYMENTS TO CLIENTS (DIRECT PAYMENTS),REDACTED,REDACTED
02.08.2019,ADULT SOCIAL CARE,REDACTED PERSONAL INFORMATION,"1,293.44",LD LTS 18-64,PAYMENTS TO CLIENTS (DIRECT PAYMENTS),REDACTED,REDACTED
02.08.2019,ADULT SOCIAL CARE,REDACTED PERSONAL INFORMATION,"1,328.00",LD LTS 18-64,PAYMENTS TO CLIENTS (DIRECT PAYMENTS),REDACTED,REDACTED
02.08.2019,ADULT SOCIAL CARE,REDACTED PERSONAL INFORMATION,"1,400.00",LD LTS 18-64,PAYMENTS TO CLIENTS (DIRECT PAYMENTS),REDACTED,REDACTED
02.08.2019,ADULT SOCIAL CARE,REDACTED PERSONAL INFORMATION,"1,420.12",LD LTS 18-64,PAYMENTS TO CLIENTS (DIRECT PAYMENTS),REDACTED,REDACTED
02.08.2019,ADULT SOCIAL CARE,REDACTED PERSONAL INFORMATION,"1,443.00",LD LTS 18-64,PAYMENTS TO CLIENTS (DIRECT PAYMENTS),REDACTED,REDACTED
02.08.2019,ADULT SOCIAL CARE,REDACTED PERSONAL INFORMATION,"1,467.32",LD LTS 18-64,PAYMENTS TO CLIENTS (DIRECT PAYMENTS),REDACTED,REDACTED
02.08.2019,ADULT SOCIAL CARE,REDACTED PERSONAL INFORMATION,"1,532.68",LD LTS 18-64,PAYMENTS TO CLIENTS (DIRECT PAYMENTS),REDACTED,REDACTED
02.08.2019,ADULT SOCIAL CARE,REDACTED PERSONAL INFORMATION,"1,532.92",LD LTS 18-64,PAYMENTS TO CLIENTS (DIRECT PAYMENTS),REDACTED,REDACTED
02.08.2019,ADULT SOCIAL CARE,REDACTED PERSONAL INFORMATION,"1,534.00",LD LTS 18-64,PAYMENTS TO CLIENTS (DIRECT PAYMENTS),REDACTED,REDACTED
02.08.2019,ADULT SOCIAL CARE,REDACTED PERSONAL INFORMATION,"1,545.48",LD LTS 18-64,PAYMENTS TO CLIENTS (DIRECT PAYMENTS),REDACTED,REDACTED
02.08.2019,ADULT SOCIAL CARE,REDACTED PERSONAL INFORMATION,"1,672.00",LD LTS 18-64,PAYMENTS TO CLIENTS (DIRECT PAYMENTS),REDACTED,REDACTED
02.08.2019,ADULT SOCIAL CARE,REDACTED PERSONAL INFORMATION,"1,746.16",LD LTS 18-64,PAYMENTS TO CLIENTS (DIRECT PAYMENTS),REDACTED,REDACTED
02.08.2019,ADULT SOCIAL CARE,REDACTED PERSONAL INFORMATION,"1,790.40",LD LTS 18-64,PAYMENTS TO CLIENTS (DIRECT PAYMENTS),REDACTED,REDACTED
02.08.2019,ADULT SOCIAL CARE,REDACTED PERSONAL INFORMATION,"1,811.76",LD LTS 18-64,PAYMENTS TO CLIENTS (DIRECT PAYMENTS),REDACTED,REDACTED
02.08.2019,ADULT SOCIAL CARE,REDACTED PERSONAL INFORMATION,"1,878.69",LD LTS 18-64,PAYMENTS TO CLIENTS (DIRECT PAYMENTS),REDACTED,REDACTED
02.08.2019,ADULT SOCIAL CARE,REDACTED PERSONAL INFORMATION,"2,000.00",LD LTS 18-64,PAYMENTS TO CLIENTS (DIRECT PAYMENTS),REDACTED,REDACTED
02.08.2019,ADULT SOCIAL CARE,REDACTED PERSONAL INFORMATION,"2,116.00",LD LTS 18-64,PAYMENTS TO CLIENTS (DIRECT PAYMENTS),REDACTED,REDACTED
02.08.2019,ADULT SOCIAL CARE,REDACTED PERSONAL INFORMATION,"2,118.00",LD LTS 18-64,PAYMENTS TO CLIENTS (DIRECT PAYMENTS),REDACTED,REDACTED
02.08.2019,ADULT SOCIAL CARE,REDACTED PERSONAL INFORMATION,"2,158.60",LD LTS 18-64,PAYMENTS TO CLIENTS (DIRECT PAYMENTS),REDACTED,REDACTED
02.08.2019,ADULT SOCIAL CARE,REDACTED PERSONAL INFORMATION,"2,317.60",LD LTS 18-64,PAYMENTS TO CLIENTS (DIRECT PAYMENTS),REDACTED,REDACTED
02.08.2019,ADULT SOCIAL CARE,REDACTED PERSONAL INFORMATION,"2,660.20",LD LTS 18-64,PAYMENTS TO CLIENTS (DIRECT PAYMENTS),REDACTED,REDACTED
02.08.2019,ADULT SOCIAL CARE,REDACTED PERSONAL INFORMATION,"2,736.00",LD LTS 18-64,PAYMENTS TO CLIENTS (DIRECT PAYMENTS),REDACTED,REDACTED
02.08.2019,ADULT SOCIAL CARE,REDACTED PERSONAL INFORMATION,"3,864.64",LD LTS 18-64,PAYMENTS TO CLIENTS (DIRECT PAYMENTS),REDACTED,REDACTED
02.08.2019,ADULT SOCIAL CARE,REDACTED PERSONAL INFORMATION,"3,923.12",LD LTS 18-64,PAYMENTS TO CLIENTS (DIRECT PAYMENTS),REDACTED,REDACTED
02.08.2019,ADULT SOCIAL CARE,REDACTED PERSONAL INFORMATION,"4,020.80",LD LTS 18-64,PAYMENTS TO CLIENTS (DIRECT PAYMENTS),REDACTED,REDACTED
02.08.2019,ADULT SOCIAL CARE,REDACTED PERSONAL INFORMATION,"5,280.88",LD LTS 18-64,PAYMENTS TO CLIENTS (DIRECT PAYMENTS),REDACTED,REDACTED
02.08.2019,ADULT SOCIAL CARE,REDACTED PERSONAL INFORMATION,"5,362.72",LD LTS 18-64,PAYMENTS TO CLIENTS (DIRECT PAYMENTS),REDACTED,REDACTED
02.08.2019,ADULT SOCIAL CARE,REDACTED PERSONAL INFORMATION,"6,644.40",LD LTS 18-64,PAYMENTS TO CLIENTS (DIRECT PAYMENTS),REDACTED,REDACTED
02.08.2019,ADULT SOCIAL CARE,REDACTED PERSONAL INFORMATION,"7,210.50",LD LTS 18-64,PAYMENTS TO CLIENTS (DIRECT PAYMENTS),REDACTED,REDACTED
02.08.2019,ADULT SOCIAL CARE,REDACTED PERSONAL INFORMATION,"8,484.60",LD LTS 18-64,PAYMENTS TO CLIENTS (DIRECT PAYMENTS),REDACTED,REDACTED
02.08.2019,ADULT SOCIAL CARE,REDACTED PERSONAL INFORMATION,"12,580.00",LD LTS 18-64,PAYMENTS TO CLIENTS (DIRECT PAYMENTS),REDACTED,REDACTED
02.08.2019,ADULT SOCIAL CARE,PEOPLEPLUS ILS,"-21,143.86",LD LTS 18-64,PAYMENTS TO CLIENTS (DIRECT PAYMENTS),2102986982,1000061886
02.08.2019,ADULT SOCIAL CARE,PEOPLEPLUS ILS,254.68,LD LTS 18-64,PAYMENTS TO CLIENTS (DIRECT PAYMENTS),2102986992,1000061886
02.08.2019,ADULT SOCIAL CARE,PEOPLEPLUS ILS,260,LD LTS 18-64,PAYMENTS TO CLIENTS (DIRECT PAYMENTS),2102986656,1000061886
02.08.2019,ADULT SOCIAL CARE,PEOPLEPLUS ILS,266,LD LTS 18-64,PAYMENTS TO CLIENTS (DIRECT PAYMENTS),2102986899,1000061886
02.08.2019,ADULT SOCIAL CARE,PEOPLEPLUS ILS,273.68,LD LTS 18-64,PAYMENTS TO CLIENTS (DIRECT PAYMENTS),2102986507,1000061886
02.08.2019,ADULT SOCIAL CARE,PEOPLEPLUS ILS,288.4,LD LTS 18-64,PAYMENTS TO CLIENTS (DIRECT PAYMENTS),2102986576,1000061886
02.08.2019,ADULT SOCIAL CARE,PEOPLEPLUS ILS,299.6,LD LTS 18-64,PAYMENTS TO CLIENTS (DIRECT PAYMENTS),2102986976,1000061886
02.08.2019,ADULT SOCIAL CARE,PEOPLEPLUS ILS,300,LD LTS 18-64,PAYMENTS TO CLIENTS (DIRECT PAYMENTS),2102986371,1000061886
02.08.2019,ADULT SOCIAL CARE,PEOPLEPLUS ILS,307.84,LD LTS 18-64,PAYMENTS TO CLIENTS (DIRECT PAYMENTS),2102987102,1000061886
02.08.2019,ADULT SOCIAL CARE,PEOPLEPLUS ILS,318,LD LTS 18-64,PAYMENTS TO CLIENTS (DIRECT PAYMENTS),2102986684,1000061886
02.08.2019,ADULT SOCIAL CARE,PEOPLEPLUS ILS,329.8,LD LTS 18-64,PAYMENTS TO CLIENTS (DIRECT PAYMENTS),2102986730,1000061886
02.08.2019,ADULT SOCIAL CARE,PEOPLEPLUS ILS,334,LD LTS 18-64,PAYMENTS TO CLIENTS (DIRECT PAYMENTS),2102987043,1000061886
02.08.2019,ADULT SOCIAL CARE,PEOPLEPLUS ILS,342,LD LTS 18-64,PAYMENTS TO CLIENTS (DIRECT PAYMENTS),2102986632,1000061886
02.08.2019,ADULT SOCIAL CARE,PEOPLEPLUS ILS,347.44,LD LTS 18-64,PAYMENTS TO CLIENTS (DIRECT PAYMENTS),2102986404,1000061886
02.08.2019,ADULT SOCIAL CARE,PEOPLEPLUS ILS,352,LD LTS 18-64,PAYMENTS TO CLIENTS (DIRECT PAYMENTS),2102987018,1000061886
02.08.2019,ADULT SOCIAL CARE,PEOPLEPLUS ILS,356.92,LD LTS 18-64,PAYMENTS TO CLIENTS (DIRECT PAYMENTS),2102986747,1000061886
02.08.2019,ADULT SOCIAL CARE,PEOPLEPLUS ILS,385.6,LD LTS 18-64,PAYMENTS TO CLIENTS (DIRECT PAYMENTS),2102986354,1000061886
02.08.2019,ADULT SOCIAL CARE,PEOPLEPLUS ILS,408.4,LD LTS 18-64,PAYMENTS TO CLIENTS (DIRECT PAYMENTS),2102987004,1000061886
02.08.2019,ADULT SOCIAL CARE,PEOPLEPLUS ILS,419.44,LD LTS 18-64,PAYMENTS TO CLIENTS (DIRECT PAYMENTS),2102987022,1000061886
02.08.2019,ADULT SOCIAL CARE,PEOPLEPLUS ILS,424,LD LTS 18-64,PAYMENTS TO CLIENTS (DIRECT PAYMENTS),2102986478,1000061886
02.08.2019,ADULT SOCIAL CARE,PEOPLEPLUS ILS,440,LD LTS 18-64,PAYMENTS TO CLIENTS (DIRECT PAYMENTS),2102986592,1000061886
02.08.2019,ADULT SOCIAL CARE,PEOPLEPLUS ILS,450,LD LTS 18-64,PAYMENTS TO CLIENTS (DIRECT PAYMENTS),2102987118,1000061886
02.08.2019,ADULT SOCIAL CARE,PEOPLEPLUS ILS,464.8,LD LTS 18-64,PAYMENTS TO CLIENTS (DIRECT PAYMENTS),2102986671,1000061886
02.08.2019,ADULT SOCIAL CARE,PEOPLEPLUS ILS,493.36,LD LTS 18-64,PAYMENTS TO CLIENTS (DIRECT PAYMENTS),2102986811,1000061886
02.08.2019,ADULT SOCIAL CARE,PEOPLEPLUS ILS,502.12,LD LTS 18-64,PAYMENTS TO CLIENTS (DIRECT PAYMENTS),2102986450,1000061886
02.08.2019,ADULT SOCIAL CARE,PEOPLEPLUS ILS,513.36,LD LTS 18-64,PAYMENTS TO CLIENTS (DIRECT PAYMENTS),2102987045,1000061886
02.08.2019,ADULT SOCIAL CARE,PEOPLEPLUS ILS,520.88,LD LTS 18-64,PAYMENTS TO CLIENTS (DIRECT PAYMENTS),2102986413,1000061886
02.08.2019,ADULT SOCIAL CARE,PEOPLEPLUS ILS,554.8,LD LTS 18-64,PAYMENTS TO CLIENTS (DIRECT PAYMENTS),2102987101,1000061886
02.08.2019,ADULT SOCIAL CARE,PEOPLEPLUS ILS,555.2,LD LTS 18-64,PAYMENTS TO CLIENTS (DIRECT PAYMENTS),2102986852,1000061886
02.08.2019,ADULT SOCIAL CARE,PEOPLEPLUS ILS,578,LD LTS 18-64,PAYMENTS TO CLIENTS (DIRECT PAYMENTS),2102986759,1000061886
02.08.2019,ADULT SOCIAL CARE,PEOPLEPLUS ILS,579.12,LD LTS 18-64,PAYMENTS TO CLIENTS (DIRECT PAYMENTS),2102986384,1000061886
02.08.2019,ADULT SOCIAL CARE,PEOPLEPLUS ILS,633.2,LD LTS 18-64,PAYMENTS TO CLIENTS (DIRECT PAYMENTS),2102986488,1000061886
02.08.2019,ADULT SOCIAL CARE,PEOPLEPLUS ILS,670,LD LTS 18-64,PAYMENTS TO CLIENTS (DIRECT PAYMENTS),2102986702,1000061886
02.08.2019,ADULT SOCIAL CARE,PEOPLEPLUS ILS,670,LD LTS 18-64,PAYMENTS TO CLIENTS (DIRECT PAYMENTS),2102987080,1000061886
02.08.2019,ADULT SOCIAL CARE,PEOPLEPLUS ILS,679.2,LD LTS 18-64,PAYMENTS TO CLIENTS (DIRECT PAYMENTS),2102986979,1000061886
02.08.2019,ADULT SOCIAL CARE,PEOPLEPLUS ILS,680,LD LTS 18-64,PAYMENTS TO CLIENTS (DIRECT PAYMENTS),2102986552,1000061886
02.08.2019,ADULT SOCIAL CARE,PEOPLEPLUS ILS,712.4,LD LTS 18-64,PAYMENTS TO CLIENTS (DIRECT PAYMENTS),2102986737,1000061886
02.08.2019,ADULT SOCIAL CARE,PEOPLEPLUS ILS,718,LD LTS 18-64,PAYMENTS TO CLIENTS (DIRECT PAYMENTS),2102986871,1000061886
02.08.2019,ADULT SOCIAL CARE,PEOPLEPLUS ILS,722.4,LD LTS 18-64,PAYMENTS TO CLIENTS (DIRECT PAYMENTS),2102986417,1000061886
02.08.2019,ADULT SOCIAL CARE,PEOPLEPLUS ILS,724.24,LD LTS 18-64,PAYMENTS TO CLIENTS (DIRECT PAYMENTS),2102986735,1000061886
02.08.2019,ADULT SOCIAL CARE,PEOPLEPLUS ILS,743.04,LD LTS 18-64,PAYMENTS TO CLIENTS (DIRECT PAYMENTS),2102986697,1000061886
02.08.2019,ADULT SOCIAL CARE,PEOPLEPLUS ILS,753.04,LD LTS 18-64,PAYMENTS TO CLIENTS (DIRECT PAYMENTS),2102986726,1000061886
02.08.2019,ADULT SOCIAL CARE,PEOPLEPLUS ILS,753.04,LD LTS 18-64,PAYMENTS TO CLIENTS (DIRECT PAYMENTS),2102986866,1000061886
02.08.2019,ADULT SOCIAL CARE,PEOPLEPLUS ILS,753.04,LD LTS 18-64,PAYMENTS TO CLIENTS (DIRECT PAYMENTS),2102986887,1000061886
02.08.2019,ADULT SOCIAL CARE,PEOPLEPLUS ILS,754,LD LTS 18-64,PAYMENTS TO CLIENTS (DIRECT PAYMENTS),2102986527,1000061886
02.08.2019,ADULT SOCIAL CARE,PEOPLEPLUS ILS,758.72,LD LTS 18-64,PAYMENTS TO CLIENTS (DIRECT PAYMENTS),2102986343,1000061886
02.08.2019,ADULT SOCIAL CARE,PEOPLEPLUS ILS,780,LD LTS 18-64,PAYMENTS TO CLIENTS (DIRECT PAYMENTS),2102986883,1000061886
02.08.2019,ADULT SOCIAL CARE,PEOPLEPLUS ILS,784.08,LD LTS 18-64,PAYMENTS TO CLIENTS (DIRECT PAYMENTS),2102986548,1000061886
02.08.2019,ADULT SOCIAL CARE,PEOPLEPLUS ILS,789.6,LD LTS 18-64,PAYMENTS TO CLIENTS (DIRECT PAYMENTS),2102986845,1000061886
02.08.2019,ADULT SOCIAL CARE,PEOPLEPLUS ILS,794,LD LTS 18-64,PAYMENTS TO CLIENTS (DIRECT PAYMENTS),2102986757,1000061886
02.08.2019,ADULT SOCIAL CARE,PEOPLEPLUS ILS,813.36,LD LTS 18-64,PAYMENTS TO CLIENTS (DIRECT PAYMENTS),2102986566,1000061886
02.08.2019,ADULT SOCIAL CARE,PEOPLEPLUS ILS,819.84,LD LTS 18-64,PAYMENTS TO CLIENTS (DIRECT PAYMENTS),2102986425,1000061886
02.08.2019,ADULT SOCIAL CARE,PEOPLEPLUS ILS,860,LD LTS 18-64,PAYMENTS TO CLIENTS (DIRECT PAYMENTS),2102987059,1000061886
02.08.2019,ADULT SOCIAL CARE,PEOPLEPLUS ILS,862.64,LD LTS 18-64,PAYMENTS TO CLIENTS (DIRECT PAYMENTS),2102986894,1000061886
02.08.2019,ADULT SOCIAL CARE,PEOPLEPLUS ILS,875.6,LD LTS 18-64,PAYMENTS TO CLIENTS (DIRECT PAYMENTS),2102986740,1000061886
02.08.2019,ADULT SOCIAL CARE,FRESH IDEAS & SOLUTIONS SERVICES CIC,875.6,LD LTS 18-64,PAYMENTS TO CLIENTS (DIRECT PAYMENTS),2102987065,1000070832
02.08.2019,ADULT SOCIAL CARE,FRESH IDEAS & SOLUTIONS SERVICES CIC,895.6,LD LTS 18-64,PAYMENTS TO CLIENTS (DIRECT PAYMENTS),2102986481,1000070832
02.08.2019,ADULT SOCIAL CARE,PEOPLEPLUS ILS,896.8,LD LTS 18-64,PAYMENTS TO CLIENTS (DIRECT PAYMENTS),2102986681,1000061886
02.08.2019,ADULT SOCIAL CARE,PEOPLEPLUS ILS,918,LD LTS 18-64,PAYMENTS TO CLIENTS (DIRECT PAYMENTS),2102986575,1000061886
02.08.2019,ADULT SOCIAL CARE,PEOPLEPLUS ILS,934,LD LTS 18-64,PAYMENTS TO CLIENTS (DIRECT PAYMENTS),2102986627,1000061886
02.08.2019,ADULT SOCIAL CARE,PEOPLEPLUS ILS,957.2,LD LTS 18-64,PAYMENTS TO CLIENTS (DIRECT PAYMENTS),2102986415,1000061886
02.08.2019,ADULT SOCIAL CARE,PEOPLEPLUS ILS,968,LD LTS 18-64,PAYMENTS TO CLIENTS (DIRECT PAYMENTS),2102986820,1000061886
02.08.2019,ADULT SOCIAL CARE,PEOPLEPLUS ILS,970.2,LD LTS 18-64,PAYMENTS TO CLIENTS (DIRECT PAYMENTS),2102986398,1000061886
02.08.2019,ADULT SOCIAL CARE,PEOPLEPLUS ILS,"1,013.48",LD LTS 18-64,PAYMENTS TO CLIENTS (DIRECT PAYMENTS),2102986856,1000061886
02.08.2019,ADULT SOCIAL CARE,FRESH IDEAS & SOLUTIONS SERVICES CIC,"1,047.52",LD LTS 18-64,PAYMENTS TO CLIENTS (DIRECT PAYMENTS),2102986827,1000070832
02.08.2019,ADULT SOCIAL CARE,PEOPLEPLUS ILS,"1,052.00",LD LTS 18-64,PAYMENTS TO CLIENTS (DIRECT PAYMENTS),2102986547,1000061886
02.08.2019,ADULT SOCIAL CARE,PEOPLEPLUS ILS,"1,054.00",LD LTS 18-64,PAYMENTS TO CLIENTS (DIRECT PAYMENTS),2102986638,1000061886
02.08.2019,ADULT SOCIAL CARE,PEOPLEPLUS ILS,"1,056.00",LD LTS 18-64,PAYMENTS TO CLIENTS (DIRECT PAYMENTS),2102986879,1000061886
02.08.2019,ADULT SOCIAL CARE,FRESH IDEAS & SOLUTIONS SERVICES CIC,"1,067.12",LD LTS 18-64,PAYMENTS TO CLIENTS (DIRECT PAYMENTS),2102986806,1000070832
02.08.2019,ADULT SOCIAL CARE,PEOPLEPLUS ILS,"1,072.72",LD LTS 18-64,PAYMENTS TO CLIENTS (DIRECT PAYMENTS),2102986631,1000061886
02.08.2019,ADULT SOCIAL CARE,PEOPLEPLUS ILS,"1,171.28",LD LTS 18-64,PAYMENTS TO CLIENTS (DIRECT PAYMENTS),2102986386,1000061886
02.08.2019,ADULT SOCIAL CARE,PEOPLEPLUS ILS,"1,172.48",LD LTS 18-64,PAYMENTS TO CLIENTS (DIRECT PAYMENTS),2102986431,1000061886
02.08.2019,ADULT SOCIAL CARE,PEOPLEPLUS ILS,"1,192.64",LD LTS 18-64,PAYMENTS TO CLIENTS (DIRECT PAYMENTS),2102986593,1000061886
02.08.2019,ADULT SOCIAL CARE,PEOPLEPLUS ILS,"1,208.00",LD LTS 18-64,PAYMENTS TO CLIENTS (DIRECT PAYMENTS),2102987153,1000061886
02.08.2019,ADULT SOCIAL CARE,PEOPLEPLUS ILS,"1,234.00",LD LTS 18-64,PAYMENTS TO CLIENTS (DIRECT PAYMENTS),2102986803,1000061886
02.08.2019,ADULT SOCIAL CARE,PEOPLEPLUS ILS,"1,239.04",LD LTS 18-64,PAYMENTS TO CLIENTS (DIRECT PAYMENTS),2102986399,1000061886
02.08.2019,ADULT SOCIAL CARE,PEOPLEPLUS ILS,"1,242.40",LD LTS 18-64,PAYMENTS TO CLIENTS (DIRECT PAYMENTS),2102987090,1000061886
02.08.2019,ADULT SOCIAL CARE,PEOPLEPLUS ILS,"1,319.24",LD LTS 18-64,PAYMENTS TO CLIENTS (DIRECT PAYMENTS),2102987146,1000061886
02.08.2019,ADULT SOCIAL CARE,PEOPLEPLUS ILS,"1,324.40",LD LTS 18-64,PAYMENTS TO CLIENTS (DIRECT PAYMENTS),2102987160,1000061886
02.08.2019,ADULT SOCIAL CARE,PEOPLEPLUS ILS,"1,358.00",LD LTS 18-64,PAYMENTS TO CLIENTS (DIRECT PAYMENTS),2102986508,1000061886
02.08.2019,ADULT SOCIAL CARE,PEOPLEPLUS ILS,"1,375.56",LD LTS 18-64,PAYMENTS TO CLIENTS (DIRECT PAYMENTS),2102986351,1000061886
02.08.2019,ADULT SOCIAL CARE,PEOPLEPLUS ILS,"1,430.96",LD LTS 18-64,PAYMENTS TO CLIENTS (DIRECT PAYMENTS),2102986387,1000061886
02.08.2019,ADULT SOCIAL CARE,PEOPLEPLUS ILS,"1,438.80",LD LTS 18-64,PAYMENTS TO CLIENTS (DIRECT PAYMENTS),2102986446,1000061886
02.08.2019,ADULT SOCIAL CARE,FRESH IDEAS & SOLUTIONS SERVICES CIC,"1,464.32",LD LTS 18-64,PAYMENTS TO CLIENTS (DIRECT PAYMENTS),2102987051,1000070832
02.08.2019,ADULT SOCIAL CARE,PEOPLEPLUS ILS,"1,471.60",LD LTS 18-64,PAYMENTS TO CLIENTS (DIRECT PAYMENTS),2102986531,1000061886
02.08.2019,ADULT SOCIAL CARE,PEOPLEPLUS ILS,"1,474.96",LD LTS 18-64,PAYMENTS TO CLIENTS (DIRECT PAYMENTS),2102986817,1000061886
02.08.2019,ADULT SOCIAL CARE,PEOPLEPLUS ILS,"1,475.84",LD LTS 18-64,PAYMENTS TO CLIENTS (DIRECT PAYMENTS),2102986612,1000061886
02.08.2019,ADULT SOCIAL CARE,PEOPLEPLUS ILS,"1,480.20",LD LTS 18-64,PAYMENTS TO CLIENTS (DIRECT PAYMENTS),2102986853,1000061886
02.08.2019,ADULT SOCIAL CARE,PEOPLEPLUS ILS,"1,529.52",LD LTS 18-64,PAYMENTS TO CLIENTS (DIRECT PAYMENTS),2102986954,1000061886
02.08.2019,ADULT SOCIAL CARE,PEOPLEPLUS ILS,"1,588.00",LD LTS 18-64,PAYMENTS TO CLIENTS (DIRECT PAYMENTS),2102986996,1000061886
02.08.2019,ADULT SOCIAL CARE,PEOPLEPLUS ILS,"1,605.76",LD LTS 18-64,PAYMENTS TO CLIENTS (DIRECT PAYMENTS),2102986795,1000061886
02.08.2019,ADULT SOCIAL CARE,PEOPLEPLUS ILS,"1,617.28",LD LTS 18-64,PAYMENTS TO CLIENTS (DIRECT PAYMENTS),2102986375,1000061886
02.08.2019,ADULT SOCIAL CARE,PEOPLEPLUS ILS,"1,659.04",LD LTS 18-64,PAYMENTS TO CLIENTS (DIRECT PAYMENTS),2102986418,1000061886
02.08.2019,ADULT SOCIAL CARE,PEOPLEPLUS ILS,"1,690.24",LD LTS 18-64,PAYMENTS TO CLIENTS (DIRECT PAYMENTS),2102986920,1000061886
02.08.2019,ADULT SOCIAL CARE,PEOPLEPLUS ILS,"1,696.32",LD LTS 18-64,PAYMENTS TO CLIENTS (DIRECT PAYMENTS),2102986449,1000061886
02.08.2019,ADULT SOCIAL CARE,PEOPLEPLUS ILS,"1,714.00",LD LTS 18-64,PAYMENTS TO CLIENTS (DIRECT PAYMENTS),2102986603,1000061886
02.08.2019,ADULT SOCIAL CARE,PEOPLEPLUS ILS,"1,799.48",LD LTS 18-64,PAYMENTS TO CLIENTS (DIRECT PAYMENTS),2102987147,1000061886
02.08.2019,ADULT SOCIAL CARE,PEOPLEPLUS ILS,"1,823.48",LD LTS 18-64,PAYMENTS TO CLIENTS (DIRECT PAYMENTS),2102986558,1000061886
02.08.2019,ADULT SOCIAL CARE,PEOPLEPLUS ILS,"1,829.00",LD LTS 18-64,PAYMENTS TO CLIENTS (DIRECT PAYMENTS),2102986762,1000061886
02.08.2019,ADULT SOCIAL CARE,PEOPLEPLUS ILS,"1,829.60",LD LTS 18-64,PAYMENTS TO CLIENTS (DIRECT PAYMENTS),2102986650,1000061886
02.08.2019,ADULT SOCIAL CARE,PEOPLEPLUS ILS,"1,837.60",LD LTS 18-64,PAYMENTS TO CLIENTS (DIRECT PAYMENTS),2102986565,1000061886
02.08.2019,ADULT SOCIAL CARE,FRESH IDEAS & SOLUTIONS SERVICES CIC,"1,848.00",LD LTS 18-64,PAYMENTS TO CLIENTS (DIRECT PAYMENTS),2102986729,1000070832
02.08.2019,ADULT SOCIAL CARE,PEOPLEPLUS ILS,"1,862.00",LD LTS 18-64,PAYMENTS TO CLIENTS (DIRECT PAYMENTS),2102987151,1000061886
02.08.2019,ADULT SOCIAL CARE,PEOPLEPLUS ILS,"1,888.28",LD LTS 18-64,PAYMENTS TO CLIENTS (DIRECT PAYMENTS),2102986405,1000061886
02.08.2019,ADULT SOCIAL CARE,PEOPLEPLUS ILS,"1,950.96",LD LTS 18-64,PAYMENTS TO CLIENTS (DIRECT PAYMENTS),2102986591,1000061886
02.08.2019,ADULT SOCIAL CARE,PEOPLEPLUS ILS,"2,011.40",LD LTS 18-64,PAYMENTS TO CLIENTS (DIRECT PAYMENTS),2102986989,1000061886
02.08.2019,ADULT SOCIAL CARE,PEOPLEPLUS ILS,"2,090.00",LD LTS 18-64,PAYMENTS TO CLIENTS (DIRECT PAYMENTS),2102986553,1000061886
02.08.2019,ADULT SOCIAL CARE,PEOPLEPLUS ILS,"2,097.56",LD LTS 18-64,PAYMENTS TO CLIENTS (DIRECT PAYMENTS),2102987164,1000061886
02.08.2019,ADULT SOCIAL CARE,PEOPLEPLUS ILS,"2,131.20",LD LTS 18-64,PAYMENTS TO CLIENTS (DIRECT PAYMENTS),2102986828,1000061886
02.08.2019,ADULT SOCIAL CARE,PEOPLEPLUS ILS,"2,268.84",LD LTS 18-64,PAYMENTS TO CLIENTS (DIRECT PAYMENTS),2102986661,1000061886
02.08.2019,ADULT SOCIAL CARE,PEOPLEPLUS ILS,"2,312.40",LD LTS 18-64,PAYMENTS TO CLIENTS (DIRECT PAYMENTS),2102986677,1000061886
02.08.2019,ADULT SOCIAL CARE,PEOPLEPLUS ILS,"2,447.76",LD LTS 18-64,PAYMENTS TO CLIENTS (DIRECT PAYMENTS),2102986616,1000061886
02.08.2019,ADULT SOCIAL CARE,PEOPLEPLUS ILS,"2,490.00",LD LTS 18-64,PAYMENTS TO CLIENTS (DIRECT PAYMENTS),2102986977,1000061886
02.08.2019,ADULT SOCIAL CARE,PEOPLEPLUS ILS,"2,494.00",LD LTS 18-64,PAYMENTS TO CLIENTS (DIRECT PAYMENTS),2102986889,1000061886
02.08.2019,ADULT SOCIAL CARE,PEOPLEPLUS ILS,"2,733.64",LD LTS 18-64,PAYMENTS TO CLIENTS (DIRECT PAYMENTS),2102986850,1000061886
02.08.2019,ADULT SOCIAL CARE,PEOPLEPLUS ILS,"2,865.00",LD LTS 18-64,PAYMENTS TO CLIENTS (DIRECT PAYMENTS),2102986394,1000061886
02.08.2019,ADULT SOCIAL CARE,PEOPLEPLUS ILS,"2,906.00",LD LTS 18-64,PAYMENTS TO CLIENTS (DIRECT PAYMENTS),2102986744,1000061886
02.08.2019,ADULT SOCIAL CARE,PEOPLEPLUS ILS,"2,918.00",LD LTS 18-64,PAYMENTS TO CLIENTS (DIRECT PAYMENTS),2102987122,1000061886
02.08.2019,ADULT SOCIAL CARE,PEOPLEPLUS ILS,"2,946.20",LD LTS 18-64,PAYMENTS TO CLIENTS (DIRECT PAYMENTS),2102986908,1000061886
02.08.2019,ADULT SOCIAL CARE,PEOPLEPLUS ILS,"3,106.52",LD LTS 18-64,PAYMENTS TO CLIENTS (DIRECT PAYMENTS),2102986368,1000061886
02.08.2019,ADULT SOCIAL CARE,PEOPLEPLUS ILS,"3,360.88",LD LTS 18-64,PAYMENTS TO CLIENTS (DIRECT PAYMENTS),2102986406,1000061886
02.08.2019,ADULT SOCIAL CARE,PEOPLEPLUS ILS,"3,610.00",LD LTS 18-64,PAYMENTS TO CLIENTS (DIRECT PAYMENTS),2102986429,1000061886
02.08.2019,ADULT SOCIAL CARE,PEOPLEPLUS ILS,"3,809.20",LD LTS 18-64,PAYMENTS TO CLIENTS (DIRECT PAYMENTS),2102986863,1000061886
02.08.2019,ADULT SOCIAL CARE,PEOPLEPLUS ILS,"3,993.10",LD LTS 18-64,PAYMENTS TO CLIENTS (DIRECT PAYMENTS),2102986586,1000061886
02.08.2019,ADULT SOCIAL CARE,PEOPLEPLUS ILS,"4,160.00",LD LTS 18-64,PAYMENTS TO CLIENTS (DIRECT PAYMENTS),2102986378,1000061886
02.08.2019,ADULT SOCIAL CARE,PEOPLEPLUS ILS,"7,521.32",LD LTS 18-64,PAYMENTS TO CLIENTS (DIRECT PAYMENTS),2102986715,1000061886
02.08.2019,ADULT SOCIAL CARE,PEOPLEPLUS ILS,"7,908.96",LD LTS 18-64,PAYMENTS TO CLIENTS (DIRECT PAYMENTS),2102986419,1000061886
02.08.2019,ADULT SOCIAL CARE,PEOPLEPLUS ILS,"9,126.80",LD LTS 18-64,PAYMENTS TO CLIENTS (DIRECT PAYMENTS),2102986913,1000061886
02.08.2019,ADULT SOCIAL CARE,PEOPLEPLUS ILS,"11,809.20",LD LTS 18-64,PAYMENTS TO CLIENTS (DIRECT PAYMENTS),2102986722,1000061886
02.08.2019,ADULT SOCIAL CARE,PEOPLEPLUS ILS,"12,619.20",LD LTS 18-64,PAYMENTS TO CLIENTS (DIRECT PAYMENTS),2102986363,1000061886
02.08.2019,ADULT SOCIAL CARE,PEOPLEPLUS ILS,"12,619.20",LD LTS 18-64,PAYMENTS TO CLIENTS (DIRECT PAYMENTS),2102986790,1000061886
02.08.2019,ADULT SOCIAL CARE,REDACTED PERSONAL INFORMATION,"1,032.16",LD LTS 18-64,SUPPORTED LIVING,REDACTED,REDACTED
02.08.2019,ADULT SOCIAL CARE,CONTACT PROFESSIONALS,465,LD LTS 18-64,SUPPORTED LIVING,2102986076,1000057263
02.08.2019,ADULT SOCIAL CARE,CONTACT PROFESSIONALS,465,LD LTS 18-64,SUPPORTED LIVING,2102986085,1000057263
02.08.2019,ADULT SOCIAL CARE,CONTACT PROFESSIONALS,"1,489.00",LD LTS 18-64,SUPPORTED LIVING,2102986077,1000057263
02.08.2019,ADULT SOCIAL CARE,CONTACT PROFESSIONALS,"1,489.00",LD LTS 18-64,SUPPORTED LIVING,2102986087,1000057263
02.08.2019,ADULT SOCIAL CARE,GRANGE FARM COMPLEX,"1,778.36",LD LTS 18-64,SUPPORTED LIVING,2102986928,11086081
02.08.2019,ADULT SOCIAL CARE,INSPIRE SUPPORT WORKERS LTD,"1,836.00",LD LTS 18-64,SUPPORTED LIVING,2102986074,1000080725
02.08.2019,ADULT SOCIAL CARE,AURORA OPTIONS,"2,855.16",LD LTS 18-64,SUPPORTED LIVING,2102986700,1000066695
02.08.2019,ADULT SOCIAL CARE,AURORA OPTIONS,"2,855.16",LD LTS 18-64,SUPPORTED LIVING,2102987006,1000066695
02.08.2019,ADULT SOCIAL CARE,PLUS SERVICES,"3,200.00",LD LTS 18-64,SUPPORTED LIVING,2102986802,1000021241
02.08.2019,ADULT SOCIAL CARE,HEALTH PERSONNEL LTD,"3,270.00",LD LTS 18-64,SUPPORTED LIVING,2102986414,1000076377
02.08.2019,ADULT SOCIAL CARE,AURORA OPTIONS,"3,441.16",LD LTS 18-64,SUPPORTED LIVING,2102987148,1000066695
02.08.2019,ADULT SOCIAL CARE,INSPIRE SUPPORT WORKERS LTD,"3,850.00",LD LTS 18-64,SUPPORTED LIVING,2102986088,1000080725
02.08.2019,ADULT SOCIAL CARE,L'ARCHE LONDON COMMUNITY,"4,206.00",LD LTS 18-64,SUPPORTED LIVING,2102986963,1000074124
02.08.2019,ADULT SOCIAL CARE,PLUS SERVICES,"5,173.60",LD LTS 18-64,SUPPORTED LIVING,2102986459,1000021241
02.08.2019,ADULT SOCIAL CARE,PLUS SERVICES,"5,495.20",LD LTS 18-64,SUPPORTED LIVING,2102987131,1000021241
02.08.2019,ADULT SOCIAL CARE,RIGHT SUPPORT MANAGEMENT LTD,"8,361.00",LD LTS 18-64,SUPPORTED LIVING,2102986969,1000070289
02.08.2019,ADULT SOCIAL CARE,BEDE CAFE PROJECT,478.4,LD LTS 65+,DAYCARE,2102986116,1553877
02.08.2019,ADULT SOCIAL CARE,UNITED RESPONSE,"1,599.00",LD LTS 65+,SUPPORTED LIVING,2102986573,1022934
02.08.2019,ADULT SOCIAL CARE,OUTLOOK CARE LTD,"2,212.00",LD LTS 65+,SUPPORTED LIVING,2102986765,1000074760
02.08.2019,ADULT SOCIAL CARE,PLUS SERVICES,"4,857.20",LD LTS 65+,SUPPORTED LIVING,2102987025,1000021241
02.08.2019,ADULT SOCIAL CARE,PLUS SERVICES,"6,147.92",LD LTS 65+,SUPPORTED LIVING,2102987033,1000021241
02.08.2019,ADULT SOCIAL CARE,PEOPLEPLUS ILS,389.32,MEM LTS 18-64,PAYMENTS TO CLIENTS (DIRECT PAYMENTS),2102986896,1000061886
02.08.2019,ADULT SOCIAL CARE,PEOPLEPLUS ILS,619.2,MEM LTS 18-64,PAYMENTS TO CLIENTS (DIRECT PAYMENTS),2102986836,1000061886
02.08.2019,ADULT SOCIAL CARE,PEOPLEPLUS ILS,734.16,MEM LTS 18-64,PAYMENTS TO CLIENTS (DIRECT PAYMENTS),2102986990,1000061886
02.08.2019,ADULT SOCIAL CARE,PEOPLEPLUS ILS,"1,184.00",MEM LTS 18-64,PAYMENTS TO CLIENTS (DIRECT PAYMENTS),2102987002,1000061886
02.08.2019,ADULT SOCIAL CARE,REDACTED PERSONAL INFORMATION,256,MEM LTS 18-64,SUPPORTED LIVING,REDACTED,REDACTED
02.08.2019,ADULT SOCIAL CARE,AGE UK  LEWISHAM & SOUTHWARK,360,MEM LTS 65+,DAYCARE,2102986712,1000066751
02.08.2019,ADULT SOCIAL CARE,AGE UK  LEWISHAM & SOUTHWARK,540,MEM LTS 65+,DAYCARE,2102986469,1000066751
02.08.2019,ADULT SOCIAL CARE,AGE UK  LEWISHAM & SOUTHWARK,900,MEM LTS 65+,DAYCARE,2102986713,1000066751
02.08.2019,ADULT SOCIAL CARE,AGE UK  LEWISHAM & SOUTHWARK,900,MEM LTS 65+,DAYCARE,2102987079,1000066751
02.08.2019,ADULT SOCIAL CARE,PEOPLEPLUS ILS,-279.14,MEM LTS 65+,DISCRETIONARY FLEXIBLE FEES & INCOME,2102986443,1000061886
02.08.2019,ADULT SOCIAL CARE,REDACTED PERSONAL INFORMATION,"1,118.52",MEM LTS 65+,PAYMENTS TO CLIENTS (DIRECT PAYMENTS),REDACTED,REDACTED
02.08.2019,ADULT SOCIAL CARE,PEOPLEPLUS ILS,378.84,MEM LTS 65+,PAYMENTS TO CLIENTS (DIRECT PAYMENTS),2102986909,1000061886
02.08.2019,ADULT SOCIAL CARE,PEOPLEPLUS ILS,"1,421.24",MEM LTS 65+,PAYMENTS TO CLIENTS (DIRECT PAYMENTS),2102986444,1000061886
02.08.2019,ADULT SOCIAL CARE,BEDE CAFE PROJECT,280,MH LTS 18-64,DAYCARE,2102986099,1553877
02.08.2019,ADULT SOCIAL CARE,BLACKFRIARS SETTLEMENT,320,MH LTS 18-64,DAYCARE,2102986528,1000071456
02.08.2019,ADULT SOCIAL CARE,REDACTED PERSONAL INFORMATION,-283.8,MH LTS 18-64,DISCRETIONARY FLEXIBLE FEES & INCOME,REDACTED,REDACTED
02.08.2019,ADULT SOCIAL CARE,REDACTED PERSONAL INFORMATION,269.8,MH LTS 18-64,HOMECARE - SPOT,REDACTED,REDACTED
02.08.2019,ADULT SOCIAL CARE,REDACTED PERSONAL INFORMATION,276,MH LTS 18-64,HOMECARE - SPOT,REDACTED,REDACTED
02.08.2019,ADULT SOCIAL CARE,REDACTED PERSONAL INFORMATION,546,MH LTS 18-64,HOMECARE - SPOT,REDACTED,REDACTED
02.08.2019,ADULT SOCIAL CARE,REDACTED PERSONAL INFORMATION,655.2,MH LTS 18-64,HOMECARE - SPOT,REDACTED,REDACTED
02.08.2019,ADULT SOCIAL CARE,REDACTED PERSONAL INFORMATION,928,MH LTS 18-64,HOMECARE - SPOT,REDACTED,REDACTED
02.08.2019,ADULT SOCIAL CARE,REDACTED PERSONAL INFORMATION,"1,241.08",MH LTS 18-64,HOMECARE - SPOT,REDACTED,REDACTED
02.08.2019,ADULT SOCIAL CARE,REDACTED PERSONAL INFORMATION,303.04,MH LTS 18-64,PAYMENTS TO CLIENTS (DIRECT PAYMENTS),REDACTED,REDACTED
02.08.2019,ADULT SOCIAL CARE,REDACTED PERSONAL INFORMATION,328,MH LTS 18-64,PAYMENTS TO CLIENTS (DIRECT PAYMENTS),REDACTED,REDACTED
02.08.2019,ADULT SOCIAL CARE,REDACTED PERSONAL INFORMATION,888,MH LTS 18-64,PAYMENTS TO CLIENTS (DIRECT PAYMENTS),REDACTED,REDACTED
02.08.2019,ADULT SOCIAL CARE,REDACTED PERSONAL INFORMATION,"1,158.36",MH LTS 18-64,PAYMENTS TO CLIENTS (DIRECT PAYMENTS),REDACTED,REDACTED
02.08.2019,ADULT SOCIAL CARE,REDACTED PERSONAL INFORMATION,"1,476.20",MH LTS 18-64,PAYMENTS TO CLIENTS (DIRECT PAYMENTS),REDACTED,REDACTED
02.08.2019,ADULT SOCIAL CARE,PEOPLEPLUS ILS,272,MH LTS 18-64,PAYMENTS TO CLIENTS (DIRECT PAYMENTS),2102987012,1000061886
02.08.2019,ADULT SOCIAL CARE,PEOPLEPLUS ILS,274,MH LTS 18-64,PAYMENTS TO CLIENTS (DIRECT PAYMENTS),2102986539,1000061886
02.08.2019,ADULT SOCIAL CARE,PEOPLEPLUS ILS,274,MH LTS 18-64,PAYMENTS TO CLIENTS (DIRECT PAYMENTS),2102986578,1000061886
02.08.2019,ADULT SOCIAL CARE,PEOPLEPLUS ILS,287.2,MH LTS 18-64,PAYMENTS TO CLIENTS (DIRECT PAYMENTS),2102986754,1000061886
02.08.2019,ADULT SOCIAL CARE,PEOPLEPLUS ILS,290,MH LTS 18-64,PAYMENTS TO CLIENTS (DIRECT PAYMENTS),2102987138,1000061886
02.08.2019,ADULT SOCIAL CARE,PEOPLEPLUS ILS,304,MH LTS 18-64,PAYMENTS TO CLIENTS (DIRECT PAYMENTS),2102986536,1000061886
02.08.2019,ADULT SOCIAL CARE,PEOPLEPLUS ILS,310.48,MH LTS 18-64,PAYMENTS TO CLIENTS (DIRECT PAYMENTS),2102986885,1000061886
02.08.2019,ADULT SOCIAL CARE,PEOPLEPLUS ILS,316,MH LTS 18-64,PAYMENTS TO CLIENTS (DIRECT PAYMENTS),2102986750,1000061886
02.08.2019,ADULT SOCIAL CARE,PEOPLEPLUS ILS,318,MH LTS 18-64,PAYMENTS TO CLIENTS (DIRECT PAYMENTS),2102986619,1000061886
02.08.2019,ADULT SOCIAL CARE,PEOPLEPLUS ILS,328.48,MH LTS 18-64,PAYMENTS TO CLIENTS (DIRECT PAYMENTS),2102986538,1000061886
02.08.2019,ADULT SOCIAL CARE,PEOPLEPLUS ILS,330,MH LTS 18-64,PAYMENTS TO CLIENTS (DIRECT PAYMENTS),2102986683,1000061886
02.08.2019,ADULT SOCIAL CARE,PEOPLEPLUS ILS,368.4,MH LTS 18-64,PAYMENTS TO CLIENTS (DIRECT PAYMENTS),2102986524,1000061886
02.08.2019,ADULT SOCIAL CARE,PEOPLEPLUS ILS,379.76,MH LTS 18-64,PAYMENTS TO CLIENTS (DIRECT PAYMENTS),2102986504,1000061886
02.08.2019,ADULT SOCIAL CARE,PEOPLEPLUS ILS,385.76,MH LTS 18-64,PAYMENTS TO CLIENTS (DIRECT PAYMENTS),2102986968,1000061886
02.08.2019,ADULT SOCIAL CARE,PEOPLEPLUS ILS,394,MH LTS 18-64,PAYMENTS TO CLIENTS (DIRECT PAYMENTS),2102986745,1000061886
02.08.2019,ADULT SOCIAL CARE,PEOPLEPLUS ILS,394,MH LTS 18-64,PAYMENTS TO CLIENTS (DIRECT PAYMENTS),2102986966,1000061886
02.08.2019,ADULT SOCIAL CARE,PEOPLEPLUS ILS,405.44,MH LTS 18-64,PAYMENTS TO CLIENTS (DIRECT PAYMENTS),2102986708,1000061886
02.08.2019,ADULT SOCIAL CARE,PEOPLEPLUS ILS,413.96,MH LTS 18-64,PAYMENTS TO CLIENTS (DIRECT PAYMENTS),2102987083,1000061886
02.08.2019,ADULT SOCIAL CARE,PEOPLEPLUS ILS,424,MH LTS 18-64,PAYMENTS TO CLIENTS (DIRECT PAYMENTS),2102986382,1000061886
02.08.2019,ADULT SOCIAL CARE,PEOPLEPLUS ILS,427.92,MH LTS 18-64,PAYMENTS TO CLIENTS (DIRECT PAYMENTS),2102986874,1000061886
02.08.2019,ADULT SOCIAL CARE,PEOPLEPLUS ILS,459.43,MH LTS 18-64,PAYMENTS TO CLIENTS (DIRECT PAYMENTS),2102986465,1000061886
02.08.2019,ADULT SOCIAL CARE,PEOPLEPLUS ILS,469,MH LTS 18-64,PAYMENTS TO CLIENTS (DIRECT PAYMENTS),2102987039,1000061886
02.08.2019,ADULT SOCIAL CARE,PEOPLEPLUS ILS,504.4,MH LTS 18-64,PAYMENTS TO CLIENTS (DIRECT PAYMENTS),2102986477,1000061886
02.08.2019,ADULT SOCIAL CARE,PEOPLEPLUS ILS,529.6,MH LTS 18-64,PAYMENTS TO CLIENTS (DIRECT PAYMENTS),2102986432,1000061886
02.08.2019,ADULT SOCIAL CARE,PEOPLEPLUS ILS,559.84,MH LTS 18-64,PAYMENTS TO CLIENTS (DIRECT PAYMENTS),2102987141,1000061886
02.08.2019,ADULT SOCIAL CARE,PEOPLEPLUS ILS,642,MH LTS 18-64,PAYMENTS TO CLIENTS (DIRECT PAYMENTS),2102987108,1000061886
02.08.2019,ADULT SOCIAL CARE,PEOPLEPLUS ILS,994,MH LTS 18-64,PAYMENTS TO CLIENTS (DIRECT PAYMENTS),2102986370,1000061886
02.08.2019,ADULT SOCIAL CARE,PEOPLEPLUS ILS,"1,041.40",MH LTS 18-64,PAYMENTS TO CLIENTS (DIRECT PAYMENTS),2102986933,1000061886
02.08.2019,ADULT SOCIAL CARE,PEOPLEPLUS ILS,"2,311.60",MH LTS 18-64,PAYMENTS TO CLIENTS (DIRECT PAYMENTS),2102986546,1000061886
02.08.2019,ADULT SOCIAL CARE,REDACTED PERSONAL INFORMATION,897.8,MH LTS 65+,PAYMENTS TO CLIENTS (DIRECT PAYMENTS),REDACTED,REDACTED
02.08.2019,ADULT SOCIAL CARE,REDACTED PERSONAL INFORMATION,960,MH LTS 65+,PAYMENTS TO CLIENTS (DIRECT PAYMENTS),REDACTED,REDACTED
02.08.2019,ADULT SOCIAL CARE,PEOPLEPLUS ILS,283.6,MH LTS 65+,PAYMENTS TO CLIENTS (DIRECT PAYMENTS),2102986402,1000061886
02.08.2019,ADULT SOCIAL CARE,PEOPLEPLUS ILS,373,MH LTS 65+,PAYMENTS TO CLIENTS (DIRECT PAYMENTS),2102986984,1000061886
02.08.2019,ADULT SOCIAL CARE,PEOPLEPLUS ILS,394,MH LTS 65+,PAYMENTS TO CLIENTS (DIRECT PAYMENTS),2102986940,1000061886
02.08.2019,ADULT SOCIAL CARE,PEOPLEPLUS ILS,"1,212.20",MH LTS 65+,PAYMENTS TO CLIENTS (DIRECT PAYMENTS),2102986409,1000061886
02.08.2019,ADULT SOCIAL CARE,METROPOLITAN SUPPORT TRUST,"21,825.17",OLDER PEOPLES HUBS,EXTERNAL AGENCIES AND BODIES,5902371177,1000047547
02.08.2019,ADULT SOCIAL CARE,REDACTED PERSONAL INFORMATION,940,PHB- SOUTHWARK CCG,RECOVERABLE COSTS INCL. HEALTH,REDACTED,REDACTED
02.08.2019,ADULT SOCIAL CARE,REDACTED PERSONAL INFORMATION,"2,699.76",PHB- SOUTHWARK CCG,RECOVERABLE COSTS INCL. HEALTH,REDACTED,REDACTED
02.08.2019,ADULT SOCIAL CARE,REDACTED PERSONAL INFORMATION,"7,482.40",PHB- SOUTHWARK CCG,RECOVERABLE COSTS INCL. HEALTH,REDACTED,REDACTED
02.08.2019,ADULT SOCIAL CARE,REDACTED PERSONAL INFORMATION,"18,158.40",PHB- SOUTHWARK CCG,RECOVERABLE COSTS INCL. HEALTH,REDACTED,REDACTED
02.08.2019,ADULT SOCIAL CARE,PEOPLEPLUS ILS,"1,468.72",PHB- SOUTHWARK CCG,RECOVERABLE COSTS INCL. HEALTH,2102986461,1000061886
02.08.2019,ADULT SOCIAL CARE,PEOPLEPLUS ILS,"1,470.00",PHB- SOUTHWARK CCG,RECOVERABLE COSTS INCL. HEALTH,2102986639,1000061886
02.08.2019,ADULT SOCIAL CARE,PEOPLEPLUS ILS,"3,613.68",PHB- SOUTHWARK CCG,RECOVERABLE COSTS INCL. HEALTH,2102986695,1000061886
02.08.2019,ADULT SOCIAL CARE,PEOPLEPLUS ILS,"4,127.92",PHB- SOUTHWARK CCG,RECOVERABLE COSTS INCL. HEALTH,2102986647,1000061886
02.08.2019,ADULT SOCIAL CARE,PEOPLEPLUS ILS,"4,347.48",PHB- SOUTHWARK CCG,RECOVERABLE COSTS INCL. HEALTH,2102986344,1000061886
02.08.2019,ADULT SOCIAL CARE,PEOPLEPLUS ILS,"5,226.32",PHB- SOUTHWARK CCG,RECOVERABLE COSTS INCL. HEALTH,2102986669,1000061886
02.08.2019,ADULT SOCIAL CARE,PEOPLEPLUS ILS,"5,342.60",PHB- SOUTHWARK CCG,RECOVERABLE COSTS INCL. HEALTH,2102986917,1000061886
02.08.2019,ADULT SOCIAL CARE,HEADWAY S E,256,PHY LTS 18-64,DAYCARE,2102986089,1000012359
02.08.2019,ADULT SOCIAL CARE,AGE UK  LEWISHAM & SOUTHWARK,360,PHY LTS 18-64,DAYCARE,2102986607,1000066751
02.08.2019,ADULT SOCIAL CARE,AGE UK  LEWISHAM & SOUTHWARK,360,PHY LTS 18-64,DAYCARE,2102987055,1000066751
02.08.2019,ADULT SOCIAL CARE,PHOENIX HEALTHCARE & RECRUITMENT,391.36,PHY LTS 18-64,DAYCARE,2102986083,1000065636
02.08.2019,ADULT SOCIAL CARE,PHOENIX HEALTHCARE & RECRUITMENT,391.36,PHY LTS 18-64,DAYCARE,2102986086,1000065636
02.08.2019,ADULT SOCIAL CARE,AGE UK  LEWISHAM & SOUTHWARK,540,PHY LTS 18-64,DAYCARE,2102986823,1000066751
02.08.2019,ADULT SOCIAL CARE,REDACTED PERSONAL INFORMATION,-291.12,PHY LTS 18-64,DISCRETIONARY FLEXIBLE FEES & INCOME,REDACTED,REDACTED
02.08.2019,ADULT SOCIAL CARE,PEOPLEPLUS ILS,-592.62,PHY LTS 18-64,DISCRETIONARY FLEXIBLE FEES & INCOME,2102986365,1000061886
02.08.2019,ADULT SOCIAL CARE,REDACTED PERSONAL INFORMATION,"-1,912.35",PHY LTS 18-64,PAYMENTS TO CLIENTS (DIRECT PAYMENTS),REDACTED,REDACTED
02.08.2019,ADULT SOCIAL CARE,REDACTED PERSONAL INFORMATION,258.08,PHY LTS 18-64,PAYMENTS TO CLIENTS (DIRECT PAYMENTS),REDACTED,REDACTED
02.08.2019,ADULT SOCIAL CARE,REDACTED PERSONAL INFORMATION,312.6,PHY LTS 18-64,PAYMENTS TO CLIENTS (DIRECT PAYMENTS),REDACTED,REDACTED
02.08.2019,ADULT SOCIAL CARE,REDACTED PERSONAL INFORMATION,314.44,PHY LTS 18-64,PAYMENTS TO CLIENTS (DIRECT PAYMENTS),REDACTED,REDACTED
02.08.2019,ADULT SOCIAL CARE,REDACTED PERSONAL INFORMATION,354.4,PHY LTS 18-64,PAYMENTS TO CLIENTS (DIRECT PAYMENTS),REDACTED,REDACTED
02.08.2019,ADULT SOCIAL CARE,REDACTED PERSONAL INFORMATION,400,PHY LTS 18-64,PAYMENTS TO CLIENTS (DIRECT PAYMENTS),REDACTED,REDACTED
02.08.2019,ADULT SOCIAL CARE,REDACTED PERSONAL INFORMATION,403.44,PHY LTS 18-64,PAYMENTS TO CLIENTS (DIRECT PAYMENTS),REDACTED,REDACTED
02.08.2019,ADULT SOCIAL CARE,REDACTED PERSONAL INFORMATION,418,PHY LTS 18-64,PAYMENTS TO CLIENTS (DIRECT PAYMENTS),REDACTED,REDACTED
02.08.2019,ADULT SOCIAL CARE,REDACTED PERSONAL INFORMATION,491.4,PHY LTS 18-64,PAYMENTS TO CLIENTS (DIRECT PAYMENTS),REDACTED,REDACTED
02.08.2019,ADULT SOCIAL CARE,REDACTED PERSONAL INFORMATION,514.8,PHY LTS 18-64,PAYMENTS TO CLIENTS (DIRECT PAYMENTS),REDACTED,REDACTED
02.08.2019,ADULT SOCIAL CARE,REDACTED PERSONAL INFORMATION,522.52,PHY LTS 18-64,PAYMENTS TO CLIENTS (DIRECT PAYMENTS),REDACTED,REDACTED
02.08.2019,ADULT SOCIAL CARE,REDACTED PERSONAL INFORMATION,526.04,PHY LTS 18-64,PAYMENTS TO CLIENTS (DIRECT PAYMENTS),REDACTED,REDACTED
02.08.2019,ADULT SOCIAL CARE,REDACTED PERSONAL INFORMATION,594.76,PHY LTS 18-64,PAYMENTS TO CLIENTS (DIRECT PAYMENTS),REDACTED,REDACTED
02.08.2019,ADULT SOCIAL CARE,REDACTED PERSONAL INFORMATION,602.44,PHY LTS 18-64,PAYMENTS TO CLIENTS (DIRECT PAYMENTS),REDACTED,REDACTED
02.08.2019,ADULT SOCIAL CARE,REDACTED PERSONAL INFORMATION,602.48,PHY LTS 18-64,PAYMENTS TO CLIENTS (DIRECT PAYMENTS),REDACTED,REDACTED
02.08.2019,ADULT SOCIAL CARE,REDACTED PERSONAL INFORMATION,635.28,PHY LTS 18-64,PAYMENTS TO CLIENTS (DIRECT PAYMENTS),REDACTED,REDACTED
02.08.2019,ADULT SOCIAL CARE,REDACTED PERSONAL INFORMATION,647.92,PHY LTS 18-64,PAYMENTS TO CLIENTS (DIRECT PAYMENTS),REDACTED,REDACTED
02.08.2019,ADULT SOCIAL CARE,REDACTED PERSONAL INFORMATION,663.52,PHY LTS 18-64,PAYMENTS TO CLIENTS (DIRECT PAYMENTS),REDACTED,REDACTED
02.08.2019,ADULT SOCIAL CARE,REDACTED PERSONAL INFORMATION,688.8,PHY LTS 18-64,PAYMENTS TO CLIENTS (DIRECT PAYMENTS),REDACTED,REDACTED
02.08.2019,ADULT SOCIAL CARE,REDACTED PERSONAL INFORMATION,689.68,PHY LTS 18-64,PAYMENTS TO CLIENTS (DIRECT PAYMENTS),REDACTED,REDACTED
02.08.2019,ADULT SOCIAL CARE,REDACTED PERSONAL INFORMATION,730.6,PHY LTS 18-64,PAYMENTS TO CLIENTS (DIRECT PAYMENTS),REDACTED,REDACTED
02.08.2019,ADULT SOCIAL CARE,REDACTED PERSONAL INFORMATION,751.52,PHY LTS 18-64,PAYMENTS TO CLIENTS (DIRECT PAYMENTS),REDACTED,REDACTED
02.08.2019,ADULT SOCIAL CARE,REDACTED PERSONAL INFORMATION,751.96,PHY LTS 18-64,PAYMENTS TO CLIENTS (DIRECT PAYMENTS),REDACTED,REDACTED
02.08.2019,ADULT SOCIAL CARE,REDACTED PERSONAL INFORMATION,814.2,PHY LTS 18-64,PAYMENTS TO CLIENTS (DIRECT PAYMENTS),REDACTED,REDACTED
02.08.2019,ADULT SOCIAL CARE,REDACTED PERSONAL INFORMATION,824.64,PHY LTS 18-64,PAYMENTS TO CLIENTS (DIRECT PAYMENTS),REDACTED,REDACTED
02.08.2019,ADULT SOCIAL CARE,REDACTED PERSONAL INFORMATION,836.36,PHY LTS 18-64,PAYMENTS TO CLIENTS (DIRECT PAYMENTS),REDACTED,REDACTED
02.08.2019,ADULT SOCIAL CARE,REDACTED PERSONAL INFORMATION,856,PHY LTS 18-64,PAYMENTS TO CLIENTS (DIRECT PAYMENTS),REDACTED,REDACTED
02.08.2019,ADULT SOCIAL CARE,REDACTED PERSONAL INFORMATION,889.8,PHY LTS 18-64,PAYMENTS TO CLIENTS (DIRECT PAYMENTS),REDACTED,REDACTED
02.08.2019,ADULT SOCIAL CARE,REDACTED PERSONAL INFORMATION,918.72,PHY LTS 18-64,PAYMENTS TO CLIENTS (DIRECT PAYMENTS),REDACTED,REDACTED
02.08.2019,ADULT SOCIAL CARE,REDACTED PERSONAL INFORMATION,957.68,PHY LTS 18-64,PAYMENTS TO CLIENTS (DIRECT PAYMENTS),REDACTED,REDACTED
02.08.2019,ADULT SOCIAL CARE,REDACTED PERSONAL INFORMATION,"1,013.80",PHY LTS 18-64,PAYMENTS TO CLIENTS (DIRECT PAYMENTS),REDACTED,REDACTED
02.08.2019,ADULT SOCIAL CARE,REDACTED PERSONAL INFORMATION,"1,200.80",PHY LTS 18-64,PAYMENTS TO CLIENTS (DIRECT PAYMENTS),REDACTED,REDACTED
02.08.2019,ADULT SOCIAL CARE,REDACTED PERSONAL INFORMATION,"1,204.16",PHY LTS 18-64,PAYMENTS TO CLIENTS (DIRECT PAYMENTS),REDACTED,REDACTED
02.08.2019,ADULT SOCIAL CARE,REDACTED PERSONAL INFORMATION,"1,210.40",PHY LTS 18-64,PAYMENTS TO CLIENTS (DIRECT PAYMENTS),REDACTED,REDACTED
02.08.2019,ADULT SOCIAL CARE,REDACTED PERSONAL INFORMATION,"1,579.20",PHY LTS 18-64,PAYMENTS TO CLIENTS (DIRECT PAYMENTS),REDACTED,REDACTED
02.08.2019,ADULT SOCIAL CARE,REDACTED PERSONAL INFORMATION,"1,598.84",PHY LTS 18-64,PAYMENTS TO CLIENTS (DIRECT PAYMENTS),REDACTED,REDACTED
02.08.2019,ADULT SOCIAL CARE,REDACTED PERSONAL INFORMATION,"1,775.60",PHY LTS 18-64,PAYMENTS TO CLIENTS (DIRECT PAYMENTS),REDACTED,REDACTED
02.08.2019,ADULT SOCIAL CARE,REDACTED PERSONAL INFORMATION,"2,088.48",PHY LTS 18-64,PAYMENTS TO CLIENTS (DIRECT PAYMENTS),REDACTED,REDACTED
02.08.2019,ADULT SOCIAL CARE,REDACTED PERSONAL INFORMATION,"2,399.32",PHY LTS 18-64,PAYMENTS TO CLIENTS (DIRECT PAYMENTS),REDACTED,REDACTED
02.08.2019,ADULT SOCIAL CARE,REDACTED PERSONAL INFORMATION,"2,439.44",PHY LTS 18-64,PAYMENTS TO CLIENTS (DIRECT PAYMENTS),REDACTED,REDACTED
02.08.2019,ADULT SOCIAL CARE,REDACTED PERSONAL INFORMATION,"3,589.92",PHY LTS 18-64,PAYMENTS TO CLIENTS (DIRECT PAYMENTS),REDACTED,REDACTED
02.08.2019,ADULT SOCIAL CARE,REDACTED PERSONAL INFORMATION,"3,720.20",PHY LTS 18-64,PAYMENTS TO CLIENTS (DIRECT PAYMENTS),REDACTED,REDACTED
02.08.2019,ADULT SOCIAL CARE,REDACTED PERSONAL INFORMATION,"4,608.04",PHY LTS 18-64,PAYMENTS TO CLIENTS (DIRECT PAYMENTS),REDACTED,REDACTED
02.08.2019,ADULT SOCIAL CARE,PEOPLEPLUS ILS,265.64,PHY LTS 18-64,PAYMENTS TO CLIENTS (DIRECT PAYMENTS),2102986408,1000061886
02.08.2019,ADULT SOCIAL CARE,PEOPLEPLUS ILS,265.64,PHY LTS 18-64,PAYMENTS TO CLIENTS (DIRECT PAYMENTS),2102986872,1000061886
02.08.2019,ADULT SOCIAL CARE,PEOPLEPLUS ILS,295.04,PHY LTS 18-64,PAYMENTS TO CLIENTS (DIRECT PAYMENTS),2102986946,1000061886
02.08.2019,ADULT SOCIAL CARE,PEOPLEPLUS ILS,326.6,PHY LTS 18-64,PAYMENTS TO CLIENTS (DIRECT PAYMENTS),2102986739,1000061886
02.08.2019,ADULT SOCIAL CARE,PEOPLEPLUS ILS,326.6,PHY LTS 18-64,PAYMENTS TO CLIENTS (DIRECT PAYMENTS),2102986801,1000061886
02.08.2019,ADULT SOCIAL CARE,PEOPLEPLUS ILS,337.04,PHY LTS 18-64,PAYMENTS TO CLIENTS (DIRECT PAYMENTS),2102986584,1000061886
02.08.2019,ADULT SOCIAL CARE,PEOPLEPLUS ILS,365,PHY LTS 18-64,PAYMENTS TO CLIENTS (DIRECT PAYMENTS),2102986955,1000061886
02.08.2019,ADULT SOCIAL CARE,PEOPLEPLUS ILS,370,PHY LTS 18-64,PAYMENTS TO CLIENTS (DIRECT PAYMENTS),2102986764,1000061886
02.08.2019,ADULT SOCIAL CARE,PEOPLEPLUS ILS,388.4,PHY LTS 18-64,PAYMENTS TO CLIENTS (DIRECT PAYMENTS),2102986487,1000061886
02.08.2019,ADULT SOCIAL CARE,PEOPLEPLUS ILS,389.32,PHY LTS 18-64,PAYMENTS TO CLIENTS (DIRECT PAYMENTS),2102987034,1000061886
02.08.2019,ADULT SOCIAL CARE,PEOPLEPLUS ILS,399.76,PHY LTS 18-64,PAYMENTS TO CLIENTS (DIRECT PAYMENTS),2102986812,1000061886
02.08.2019,ADULT SOCIAL CARE,PEOPLEPLUS ILS,423.52,PHY LTS 18-64,PAYMENTS TO CLIENTS (DIRECT PAYMENTS),2102986380,1000061886
02.08.2019,ADULT SOCIAL CARE,PEOPLEPLUS ILS,439.6,PHY LTS 18-64,PAYMENTS TO CLIENTS (DIRECT PAYMENTS),2102986988,1000061886
02.08.2019,ADULT SOCIAL CARE,PEOPLEPLUS ILS,447.4,PHY LTS 18-64,PAYMENTS TO CLIENTS (DIRECT PAYMENTS),2102986691,1000061886
02.08.2019,ADULT SOCIAL CARE,PEOPLEPLUS ILS,449.36,PHY LTS 18-64,PAYMENTS TO CLIENTS (DIRECT PAYMENTS),2102986728,1000061886
02.08.2019,ADULT SOCIAL CARE,PEOPLEPLUS ILS,452,PHY LTS 18-64,PAYMENTS TO CLIENTS (DIRECT PAYMENTS),2102986400,1000061886
02.08.2019,ADULT SOCIAL CARE,PEOPLEPLUS ILS,452,PHY LTS 18-64,PAYMENTS TO CLIENTS (DIRECT PAYMENTS),2102986841,1000061886
02.08.2019,ADULT SOCIAL CARE,PEOPLEPLUS ILS,456.96,PHY LTS 18-64,PAYMENTS TO CLIENTS (DIRECT PAYMENTS),2102986503,1000061886
02.08.2019,ADULT SOCIAL CARE,PEOPLEPLUS ILS,462.44,PHY LTS 18-64,PAYMENTS TO CLIENTS (DIRECT PAYMENTS),2102986416,1000061886
02.08.2019,ADULT SOCIAL CARE,PEOPLEPLUS ILS,462.44,PHY LTS 18-64,PAYMENTS TO CLIENTS (DIRECT PAYMENTS),2102986649,1000061886
02.08.2019,ADULT SOCIAL CARE,PEOPLEPLUS ILS,462.44,PHY LTS 18-64,PAYMENTS TO CLIENTS (DIRECT PAYMENTS),2102986825,1000061886
02.08.2019,ADULT SOCIAL CARE,PEOPLEPLUS ILS,470.24,PHY LTS 18-64,PAYMENTS TO CLIENTS (DIRECT PAYMENTS),2102986510,1000061886
02.08.2019,ADULT SOCIAL CARE,PEOPLEPLUS ILS,483.36,PHY LTS 18-64,PAYMENTS TO CLIENTS (DIRECT PAYMENTS),2102987110,1000061886
02.08.2019,ADULT SOCIAL CARE,PEOPLEPLUS ILS,501.6,PHY LTS 18-64,PAYMENTS TO CLIENTS (DIRECT PAYMENTS),2102986925,1000061886
02.08.2019,ADULT SOCIAL CARE,PEOPLEPLUS ILS,504.24,PHY LTS 18-64,PAYMENTS TO CLIENTS (DIRECT PAYMENTS),2102986680,1000061886
02.08.2019,ADULT SOCIAL CARE,PEOPLEPLUS ILS,504.24,PHY LTS 18-64,PAYMENTS TO CLIENTS (DIRECT PAYMENTS),2102986725,1000061886
02.08.2019,ADULT SOCIAL CARE,PEOPLEPLUS ILS,504.24,PHY LTS 18-64,PAYMENTS TO CLIENTS (DIRECT PAYMENTS),2102987112,1000061886
02.08.2019,ADULT SOCIAL CARE,PEOPLEPLUS ILS,505.4,PHY LTS 18-64,PAYMENTS TO CLIENTS (DIRECT PAYMENTS),2102986693,1000061886
02.08.2019,ADULT SOCIAL CARE,PEOPLEPLUS ILS,512.08,PHY LTS 18-64,PAYMENTS TO CLIENTS (DIRECT PAYMENTS),2102986891,1000061886
02.08.2019,ADULT SOCIAL CARE,PEOPLEPLUS ILS,514.72,PHY LTS 18-64,PAYMENTS TO CLIENTS (DIRECT PAYMENTS),2102986490,1000061886
02.08.2019,ADULT SOCIAL CARE,PEOPLEPLUS ILS,517.12,PHY LTS 18-64,PAYMENTS TO CLIENTS (DIRECT PAYMENTS),2102986512,1000061886
02.08.2019,ADULT SOCIAL CARE,PEOPLEPLUS ILS,535.6,PHY LTS 18-64,PAYMENTS TO CLIENTS (DIRECT PAYMENTS),2102986791,1000061886
02.08.2019,ADULT SOCIAL CARE,FRESH IDEAS & SOLUTIONS SERVICES CIC,535.6,PHY LTS 18-64,PAYMENTS TO CLIENTS (DIRECT PAYMENTS),2102986794,1000070832
02.08.2019,ADULT SOCIAL CARE,PEOPLEPLUS ILS,535.6,PHY LTS 18-64,PAYMENTS TO CLIENTS (DIRECT PAYMENTS),2102987163,1000061886
02.08.2019,ADULT SOCIAL CARE,PEOPLEPLUS ILS,539,PHY LTS 18-64,PAYMENTS TO CLIENTS (DIRECT PAYMENTS),2102986782,1000061886
02.08.2019,ADULT SOCIAL CARE,PEOPLEPLUS ILS,556.52,PHY LTS 18-64,PAYMENTS TO CLIENTS (DIRECT PAYMENTS),2102986583,1000061886
02.08.2019,ADULT SOCIAL CARE,PEOPLEPLUS ILS,574.76,PHY LTS 18-64,PAYMENTS TO CLIENTS (DIRECT PAYMENTS),2102987124,1000061886
02.08.2019,ADULT SOCIAL CARE,PEOPLEPLUS ILS,585.2,PHY LTS 18-64,PAYMENTS TO CLIENTS (DIRECT PAYMENTS),2102987145,1000061886
02.08.2019,ADULT SOCIAL CARE,PEOPLEPLUS ILS,600.6,PHY LTS 18-64,PAYMENTS TO CLIENTS (DIRECT PAYMENTS),2102986752,1000061886
02.08.2019,ADULT SOCIAL CARE,PEOPLEPLUS ILS,619,PHY LTS 18-64,PAYMENTS TO CLIENTS (DIRECT PAYMENTS),2102986610,1000061886
02.08.2019,ADULT SOCIAL CARE,FRESH IDEAS & SOLUTIONS SERVICES CIC,619.2,PHY LTS 18-64,PAYMENTS TO CLIENTS (DIRECT PAYMENTS),2102986557,1000070832
02.08.2019,ADULT SOCIAL CARE,PEOPLEPLUS ILS,629.64,PHY LTS 18-64,PAYMENTS TO CLIENTS (DIRECT PAYMENTS),2102986910,1000061886
02.08.2019,ADULT SOCIAL CARE,PEOPLEPLUS ILS,629.64,PHY LTS 18-64,PAYMENTS TO CLIENTS (DIRECT PAYMENTS),2102986937,1000061886
02.08.2019,ADULT SOCIAL CARE,PEOPLEPLUS ILS,702.8,PHY LTS 18-64,PAYMENTS TO CLIENTS (DIRECT PAYMENTS),2102986710,1000061886
02.08.2019,ADULT SOCIAL CARE,PEOPLEPLUS ILS,702.8,PHY LTS 18-64,PAYMENTS TO CLIENTS (DIRECT PAYMENTS),2102987023,1000061886
02.08.2019,ADULT SOCIAL CARE,PEOPLEPLUS ILS,702.8,PHY LTS 18-64,PAYMENTS TO CLIENTS (DIRECT PAYMENTS),2102987132,1000061886
02.08.2019,ADULT SOCIAL CARE,PEOPLEPLUS ILS,724.24,PHY LTS 18-64,PAYMENTS TO CLIENTS (DIRECT PAYMENTS),2102986914,1000061886
02.08.2019,ADULT SOCIAL CARE,PEOPLEPLUS ILS,750.52,PHY LTS 18-64,PAYMENTS TO CLIENTS (DIRECT PAYMENTS),2102986893,1000061886
02.08.2019,ADULT SOCIAL CARE,PEOPLEPLUS ILS,765.52,PHY LTS 18-64,PAYMENTS TO CLIENTS (DIRECT PAYMENTS),2102986534,1000061886
02.08.2019,ADULT SOCIAL CARE,PEOPLEPLUS ILS,765.52,PHY LTS 18-64,PAYMENTS TO CLIENTS (DIRECT PAYMENTS),2102986635,1000061886
02.08.2019,ADULT SOCIAL CARE,PEOPLEPLUS ILS,765.52,PHY LTS 18-64,PAYMENTS TO CLIENTS (DIRECT PAYMENTS),2102987015,1000061886
02.08.2019,ADULT SOCIAL CARE,PEOPLEPLUS ILS,779.88,PHY LTS 18-64,PAYMENTS TO CLIENTS (DIRECT PAYMENTS),2102987068,1000061886
02.08.2019,ADULT SOCIAL CARE,PEOPLEPLUS ILS,784.4,PHY LTS 18-64,PAYMENTS TO CLIENTS (DIRECT PAYMENTS),2102986479,1000061886
02.08.2019,ADULT SOCIAL CARE,PEOPLEPLUS ILS,786.2,PHY LTS 18-64,PAYMENTS TO CLIENTS (DIRECT PAYMENTS),2102986931,1000061886
02.08.2019,ADULT SOCIAL CARE,PEOPLEPLUS ILS,796.88,PHY LTS 18-64,PAYMENTS TO CLIENTS (DIRECT PAYMENTS),2102986875,1000061886
02.08.2019,ADULT SOCIAL CARE,FRESH IDEAS & SOLUTIONS SERVICES CIC,828.2,PHY LTS 18-64,PAYMENTS TO CLIENTS (DIRECT PAYMENTS),2102987066,1000070832
02.08.2019,ADULT SOCIAL CARE,FRESH IDEAS & SOLUTIONS SERVICES CIC,870,PHY LTS 18-64,PAYMENTS TO CLIENTS (DIRECT PAYMENTS),2102986468,1000070832
02.08.2019,ADULT SOCIAL CARE,FRESH IDEAS & SOLUTIONS SERVICES CIC,870,PHY LTS 18-64,PAYMENTS TO CLIENTS (DIRECT PAYMENTS),2102986862,1000070832
02.08.2019,ADULT SOCIAL CARE,PEOPLEPLUS ILS,877.8,PHY LTS 18-64,PAYMENTS TO CLIENTS (DIRECT PAYMENTS),2102986880,1000061886
02.08.2019,ADULT SOCIAL CARE,PEOPLEPLUS ILS,885.96,PHY LTS 18-64,PAYMENTS TO CLIENTS (DIRECT PAYMENTS),2102986541,1000061886
02.08.2019,ADULT SOCIAL CARE,PEOPLEPLUS ILS,890.92,PHY LTS 18-64,PAYMENTS TO CLIENTS (DIRECT PAYMENTS),2102986958,1000061886
02.08.2019,ADULT SOCIAL CARE,PEOPLEPLUS ILS,891.52,PHY LTS 18-64,PAYMENTS TO CLIENTS (DIRECT PAYMENTS),2102987154,1000061886
02.08.2019,ADULT SOCIAL CARE,PEOPLEPLUS ILS,894.76,PHY LTS 18-64,PAYMENTS TO CLIENTS (DIRECT PAYMENTS),2102986604,1000061886
02.08.2019,ADULT SOCIAL CARE,PEOPLEPLUS ILS,911.8,PHY LTS 18-64,PAYMENTS TO CLIENTS (DIRECT PAYMENTS),2102987081,1000061886
02.08.2019,ADULT SOCIAL CARE,PEOPLEPLUS ILS,932.8,PHY LTS 18-64,PAYMENTS TO CLIENTS (DIRECT PAYMENTS),2102987028,1000061886
02.08.2019,ADULT SOCIAL CARE,PEOPLEPLUS ILS,937.64,PHY LTS 18-64,PAYMENTS TO CLIENTS (DIRECT PAYMENTS),2102987032,1000061886
02.08.2019,ADULT SOCIAL CARE,PEOPLEPLUS ILS,"1,003.20",PHY LTS 18-64,PAYMENTS TO CLIENTS (DIRECT PAYMENTS),2102987027,1000061886
02.08.2019,ADULT SOCIAL CARE,PEOPLEPLUS ILS,"1,015.20",PHY LTS 18-64,PAYMENTS TO CLIENTS (DIRECT PAYMENTS),2102986347,1000061886
02.08.2019,ADULT SOCIAL CARE,PEOPLEPLUS ILS,"1,052.64",PHY LTS 18-64,PAYMENTS TO CLIENTS (DIRECT PAYMENTS),2102986882,1000061886
02.08.2019,ADULT SOCIAL CARE,PEOPLEPLUS ILS,"1,120.80",PHY LTS 18-64,PAYMENTS TO CLIENTS (DIRECT PAYMENTS),2102986642,1000061886
02.08.2019,ADULT SOCIAL CARE,PEOPLEPLUS ILS,"1,146.40",PHY LTS 18-64,PAYMENTS TO CLIENTS (DIRECT PAYMENTS),2102986760,1000061886
02.08.2019,ADULT SOCIAL CARE,PEOPLEPLUS ILS,"1,150.52",PHY LTS 18-64,PAYMENTS TO CLIENTS (DIRECT PAYMENTS),2102986769,1000061886
02.08.2019,ADULT SOCIAL CARE,PEOPLEPLUS ILS,"1,266.04",PHY LTS 18-64,PAYMENTS TO CLIENTS (DIRECT PAYMENTS),2102986556,1000061886
02.08.2019,ADULT SOCIAL CARE,PEOPLEPLUS ILS,"1,426.00",PHY LTS 18-64,PAYMENTS TO CLIENTS (DIRECT PAYMENTS),2102986358,1000061886
02.08.2019,ADULT SOCIAL CARE,PEOPLEPLUS ILS,"1,497.00",PHY LTS 18-64,PAYMENTS TO CLIENTS (DIRECT PAYMENTS),2102986993,1000061886
02.08.2019,ADULT SOCIAL CARE,PEOPLEPLUS ILS,"1,616.52",PHY LTS 18-64,PAYMENTS TO CLIENTS (DIRECT PAYMENTS),2102987105,1000061886
02.08.2019,ADULT SOCIAL CARE,PEOPLEPLUS ILS,"1,722.68",PHY LTS 18-64,PAYMENTS TO CLIENTS (DIRECT PAYMENTS),2102987117,1000061886
02.08.2019,ADULT SOCIAL CARE,PEOPLEPLUS ILS,"1,733.56",PHY LTS 18-64,PAYMENTS TO CLIENTS (DIRECT PAYMENTS),2102987127,1000061886
02.08.2019,ADULT SOCIAL CARE,PEOPLEPLUS ILS,"1,909.40",PHY LTS 18-64,PAYMENTS TO CLIENTS (DIRECT PAYMENTS),2102986810,1000061886
02.08.2019,ADULT SOCIAL CARE,PEOPLEPLUS ILS,"1,998.60",PHY LTS 18-64,PAYMENTS TO CLIENTS (DIRECT PAYMENTS),2102986916,1000061886
02.08.2019,ADULT SOCIAL CARE,PEOPLEPLUS ILS,"2,076.20",PHY LTS 18-64,PAYMENTS TO CLIENTS (DIRECT PAYMENTS),2102986991,1000061886
02.08.2019,ADULT SOCIAL CARE,PEOPLEPLUS ILS,"2,252.96",PHY LTS 18-64,PAYMENTS TO CLIENTS (DIRECT PAYMENTS),2102987119,1000061886
02.08.2019,ADULT SOCIAL CARE,PEOPLEPLUS ILS,"2,326.60",PHY LTS 18-64,PAYMENTS TO CLIENTS (DIRECT PAYMENTS),2102986447,1000061886
02.08.2019,ADULT SOCIAL CARE,PEOPLEPLUS ILS,"2,989.44",PHY LTS 18-64,PAYMENTS TO CLIENTS (DIRECT PAYMENTS),2102987063,1000061886
02.08.2019,ADULT SOCIAL CARE,PEOPLEPLUS ILS,"3,254.00",PHY LTS 18-64,PAYMENTS TO CLIENTS (DIRECT PAYMENTS),2102986704,1000061886
02.08.2019,ADULT SOCIAL CARE,PEOPLEPLUS ILS,"3,307.52",PHY LTS 18-64,PAYMENTS TO CLIENTS (DIRECT PAYMENTS),2102986724,1000061886
02.08.2019,ADULT SOCIAL CARE,PEOPLEPLUS ILS,"3,479.04",PHY LTS 18-64,PAYMENTS TO CLIENTS (DIRECT PAYMENTS),2102986427,1000061886
02.08.2019,ADULT SOCIAL CARE,PEOPLEPLUS ILS,"3,576.40",PHY LTS 18-64,PAYMENTS TO CLIENTS (DIRECT PAYMENTS),2102986660,1000061886
02.08.2019,ADULT SOCIAL CARE,PEOPLEPLUS ILS,"7,698.60",PHY LTS 18-64,PAYMENTS TO CLIENTS (DIRECT PAYMENTS),2102986574,1000061886
02.08.2019,ADULT SOCIAL CARE,SOUTHWARK CYPRIOT DAY CENTRE LTD,288,PHY LTS 65+,DAYCARE,2102987139,1000067736
02.08.2019,ADULT SOCIAL CARE,AGE UK  LEWISHAM & SOUTHWARK,360,PHY LTS 65+,DAYCARE,2102986420,1000066751
02.08.2019,ADULT SOCIAL CARE,AGE UK  LEWISHAM & SOUTHWARK,360,PHY LTS 65+,DAYCARE,2102986428,1000066751
02.08.2019,ADULT SOCIAL CARE,AGE UK  LEWISHAM & SOUTHWARK,360,PHY LTS 65+,DAYCARE,2102986457,1000066751
02.08.2019,ADULT SOCIAL CARE,AGE UK  LEWISHAM & SOUTHWARK,360,PHY LTS 65+,DAYCARE,2102986551,1000066751
02.08.2019,ADULT SOCIAL CARE,AGE UK  LEWISHAM & SOUTHWARK,360,PHY LTS 65+,DAYCARE,2102986620,1000066751
02.08.2019,ADULT SOCIAL CARE,AGE UK  LEWISHAM & SOUTHWARK,360,PHY LTS 65+,DAYCARE,2102986643,1000066751
02.08.2019,ADULT SOCIAL CARE,BLACK ELDER GROUP SWK,360,PHY LTS 65+,DAYCARE,2102986657,1000067369
02.08.2019,ADULT SOCIAL CARE,AGE UK  LEWISHAM & SOUTHWARK,360,PHY LTS 65+,DAYCARE,2102986824,1000066751
02.08.2019,ADULT SOCIAL CARE,AGE UK  LEWISHAM & SOUTHWARK,360,PHY LTS 65+,DAYCARE,2102986846,1000066751
02.08.2019,ADULT SOCIAL CARE,AGE UK  LEWISHAM & SOUTHWARK,360,PHY LTS 65+,DAYCARE,2102987046,1000066751
02.08.2019,ADULT SOCIAL CARE,AGE UK  LEWISHAM & SOUTHWARK,360,PHY LTS 65+,DAYCARE,2102987140,1000066751
02.08.2019,ADULT SOCIAL CARE,AGE UK  LEWISHAM & SOUTHWARK,360,PHY LTS 65+,DAYCARE,2102987162,1000066751
02.08.2019,ADULT SOCIAL CARE,AGE UK  LEWISHAM & SOUTHWARK,540,PHY LTS 65+,DAYCARE,2102986350,1000066751
02.08.2019,ADULT SOCIAL CARE,AGE UK  LEWISHAM & SOUTHWARK,540,PHY LTS 65+,DAYCARE,2102986456,1000066751
02.08.2019,ADULT SOCIAL CARE,AGE UK  LEWISHAM & SOUTHWARK,540,PHY LTS 65+,DAYCARE,2102986549,1000066751
02.08.2019,ADULT SOCIAL CARE,BLACK ELDER GROUP SWK,540,PHY LTS 65+,DAYCARE,2102986605,1000067369
02.08.2019,ADULT SOCIAL CARE,AGE CONCERN LEWISHAM & SOUTHWARK,540,PHY LTS 65+,DAYCARE,2102986738,1000057586
02.08.2019,ADULT SOCIAL CARE,AGE UK  LEWISHAM & SOUTHWARK,572.14,PHY LTS 65+,DAYCARE,2102987099,1000066751
02.08.2019,ADULT SOCIAL CARE,AGE UK  LEWISHAM & SOUTHWARK,720,PHY LTS 65+,DAYCARE,2102986945,1000066751
02.08.2019,ADULT SOCIAL CARE,AGE UK  LEWISHAM & SOUTHWARK,720,PHY LTS 65+,DAYCARE,2102987013,1000066751
02.08.2019,ADULT SOCIAL CARE,BLACK ELDER GROUP SWK,900,PHY LTS 65+,DAYCARE,2102986995,1000067369
02.08.2019,ADULT SOCIAL CARE,REDACTED PERSONAL INFORMATION,-312,PHY LTS 65+,DISCRETIONARY FLEXIBLE FEES & INCOME,REDACTED,REDACTED
02.08.2019,ADULT SOCIAL CARE,PEOPLEPLUS ILS,-559.57,PHY LTS 65+,DISCRETIONARY FLEXIBLE FEES & INCOME,2102986727,1000061886
02.08.2019,ADULT SOCIAL CARE,PEOPLEPLUS ILS,-435.6,PHY LTS 65+,DISCRETIONARY FLEXIBLE FEES & INCOME,2102986766,1000061886
02.08.2019,ADULT SOCIAL CARE,PEOPLEPLUS ILS,-434.66,PHY LTS 65+,DISCRETIONARY FLEXIBLE FEES & INCOME,2102986687,1000061886
02.08.2019,ADULT SOCIAL CARE,PEOPLEPLUS ILS,-389.16,PHY LTS 65+,DISCRETIONARY FLEXIBLE FEES & INCOME,2102986675,1000061886
02.08.2019,ADULT SOCIAL CARE,PEOPLEPLUS ILS,-281.64,PHY LTS 65+,DISCRETIONARY FLEXIBLE FEES & INCOME,2102986411,1000061886
02.08.2019,ADULT SOCIAL CARE,PEOPLEPLUS ILS,-254.22,PHY LTS 65+,DISCRETIONARY FLEXIBLE FEES & INCOME,2102986568,1000061886
02.08.2019,ADULT SOCIAL CARE,HUMBLE HEALTH CARE LTD,"1,671.48",PHY LTS 65+,HOMECARE - SPOT,2102986073,1000079270
02.08.2019,ADULT SOCIAL CARE,REDACTED PERSONAL INFORMATION,261.24,PHY LTS 65+,PAYMENTS TO CLIENTS (DIRECT PAYMENTS),REDACTED,REDACTED
02.08.2019,ADULT SOCIAL CARE,REDACTED PERSONAL INFORMATION,385.76,PHY LTS 65+,PAYMENTS TO CLIENTS (DIRECT PAYMENTS),REDACTED,REDACTED
02.08.2019,ADULT SOCIAL CARE,REDACTED PERSONAL INFORMATION,417.72,PHY LTS 65+,PAYMENTS TO CLIENTS (DIRECT PAYMENTS),REDACTED,REDACTED
02.08.2019,ADULT SOCIAL CARE,REDACTED PERSONAL INFORMATION,479.8,PHY LTS 65+,PAYMENTS TO CLIENTS (DIRECT PAYMENTS),REDACTED,REDACTED
02.08.2019,ADULT SOCIAL CARE,REDACTED PERSONAL INFORMATION,542.52,PHY LTS 65+,PAYMENTS TO CLIENTS (DIRECT PAYMENTS),REDACTED,REDACTED
02.08.2019,ADULT SOCIAL CARE,REDACTED PERSONAL INFORMATION,605.2,PHY LTS 65+,PAYMENTS TO CLIENTS (DIRECT PAYMENTS),REDACTED,REDACTED
02.08.2019,ADULT SOCIAL CARE,REDACTED PERSONAL INFORMATION,627,PHY LTS 65+,PAYMENTS TO CLIENTS (DIRECT PAYMENTS),REDACTED,REDACTED
02.08.2019,ADULT SOCIAL CARE,REDACTED PERSONAL INFORMATION,664,PHY LTS 65+,PAYMENTS TO CLIENTS (DIRECT PAYMENTS),REDACTED,REDACTED
02.08.2019,ADULT SOCIAL CARE,REDACTED PERSONAL INFORMATION,741.08,PHY LTS 65+,PAYMENTS TO CLIENTS (DIRECT PAYMENTS),REDACTED,REDACTED
02.08.2019,ADULT SOCIAL CARE,REDACTED PERSONAL INFORMATION,883.48,PHY LTS 65+,PAYMENTS TO CLIENTS (DIRECT PAYMENTS),REDACTED,REDACTED
02.08.2019,ADULT SOCIAL CARE,REDACTED PERSONAL INFORMATION,888.28,PHY LTS 65+,PAYMENTS TO CLIENTS (DIRECT PAYMENTS),REDACTED,REDACTED
02.08.2019,ADULT SOCIAL CARE,REDACTED PERSONAL INFORMATION,971.84,PHY LTS 65+,PAYMENTS TO CLIENTS (DIRECT PAYMENTS),REDACTED,REDACTED
02.08.2019,ADULT SOCIAL CARE,REDACTED PERSONAL INFORMATION,994,PHY LTS 65+,PAYMENTS TO CLIENTS (DIRECT PAYMENTS),REDACTED,REDACTED
02.08.2019,ADULT SOCIAL CARE,REDACTED PERSONAL INFORMATION,"1,023.20",PHY LTS 65+,PAYMENTS TO CLIENTS (DIRECT PAYMENTS),REDACTED,REDACTED
02.08.2019,ADULT SOCIAL CARE,REDACTED PERSONAL INFORMATION,"1,107.72",PHY LTS 65+,PAYMENTS TO CLIENTS (DIRECT PAYMENTS),REDACTED,REDACTED
02.08.2019,ADULT SOCIAL CARE,REDACTED PERSONAL INFORMATION,"1,149.52",PHY LTS 65+,PAYMENTS TO CLIENTS (DIRECT PAYMENTS),REDACTED,REDACTED
02.08.2019,ADULT SOCIAL CARE,REDACTED PERSONAL INFORMATION,"1,586.60",PHY LTS 65+,PAYMENTS TO CLIENTS (DIRECT PAYMENTS),REDACTED,REDACTED
02.08.2019,ADULT SOCIAL CARE,REDACTED PERSONAL INFORMATION,"1,617.84",PHY LTS 65+,PAYMENTS TO CLIENTS (DIRECT PAYMENTS),REDACTED,REDACTED
02.08.2019,ADULT SOCIAL CARE,PEOPLEPLUS ILS,"-6,981.51",PHY LTS 65+,PAYMENTS TO CLIENTS (DIRECT PAYMENTS),2102986756,1000061886
02.08.2019,ADULT SOCIAL CARE,PEOPLEPLUS ILS,-420.45,PHY LTS 65+,PAYMENTS TO CLIENTS (DIRECT PAYMENTS),2102986497,1000061886
02.08.2019,ADULT SOCIAL CARE,PEOPLEPLUS ILS,259.72,PHY LTS 65+,PAYMENTS TO CLIENTS (DIRECT PAYMENTS),2102986577,1000061886
02.08.2019,ADULT SOCIAL CARE,PEOPLEPLUS ILS,263.92,PHY LTS 65+,PAYMENTS TO CLIENTS (DIRECT PAYMENTS),2102986699,1000061886
02.08.2019,ADULT SOCIAL CARE,PEOPLEPLUS ILS,308.6,PHY LTS 65+,PAYMENTS TO CLIENTS (DIRECT PAYMENTS),2102986412,1000061886
02.08.2019,ADULT SOCIAL CARE,PEOPLEPLUS ILS,323.32,PHY LTS 65+,PAYMENTS TO CLIENTS (DIRECT PAYMENTS),2102986877,1000061886
02.08.2019,ADULT SOCIAL CARE,PEOPLEPLUS ILS,337.04,PHY LTS 65+,PAYMENTS TO CLIENTS (DIRECT PAYMENTS),2102986513,1000061886
02.08.2019,ADULT SOCIAL CARE,PEOPLEPLUS ILS,359.16,PHY LTS 65+,PAYMENTS TO CLIENTS (DIRECT PAYMENTS),2102986589,1000061886
02.08.2019,ADULT SOCIAL CARE,PEOPLEPLUS ILS,365,PHY LTS 65+,PAYMENTS TO CLIENTS (DIRECT PAYMENTS),2102987135,1000061886
02.08.2019,ADULT SOCIAL CARE,PEOPLEPLUS ILS,365.76,PHY LTS 65+,PAYMENTS TO CLIENTS (DIRECT PAYMENTS),2102986678,1000061886
02.08.2019,ADULT SOCIAL CARE,PEOPLEPLUS ILS,376.2,PHY LTS 65+,PAYMENTS TO CLIENTS (DIRECT PAYMENTS),2102986530,1000061886
02.08.2019,ADULT SOCIAL CARE,PEOPLEPLUS ILS,407.56,PHY LTS 65+,PAYMENTS TO CLIENTS (DIRECT PAYMENTS),2102986621,1000061886
02.08.2019,ADULT SOCIAL CARE,PEOPLEPLUS ILS,418,PHY LTS 65+,PAYMENTS TO CLIENTS (DIRECT PAYMENTS),2102986780,1000061886
02.08.2019,ADULT SOCIAL CARE,PEOPLEPLUS ILS,423.52,PHY LTS 65+,PAYMENTS TO CLIENTS (DIRECT PAYMENTS),2102986749,1000061886
02.08.2019,ADULT SOCIAL CARE,PEOPLEPLUS ILS,452,PHY LTS 65+,PAYMENTS TO CLIENTS (DIRECT PAYMENTS),2102986983,1000061886
02.08.2019,ADULT SOCIAL CARE,PEOPLEPLUS ILS,456.32,PHY LTS 65+,PAYMENTS TO CLIENTS (DIRECT PAYMENTS),2102986376,1000061886
02.08.2019,ADULT SOCIAL CARE,PEOPLEPLUS ILS,459.8,PHY LTS 65+,PAYMENTS TO CLIENTS (DIRECT PAYMENTS),2102987060,1000061886
02.08.2019,ADULT SOCIAL CARE,PEOPLEPLUS ILS,493.72,PHY LTS 65+,PAYMENTS TO CLIENTS (DIRECT PAYMENTS),2102986686,1000061886
02.08.2019,ADULT SOCIAL CARE,PEOPLEPLUS ILS,546.04,PHY LTS 65+,PAYMENTS TO CLIENTS (DIRECT PAYMENTS),2102986448,1000061886
02.08.2019,ADULT SOCIAL CARE,PEOPLEPLUS ILS,546.04,PHY LTS 65+,PAYMENTS TO CLIENTS (DIRECT PAYMENTS),2102986932,1000061886
02.08.2019,ADULT SOCIAL CARE,PEOPLEPLUS ILS,552.2,PHY LTS 65+,PAYMENTS TO CLIENTS (DIRECT PAYMENTS),2102986688,1000061886
02.08.2019,ADULT SOCIAL CARE,PEOPLEPLUS ILS,556.52,PHY LTS 65+,PAYMENTS TO CLIENTS (DIRECT PAYMENTS),2102986629,1000061886
02.08.2019,ADULT SOCIAL CARE,PEOPLEPLUS ILS,566.96,PHY LTS 65+,PAYMENTS TO CLIENTS (DIRECT PAYMENTS),2102986550,1000061886
02.08.2019,ADULT SOCIAL CARE,PEOPLEPLUS ILS,566.96,PHY LTS 65+,PAYMENTS TO CLIENTS (DIRECT PAYMENTS),2102986826,1000061886
02.08.2019,ADULT SOCIAL CARE,PEOPLEPLUS ILS,573.2,PHY LTS 65+,PAYMENTS TO CLIENTS (DIRECT PAYMENTS),2102987098,1000061886
02.08.2019,ADULT SOCIAL CARE,PEOPLEPLUS ILS,587.32,PHY LTS 65+,PAYMENTS TO CLIENTS (DIRECT PAYMENTS),2102987008,1000061886
02.08.2019,ADULT SOCIAL CARE,PEOPLEPLUS ILS,587.84,PHY LTS 65+,PAYMENTS TO CLIENTS (DIRECT PAYMENTS),2102986919,1000061886
02.08.2019,ADULT SOCIAL CARE,PEOPLEPLUS ILS,598.32,PHY LTS 65+,PAYMENTS TO CLIENTS (DIRECT PAYMENTS),2102986814,1000061886
02.08.2019,ADULT SOCIAL CARE,PEOPLEPLUS ILS,601.16,PHY LTS 65+,PAYMENTS TO CLIENTS (DIRECT PAYMENTS),2102986787,1000061886
02.08.2019,ADULT SOCIAL CARE,PEOPLEPLUS ILS,608.72,PHY LTS 65+,PAYMENTS TO CLIENTS (DIRECT PAYMENTS),2102986692,1000061886
02.08.2019,ADULT SOCIAL CARE,PEOPLEPLUS ILS,619.2,PHY LTS 65+,PAYMENTS TO CLIENTS (DIRECT PAYMENTS),2102986618,1000061886
02.08.2019,ADULT SOCIAL CARE,PEOPLEPLUS ILS,632.68,PHY LTS 65+,PAYMENTS TO CLIENTS (DIRECT PAYMENTS),2102986707,1000061886
02.08.2019,ADULT SOCIAL CARE,PEOPLEPLUS ILS,633.04,PHY LTS 65+,PAYMENTS TO CLIENTS (DIRECT PAYMENTS),2102986410,1000061886
02.08.2019,ADULT SOCIAL CARE,PEOPLEPLUS ILS,650.56,PHY LTS 65+,PAYMENTS TO CLIENTS (DIRECT PAYMENTS),2102987143,1000061886
02.08.2019,ADULT SOCIAL CARE,PEOPLEPLUS ILS,671.44,PHY LTS 65+,PAYMENTS TO CLIENTS (DIRECT PAYMENTS),2102987076,1000061886
02.08.2019,ADULT SOCIAL CARE,PEOPLEPLUS ILS,680.52,PHY LTS 65+,PAYMENTS TO CLIENTS (DIRECT PAYMENTS),2102987067,1000061886
02.08.2019,ADULT SOCIAL CARE,PEOPLEPLUS ILS,689.72,PHY LTS 65+,PAYMENTS TO CLIENTS (DIRECT PAYMENTS),2102986458,1000061886
02.08.2019,ADULT SOCIAL CARE,PEOPLEPLUS ILS,692.6,PHY LTS 65+,PAYMENTS TO CLIENTS (DIRECT PAYMENTS),2102986926,1000061886
02.08.2019,ADULT SOCIAL CARE,PEOPLEPLUS ILS,702.8,PHY LTS 65+,PAYMENTS TO CLIENTS (DIRECT PAYMENTS),2102987115,1000061886
02.08.2019,ADULT SOCIAL CARE,PEOPLEPLUS ILS,739.4,PHY LTS 65+,PAYMENTS TO CLIENTS (DIRECT PAYMENTS),2102986383,1000061886
02.08.2019,ADULT SOCIAL CARE,PEOPLEPLUS ILS,741.96,PHY LTS 65+,PAYMENTS TO CLIENTS (DIRECT PAYMENTS),2102986480,1000061886
02.08.2019,ADULT SOCIAL CARE,PEOPLEPLUS ILS,750.52,PHY LTS 65+,PAYMENTS TO CLIENTS (DIRECT PAYMENTS),2102986942,1000061886
02.08.2019,ADULT SOCIAL CARE,PEOPLEPLUS ILS,753.04,PHY LTS 65+,PAYMENTS TO CLIENTS (DIRECT PAYMENTS),2102986924,1000061886
02.08.2019,ADULT SOCIAL CARE,PEOPLEPLUS ILS,774.52,PHY LTS 65+,PAYMENTS TO CLIENTS (DIRECT PAYMENTS),2102986731,1000061886
02.08.2019,ADULT SOCIAL CARE,PEOPLEPLUS ILS,794,PHY LTS 65+,PAYMENTS TO CLIENTS (DIRECT PAYMENTS),2102987157,1000061886
02.08.2019,ADULT SOCIAL CARE,PEOPLEPLUS ILS,801.8,PHY LTS 65+,PAYMENTS TO CLIENTS (DIRECT PAYMENTS),2102986923,1000061886
02.08.2019,ADULT SOCIAL CARE,HESTIA HOUSING & SUPPORT,804.64,PHY LTS 65+,PAYMENTS TO CLIENTS (DIRECT PAYMENTS),2102986998,1000066260
02.08.2019,ADULT SOCIAL CARE,PEOPLEPLUS ILS,815.12,PHY LTS 65+,PAYMENTS TO CLIENTS (DIRECT PAYMENTS),2102986723,1000061886
02.08.2019,ADULT SOCIAL CARE,PEOPLEPLUS ILS,844.72,PHY LTS 65+,PAYMENTS TO CLIENTS (DIRECT PAYMENTS),2102987035,1000061886
02.08.2019,ADULT SOCIAL CARE,PEOPLEPLUS ILS,870,PHY LTS 65+,PAYMENTS TO CLIENTS (DIRECT PAYMENTS),2102986628,1000061886
02.08.2019,ADULT SOCIAL CARE,PEOPLEPLUS ILS,890.92,PHY LTS 65+,PAYMENTS TO CLIENTS (DIRECT PAYMENTS),2102987062,1000061886
02.08.2019,ADULT SOCIAL CARE,PEOPLEPLUS ILS,945.64,PHY LTS 65+,PAYMENTS TO CLIENTS (DIRECT PAYMENTS),2102986777,1000061886
02.08.2019,ADULT SOCIAL CARE,PEOPLEPLUS ILS,964.04,PHY LTS 65+,PAYMENTS TO CLIENTS (DIRECT PAYMENTS),2102987047,1000061886
02.08.2019,ADULT SOCIAL CARE,PEOPLEPLUS ILS,"1,026.76",PHY LTS 65+,PAYMENTS TO CLIENTS (DIRECT PAYMENTS),2102986797,1000061886
02.08.2019,ADULT SOCIAL CARE,PEOPLEPLUS ILS,"1,032.40",PHY LTS 65+,PAYMENTS TO CLIENTS (DIRECT PAYMENTS),2102986462,1000061886
02.08.2019,ADULT SOCIAL CARE,PEOPLEPLUS ILS,"1,062.52",PHY LTS 65+,PAYMENTS TO CLIENTS (DIRECT PAYMENTS),2102986703,1000061886
02.08.2019,ADULT SOCIAL CARE,PEOPLEPLUS ILS,"1,133.68",PHY LTS 65+,PAYMENTS TO CLIENTS (DIRECT PAYMENTS),2102987136,1000061886
02.08.2019,ADULT SOCIAL CARE,PEOPLEPLUS ILS,"1,137.24",PHY LTS 65+,PAYMENTS TO CLIENTS (DIRECT PAYMENTS),2102986451,1000061886
02.08.2019,ADULT SOCIAL CARE,PEOPLEPLUS ILS,"1,141.72",PHY LTS 65+,PAYMENTS TO CLIENTS (DIRECT PAYMENTS),2102987019,1000061886
02.08.2019,ADULT SOCIAL CARE,PEOPLEPLUS ILS,"1,192.40",PHY LTS 65+,PAYMENTS TO CLIENTS (DIRECT PAYMENTS),2102986676,1000061886
02.08.2019,ADULT SOCIAL CARE,PEOPLEPLUS ILS,"1,288.00",PHY LTS 65+,PAYMENTS TO CLIENTS (DIRECT PAYMENTS),2102986442,1000061886
02.08.2019,ADULT SOCIAL CARE,PEOPLEPLUS ILS,"1,413.40",PHY LTS 65+,PAYMENTS TO CLIENTS (DIRECT PAYMENTS),2102987129,1000061886
02.08.2019,ADULT SOCIAL CARE,PEOPLEPLUS ILS,"1,488.20",PHY LTS 65+,PAYMENTS TO CLIENTS (DIRECT PAYMENTS),2102987125,1000061886
02.08.2019,ADULT SOCIAL CARE,PEOPLEPLUS ILS,"1,517.92",PHY LTS 65+,PAYMENTS TO CLIENTS (DIRECT PAYMENTS),2102986652,1000061886
02.08.2019,ADULT SOCIAL CARE,PEOPLEPLUS ILS,"1,545.92",PHY LTS 65+,PAYMENTS TO CLIENTS (DIRECT PAYMENTS),2102987155,1000061886
02.08.2019,ADULT SOCIAL CARE,PEOPLEPLUS ILS,"1,634.32",PHY LTS 65+,PAYMENTS TO CLIENTS (DIRECT PAYMENTS),2102986609,1000061886
02.08.2019,ADULT SOCIAL CARE,PEOPLEPLUS ILS,"1,733.92",PHY LTS 65+,PAYMENTS TO CLIENTS (DIRECT PAYMENTS),2102986623,1000061886
02.08.2019,ADULT SOCIAL CARE,PEOPLEPLUS ILS,"1,820.00",PHY LTS 65+,PAYMENTS TO CLIENTS (DIRECT PAYMENTS),2102986532,1000061886
02.08.2019,ADULT SOCIAL CARE,PEOPLEPLUS ILS,"1,886.00",PHY LTS 65+,PAYMENTS TO CLIENTS (DIRECT PAYMENTS),2102986709,1000061886
02.08.2019,ADULT SOCIAL CARE,PEOPLEPLUS ILS,"1,924.08",PHY LTS 65+,PAYMENTS TO CLIENTS (DIRECT PAYMENTS),2102986837,1000061886
02.08.2019,ADULT SOCIAL CARE,PEOPLEPLUS ILS,"2,014.48",PHY LTS 65+,PAYMENTS TO CLIENTS (DIRECT PAYMENTS),2102986952,1000061886
02.08.2019,ADULT SOCIAL CARE,PEOPLEPLUS ILS,"2,035.00",PHY LTS 65+,PAYMENTS TO CLIENTS (DIRECT PAYMENTS),2102986535,1000061886
02.08.2019,ADULT SOCIAL CARE,PEOPLEPLUS ILS,"2,201.00",PHY LTS 65+,PAYMENTS TO CLIENTS (DIRECT PAYMENTS),2102986929,1000061886
02.08.2019,ADULT SOCIAL CARE,PEOPLEPLUS ILS,"2,674.00",PHY LTS 65+,PAYMENTS TO CLIENTS (DIRECT PAYMENTS),2102987041,1000061886
02.08.2019,ADULT SOCIAL CARE,PEOPLEPLUS ILS,"3,383.60",PHY LTS 65+,PAYMENTS TO CLIENTS (DIRECT PAYMENTS),2102987156,1000061886
02.08.2019,ADULT SOCIAL CARE,THAMES HOMECARE SERVICE LTD,"-5,029.90",REABLEMENT CONTRACT,HOMECARE - C&V,5902371228,1000079295
02.08.2019,ADULT SOCIAL CARE,THAMES HOMECARE SERVICE LTD,"27,300.00",REABLEMENT CONTRACT,HOMECARE - C&V,5902371227,1000079295
02.08.2019,ADULT SOCIAL CARE,PEOPLEPLUS ILS,"1,188.00",S.75 PHB LBS SHARE,RECOVERABLE COSTS INCL. HEALTH,2102987109,1000061886
02.08.2019,ADULT SOCIAL CARE,LEWISHAM INDO CHINESE COMMUNITY,258.72,SEN LTS 65+,DAYCARE,2102987165,1000076593
02.08.2019,ADULT SOCIAL CARE,RESOURCES FOR AUTISM,"7,778.00",SHORT BREAKS,EXTERNAL AGENCIES AND BODIES,5902371474,1000062540
02.08.2019,ADULT SOCIAL CARE,AGE UK  LEWISHAM & SOUTHWARK,-392.14,SOCIAL ISOLATION,DAYCARE,2102987100,1000066751
02.08.2019,ADULT SOCIAL CARE,AGE UK  LEWISHAM & SOUTHWARK,360,SOCIAL ISOLATION,DAYCARE,2102986390,1000066751
02.08.2019,ADULT SOCIAL CARE,AGE UK  LEWISHAM & SOUTHWARK,360,SOCIAL ISOLATION,DAYCARE,2102986743,1000066751
02.08.2019,ADULT SOCIAL CARE,AGE UK  LEWISHAM & SOUTHWARK,540,SOCIAL ISOLATION,DAYCARE,2102986397,1000066751
02.08.2019,ADULT SOCIAL CARE,AGE UK  LEWISHAM & SOUTHWARK,540,SOCIAL ISOLATION,DAYCARE,2102986921,1000066751
02.08.2019,ADULT SOCIAL CARE,AGE UK  LEWISHAM & SOUTHWARK,540,SOCIAL ISOLATION,DAYCARE,2102987026,1000066751
02.08.2019,ADULT SOCIAL CARE,BEDE CAFE PROJECT,"1,168.00",SOCIAL ISOLATION,DAYCARE,2102986125,1553877
02.08.2019,ADULT SOCIAL CARE,REDACTED PERSONAL INFORMATION,614.4,SOCIAL ISOLATION,PAYMENTS TO CLIENTS (DIRECT PAYMENTS),REDACTED,REDACTED
02.08.2019,ADULT SOCIAL CARE,REDACTED PERSONAL INFORMATION,839.6,SOCIAL ISOLATION,PAYMENTS TO CLIENTS (DIRECT PAYMENTS),REDACTED,REDACTED
02.08.2019,ADULT SOCIAL CARE,PEOPLEPLUS ILS,271.72,SOCIAL ISOLATION,PAYMENTS TO CLIENTS (DIRECT PAYMENTS),2102986654,1000061886
02.08.2019,ADULT SOCIAL CARE,PEOPLEPLUS ILS,459.8,SOCIAL ISOLATION,PAYMENTS TO CLIENTS (DIRECT PAYMENTS),2102986393,1000061886
02.08.2019,ADULT SOCIAL CARE,PEOPLEPLUS ILS,483.36,SOCIAL ISOLATION,PAYMENTS TO CLIENTS (DIRECT PAYMENTS),2102986796,1000061886
02.08.2019,ADULT SOCIAL CARE,PEOPLEPLUS ILS,501.6,SOCIAL ISOLATION,PAYMENTS TO CLIENTS (DIRECT PAYMENTS),2102987077,1000061886
02.08.2019,ADULT SOCIAL CARE,PEOPLEPLUS ILS,"1,218.56",SOCIAL ISOLATION,PAYMENTS TO CLIENTS (DIRECT PAYMENTS),2102986951,1000061886
02.08.2019,ADULT SOCIAL CARE,PEOPLEPLUS ILS,"1,329.80",SOCIAL ISOLATION,PAYMENTS TO CLIENTS (DIRECT PAYMENTS),2102987016,1000061886
02.08.2019,ADULT SOCIAL CARE,PEOPLEPLUS ILS,"2,027.12",SOCIAL ISOLATION,PAYMENTS TO CLIENTS (DIRECT PAYMENTS),2102986590,1000061886
02.08.2019,ADULT SOCIAL CARE,PEOPLEPLUS ILS,"2,131.20",SOCIAL ISOLATION,PAYMENTS TO CLIENTS (DIRECT PAYMENTS),2102987128,1000061886
02.08.2019,ADULT SOCIAL CARE,REDACTED PERSONAL INFORMATION,259.68,SPEC NEEDS CHILDREN,PAYMENTS TO CLIENTS (DIRECT PAYMENTS),REDACTED,REDACTED
02.08.2019,ADULT SOCIAL CARE,REDACTED PERSONAL INFORMATION,259.68,SPEC NEEDS CHILDREN,PAYMENTS TO CLIENTS (DIRECT PAYMENTS),REDACTED,REDACTED
02.08.2019,ADULT SOCIAL CARE,REDACTED PERSONAL INFORMATION,259.68,SPEC NEEDS CHILDREN,PAYMENTS TO CLIENTS (DIRECT PAYMENTS),REDACTED,REDACTED
02.08.2019,ADULT SOCIAL CARE,REDACTED PERSONAL INFORMATION,259.68,SPEC NEEDS CHILDREN,PAYMENTS TO CLIENTS (DIRECT PAYMENTS),REDACTED,REDACTED
02.08.2019,ADULT SOCIAL CARE,REDACTED PERSONAL INFORMATION,259.68,SPEC NEEDS CHILDREN,PAYMENTS TO CLIENTS (DIRECT PAYMENTS),REDACTED,REDACTED
02.08.2019,ADULT SOCIAL CARE,REDACTED PERSONAL INFORMATION,307.2,SPEC NEEDS CHILDREN,PAYMENTS TO CLIENTS (DIRECT PAYMENTS),REDACTED,REDACTED
02.08.2019,ADULT SOCIAL CARE,REDACTED PERSONAL INFORMATION,307.2,SPEC NEEDS CHILDREN,PAYMENTS TO CLIENTS (DIRECT PAYMENTS),REDACTED,REDACTED
02.08.2019,ADULT SOCIAL CARE,REDACTED PERSONAL INFORMATION,329.56,SPEC NEEDS CHILDREN,PAYMENTS TO CLIENTS (DIRECT PAYMENTS),REDACTED,REDACTED
02.08.2019,ADULT SOCIAL CARE,REDACTED PERSONAL INFORMATION,329.56,SPEC NEEDS CHILDREN,PAYMENTS TO CLIENTS (DIRECT PAYMENTS),REDACTED,REDACTED
02.08.2019,ADULT SOCIAL CARE,REDACTED PERSONAL INFORMATION,339.6,SPEC NEEDS CHILDREN,PAYMENTS TO CLIENTS (DIRECT PAYMENTS),REDACTED,REDACTED
02.08.2019,ADULT SOCIAL CARE,REDACTED PERSONAL INFORMATION,379.52,SPEC NEEDS CHILDREN,PAYMENTS TO CLIENTS (DIRECT PAYMENTS),REDACTED,REDACTED
02.08.2019,ADULT SOCIAL CARE,REDACTED PERSONAL INFORMATION,379.52,SPEC NEEDS CHILDREN,PAYMENTS TO CLIENTS (DIRECT PAYMENTS),REDACTED,REDACTED
02.08.2019,ADULT SOCIAL CARE,REDACTED PERSONAL INFORMATION,380.28,SPEC NEEDS CHILDREN,PAYMENTS TO CLIENTS (DIRECT PAYMENTS),REDACTED,REDACTED
02.08.2019,ADULT SOCIAL CARE,REDACTED PERSONAL INFORMATION,404.48,SPEC NEEDS CHILDREN,PAYMENTS TO CLIENTS (DIRECT PAYMENTS),REDACTED,REDACTED
02.08.2019,ADULT SOCIAL CARE,REDACTED PERSONAL INFORMATION,409.48,SPEC NEEDS CHILDREN,PAYMENTS TO CLIENTS (DIRECT PAYMENTS),REDACTED,REDACTED
02.08.2019,ADULT SOCIAL CARE,REDACTED PERSONAL INFORMATION,419.44,SPEC NEEDS CHILDREN,PAYMENTS TO CLIENTS (DIRECT PAYMENTS),REDACTED,REDACTED
02.08.2019,ADULT SOCIAL CARE,REDACTED PERSONAL INFORMATION,469.4,SPEC NEEDS CHILDREN,PAYMENTS TO CLIENTS (DIRECT PAYMENTS),REDACTED,REDACTED
02.08.2019,ADULT SOCIAL CARE,REDACTED PERSONAL INFORMATION,484.4,SPEC NEEDS CHILDREN,PAYMENTS TO CLIENTS (DIRECT PAYMENTS),REDACTED,REDACTED
02.08.2019,ADULT SOCIAL CARE,REDACTED PERSONAL INFORMATION,499.36,SPEC NEEDS CHILDREN,PAYMENTS TO CLIENTS (DIRECT PAYMENTS),REDACTED,REDACTED
02.08.2019,ADULT SOCIAL CARE,REDACTED PERSONAL INFORMATION,499.36,SPEC NEEDS CHILDREN,PAYMENTS TO CLIENTS (DIRECT PAYMENTS),REDACTED,REDACTED
02.08.2019,ADULT SOCIAL CARE,REDACTED PERSONAL INFORMATION,502.6,SPEC NEEDS CHILDREN,PAYMENTS TO CLIENTS (DIRECT PAYMENTS),REDACTED,REDACTED
02.08.2019,ADULT SOCIAL CARE,REDACTED PERSONAL INFORMATION,509.32,SPEC NEEDS CHILDREN,PAYMENTS TO CLIENTS (DIRECT PAYMENTS),REDACTED,REDACTED
02.08.2019,ADULT SOCIAL CARE,REDACTED PERSONAL INFORMATION,522.6,SPEC NEEDS CHILDREN,PAYMENTS TO CLIENTS (DIRECT PAYMENTS),REDACTED,REDACTED
02.08.2019,ADULT SOCIAL CARE,REDACTED PERSONAL INFORMATION,522.6,SPEC NEEDS CHILDREN,PAYMENTS TO CLIENTS (DIRECT PAYMENTS),REDACTED,REDACTED
02.08.2019,ADULT SOCIAL CARE,REDACTED PERSONAL INFORMATION,539.28,SPEC NEEDS CHILDREN,PAYMENTS TO CLIENTS (DIRECT PAYMENTS),REDACTED,REDACTED
02.08.2019,ADULT SOCIAL CARE,REDACTED PERSONAL INFORMATION,566.76,SPEC NEEDS CHILDREN,PAYMENTS TO CLIENTS (DIRECT PAYMENTS),REDACTED,REDACTED
02.08.2019,ADULT SOCIAL CARE,REDACTED PERSONAL INFORMATION,569.24,SPEC NEEDS CHILDREN,PAYMENTS TO CLIENTS (DIRECT PAYMENTS),REDACTED,REDACTED
02.08.2019,ADULT SOCIAL CARE,REDACTED PERSONAL INFORMATION,606.56,SPEC NEEDS CHILDREN,PAYMENTS TO CLIENTS (DIRECT PAYMENTS),REDACTED,REDACTED
02.08.2019,ADULT SOCIAL CARE,REDACTED PERSONAL INFORMATION,715.96,SPEC NEEDS CHILDREN,PAYMENTS TO CLIENTS (DIRECT PAYMENTS),REDACTED,REDACTED
02.08.2019,ADULT SOCIAL CARE,REDACTED PERSONAL INFORMATION,719.04,SPEC NEEDS CHILDREN,PAYMENTS TO CLIENTS (DIRECT PAYMENTS),REDACTED,REDACTED
02.08.2019,ADULT SOCIAL CARE,REDACTED PERSONAL INFORMATION,768.8,SPEC NEEDS CHILDREN,PAYMENTS TO CLIENTS (DIRECT PAYMENTS),REDACTED,REDACTED
02.08.2019,ADULT SOCIAL CARE,REDACTED PERSONAL INFORMATION,784,SPEC NEEDS CHILDREN,PAYMENTS TO CLIENTS (DIRECT PAYMENTS),REDACTED,REDACTED
02.08.2019,ADULT SOCIAL CARE,REDACTED PERSONAL INFORMATION,828.92,SPEC NEEDS CHILDREN,PAYMENTS TO CLIENTS (DIRECT PAYMENTS),REDACTED,REDACTED
02.08.2019,ADULT SOCIAL CARE,REDACTED PERSONAL INFORMATION,881.6,SPEC NEEDS CHILDREN,PAYMENTS TO CLIENTS (DIRECT PAYMENTS),REDACTED,REDACTED
02.08.2019,ADULT SOCIAL CARE,REDACTED PERSONAL INFORMATION,888.84,SPEC NEEDS CHILDREN,PAYMENTS TO CLIENTS (DIRECT PAYMENTS),REDACTED,REDACTED
02.08.2019,ADULT SOCIAL CARE,REDACTED PERSONAL INFORMATION,"1,025.20",SPEC NEEDS CHILDREN,PAYMENTS TO CLIENTS (DIRECT PAYMENTS),REDACTED,REDACTED
02.08.2019,ADULT SOCIAL CARE,REDACTED PERSONAL INFORMATION,"1,067.01",SPEC NEEDS CHILDREN,PAYMENTS TO CLIENTS (DIRECT PAYMENTS),REDACTED,REDACTED
02.08.2019,ADULT SOCIAL CARE,REDACTED PERSONAL INFORMATION,"1,133.56",SPEC NEEDS CHILDREN,PAYMENTS TO CLIENTS (DIRECT PAYMENTS),REDACTED,REDACTED
02.08.2019,ADULT SOCIAL CARE,REDACTED PERSONAL INFORMATION,"1,158.48",SPEC NEEDS CHILDREN,PAYMENTS TO CLIENTS (DIRECT PAYMENTS),REDACTED,REDACTED
02.08.2019,ADULT SOCIAL CARE,REDACTED PERSONAL INFORMATION,"1,162.78",SPEC NEEDS CHILDREN,PAYMENTS TO CLIENTS (DIRECT PAYMENTS),REDACTED,REDACTED
02.08.2019,ADULT SOCIAL CARE,REDACTED PERSONAL INFORMATION,"1,218.40",SPEC NEEDS CHILDREN,PAYMENTS TO CLIENTS (DIRECT PAYMENTS),REDACTED,REDACTED
02.08.2019,ADULT SOCIAL CARE,REDACTED PERSONAL INFORMATION,"1,378.16",SPEC NEEDS CHILDREN,PAYMENTS TO CLIENTS (DIRECT PAYMENTS),REDACTED,REDACTED
02.08.2019,ADULT SOCIAL CARE,REDACTED PERSONAL INFORMATION,"1,397.76",SPEC NEEDS CHILDREN,PAYMENTS TO CLIENTS (DIRECT PAYMENTS),REDACTED,REDACTED
02.08.2019,ADULT SOCIAL CARE,REDACTED PERSONAL INFORMATION,"2,010.40",SPEC NEEDS CHILDREN,PAYMENTS TO CLIENTS (DIRECT PAYMENTS),REDACTED,REDACTED
02.08.2019,ADULT SOCIAL CARE,REDACTED PERSONAL INFORMATION,"2,604.80",SPEC NEEDS CHILDREN,PAYMENTS TO CLIENTS (DIRECT PAYMENTS),REDACTED,REDACTED
02.08.2019,ADULT SOCIAL CARE,REDACTED PERSONAL INFORMATION,"4,722.92",SPEC NEEDS CHILDREN,PAYMENTS TO CLIENTS (DIRECT PAYMENTS),REDACTED,REDACTED
02.08.2019,ADULT SOCIAL CARE,REDACTED PERSONAL INFORMATION,"10,928.00",SPEC NEEDS CHILDREN,PAYMENTS TO CLIENTS (DIRECT PAYMENTS),REDACTED,REDACTED
02.08.2019,ADULT SOCIAL CARE,PEOPLEPLUS ILS,253.68,SPEC NEEDS CHILDREN,PAYMENTS TO CLIENTS (DIRECT PAYMENTS),2102986243,1000061886
02.08.2019,ADULT SOCIAL CARE,PEOPLEPLUS ILS,273.68,SPEC NEEDS CHILDREN,PAYMENTS TO CLIENTS (DIRECT PAYMENTS),2102986135,1000061886
02.08.2019,ADULT SOCIAL CARE,PEOPLEPLUS ILS,273.68,SPEC NEEDS CHILDREN,PAYMENTS TO CLIENTS (DIRECT PAYMENTS),2102986140,1000061886
02.08.2019,ADULT SOCIAL CARE,PEOPLEPLUS ILS,273.68,SPEC NEEDS CHILDREN,PAYMENTS TO CLIENTS (DIRECT PAYMENTS),2102986141,1000061886
02.08.2019,ADULT SOCIAL CARE,PEOPLEPLUS ILS,273.68,SPEC NEEDS CHILDREN,PAYMENTS TO CLIENTS (DIRECT PAYMENTS),2102986146,1000061886
02.08.2019,ADULT SOCIAL CARE,PEOPLEPLUS ILS,273.68,SPEC NEEDS CHILDREN,PAYMENTS TO CLIENTS (DIRECT PAYMENTS),2102986149,1000061886
02.08.2019,ADULT SOCIAL CARE,PEOPLEPLUS ILS,273.68,SPEC NEEDS CHILDREN,PAYMENTS TO CLIENTS (DIRECT PAYMENTS),2102986171,1000061886
02.08.2019,ADULT SOCIAL CARE,PEOPLEPLUS ILS,273.68,SPEC NEEDS CHILDREN,PAYMENTS TO CLIENTS (DIRECT PAYMENTS),2102986242,1000061886
02.08.2019,ADULT SOCIAL CARE,PEOPLEPLUS ILS,273.68,SPEC NEEDS CHILDREN,PAYMENTS TO CLIENTS (DIRECT PAYMENTS),2102986274,1000061886
02.08.2019,ADULT SOCIAL CARE,PEOPLEPLUS ILS,273.68,SPEC NEEDS CHILDREN,PAYMENTS TO CLIENTS (DIRECT PAYMENTS),2102986320,1000061886
02.08.2019,ADULT SOCIAL CARE,PEOPLEPLUS ILS,273.68,SPEC NEEDS CHILDREN,PAYMENTS TO CLIENTS (DIRECT PAYMENTS),2102986326,1000061886
02.08.2019,ADULT SOCIAL CARE,PEOPLEPLUS ILS,299.6,SPEC NEEDS CHILDREN,PAYMENTS TO CLIENTS (DIRECT PAYMENTS),2102986186,1000061886
02.08.2019,ADULT SOCIAL CARE,PEOPLEPLUS ILS,305.96,SPEC NEEDS CHILDREN,PAYMENTS TO CLIENTS (DIRECT PAYMENTS),2102986322,1000061886
02.08.2019,ADULT SOCIAL CARE,PEOPLEPLUS ILS,321.2,SPEC NEEDS CHILDREN,PAYMENTS TO CLIENTS (DIRECT PAYMENTS),2102986305,1000061886
02.08.2019,ADULT SOCIAL CARE,PEOPLEPLUS ILS,333.6,SPEC NEEDS CHILDREN,PAYMENTS TO CLIENTS (DIRECT PAYMENTS),2102986165,1000061886
02.08.2019,ADULT SOCIAL CARE,PEOPLEPLUS ILS,333.6,SPEC NEEDS CHILDREN,PAYMENTS TO CLIENTS (DIRECT PAYMENTS),2102986277,1000061886
02.08.2019,ADULT SOCIAL CARE,PEOPLEPLUS ILS,348.6,SPEC NEEDS CHILDREN,PAYMENTS TO CLIENTS (DIRECT PAYMENTS),2102986190,1000061886
02.08.2019,ADULT SOCIAL CARE,PEOPLEPLUS ILS,353.34,SPEC NEEDS CHILDREN,PAYMENTS TO CLIENTS (DIRECT PAYMENTS),2102986224,1000061886
02.08.2019,ADULT SOCIAL CARE,PEOPLEPLUS ILS,359.52,SPEC NEEDS CHILDREN,PAYMENTS TO CLIENTS (DIRECT PAYMENTS),2102986289,1000061886
02.08.2019,ADULT SOCIAL CARE,PEOPLEPLUS ILS,359.52,SPEC NEEDS CHILDREN,PAYMENTS TO CLIENTS (DIRECT PAYMENTS),2102986334,1000061886
02.08.2019,ADULT SOCIAL CARE,PEOPLEPLUS ILS,363.56,SPEC NEEDS CHILDREN,PAYMENTS TO CLIENTS (DIRECT PAYMENTS),2102986228,1000061886
02.08.2019,ADULT SOCIAL CARE,PEOPLEPLUS ILS,389.48,SPEC NEEDS CHILDREN,PAYMENTS TO CLIENTS (DIRECT PAYMENTS),2102986329,1000061886
02.08.2019,ADULT SOCIAL CARE,PEOPLEPLUS ILS,393.52,SPEC NEEDS CHILDREN,PAYMENTS TO CLIENTS (DIRECT PAYMENTS),2102986198,1000061886
02.08.2019,ADULT SOCIAL CARE,PEOPLEPLUS ILS,393.52,SPEC NEEDS CHILDREN,PAYMENTS TO CLIENTS (DIRECT PAYMENTS),2102986202,1000061886
02.08.2019,ADULT SOCIAL CARE,PEOPLEPLUS ILS,393.52,SPEC NEEDS CHILDREN,PAYMENTS TO CLIENTS (DIRECT PAYMENTS),2102986234,1000061886
02.08.2019,ADULT SOCIAL CARE,PEOPLEPLUS ILS,393.52,SPEC NEEDS CHILDREN,PAYMENTS TO CLIENTS (DIRECT PAYMENTS),2102986281,1000061886
02.08.2019,ADULT SOCIAL CARE,PEOPLEPLUS ILS,399.68,SPEC NEEDS CHILDREN,PAYMENTS TO CLIENTS (DIRECT PAYMENTS),2102986213,1000061886
02.08.2019,ADULT SOCIAL CARE,PEOPLEPLUS ILS,423.48,SPEC NEEDS CHILDREN,PAYMENTS TO CLIENTS (DIRECT PAYMENTS),2102986137,1000061886
02.08.2019,ADULT SOCIAL CARE,PEOPLEPLUS ILS,432.6,SPEC NEEDS CHILDREN,PAYMENTS TO CLIENTS (DIRECT PAYMENTS),2102986318,1000061886
02.08.2019,ADULT SOCIAL CARE,PEOPLEPLUS ILS,433.36,SPEC NEEDS CHILDREN,PAYMENTS TO CLIENTS (DIRECT PAYMENTS),2102986204,1000061886
02.08.2019,ADULT SOCIAL CARE,PEOPLEPLUS ILS,433.36,SPEC NEEDS CHILDREN,PAYMENTS TO CLIENTS (DIRECT PAYMENTS),2102986218,1000061886
02.08.2019,ADULT SOCIAL CARE,PEOPLEPLUS ILS,445,SPEC NEEDS CHILDREN,PAYMENTS TO CLIENTS (DIRECT PAYMENTS),2102986193,1000061886
02.08.2019,ADULT SOCIAL CARE,PEOPLEPLUS ILS,453.44,SPEC NEEDS CHILDREN,PAYMENTS TO CLIENTS (DIRECT PAYMENTS),2102986197,1000061886
02.08.2019,ADULT SOCIAL CARE,PEOPLEPLUS ILS,453.44,SPEC NEEDS CHILDREN,PAYMENTS TO CLIENTS (DIRECT PAYMENTS),2102986323,1000061886
02.08.2019,ADULT SOCIAL CARE,PEOPLEPLUS ILS,492.52,SPEC NEEDS CHILDREN,PAYMENTS TO CLIENTS (DIRECT PAYMENTS),2102986300,1000061886
02.08.2019,ADULT SOCIAL CARE,PEOPLEPLUS ILS,498.4,SPEC NEEDS CHILDREN,PAYMENTS TO CLIENTS (DIRECT PAYMENTS),2102986251,1000061886
02.08.2019,ADULT SOCIAL CARE,PEOPLEPLUS ILS,513.36,SPEC NEEDS CHILDREN,PAYMENTS TO CLIENTS (DIRECT PAYMENTS),2102986177,1000061886
02.08.2019,ADULT SOCIAL CARE,PEOPLEPLUS ILS,513.36,SPEC NEEDS CHILDREN,PAYMENTS TO CLIENTS (DIRECT PAYMENTS),2102986248,1000061886
02.08.2019,ADULT SOCIAL CARE,PEOPLEPLUS ILS,513.36,SPEC NEEDS CHILDREN,PAYMENTS TO CLIENTS (DIRECT PAYMENTS),2102986265,1000061886
02.08.2019,ADULT SOCIAL CARE,PEOPLEPLUS ILS,524.76,SPEC NEEDS CHILDREN,PAYMENTS TO CLIENTS (DIRECT PAYMENTS),2102986143,1000061886
02.08.2019,ADULT SOCIAL CARE,PEOPLEPLUS ILS,526.2,SPEC NEEDS CHILDREN,PAYMENTS TO CLIENTS (DIRECT PAYMENTS),2102986184,1000061886
02.08.2019,ADULT SOCIAL CARE,PEOPLEPLUS ILS,533.2,SPEC NEEDS CHILDREN,PAYMENTS TO CLIENTS (DIRECT PAYMENTS),2102986293,1000061886
02.08.2019,ADULT SOCIAL CARE,PEOPLEPLUS ILS,573.28,SPEC NEEDS CHILDREN,PAYMENTS TO CLIENTS (DIRECT PAYMENTS),2102986195,1000061886
02.08.2019,ADULT SOCIAL CARE,PEOPLEPLUS ILS,573.28,SPEC NEEDS CHILDREN,PAYMENTS TO CLIENTS (DIRECT PAYMENTS),2102986249,1000061886
02.08.2019,ADULT SOCIAL CARE,PEOPLEPLUS ILS,573.28,SPEC NEEDS CHILDREN,PAYMENTS TO CLIENTS (DIRECT PAYMENTS),2102986312,1000061886
02.08.2019,ADULT SOCIAL CARE,PEOPLEPLUS ILS,603.24,SPEC NEEDS CHILDREN,PAYMENTS TO CLIENTS (DIRECT PAYMENTS),2102986201,1000061886
02.08.2019,ADULT SOCIAL CARE,PEOPLEPLUS ILS,612.36,SPEC NEEDS CHILDREN,PAYMENTS TO CLIENTS (DIRECT PAYMENTS),2102986134,1000061886
02.08.2019,ADULT SOCIAL CARE,PEOPLEPLUS ILS,656.16,SPEC NEEDS CHILDREN,PAYMENTS TO CLIENTS (DIRECT PAYMENTS),2102986252,1000061886
02.08.2019,ADULT SOCIAL CARE,PEOPLEPLUS ILS,680.2,SPEC NEEDS CHILDREN,PAYMENTS TO CLIENTS (DIRECT PAYMENTS),2102986138,1000061886
02.08.2019,ADULT SOCIAL CARE,PEOPLEPLUS ILS,703.75,SPEC NEEDS CHILDREN,PAYMENTS TO CLIENTS (DIRECT PAYMENTS),2102986237,1000061886
02.08.2019,ADULT SOCIAL CARE,PEOPLEPLUS ILS,716.12,SPEC NEEDS CHILDREN,PAYMENTS TO CLIENTS (DIRECT PAYMENTS),2102986336,1000061886
02.08.2019,ADULT SOCIAL CARE,PEOPLEPLUS ILS,723.08,SPEC NEEDS CHILDREN,PAYMENTS TO CLIENTS (DIRECT PAYMENTS),2102986145,1000061886
02.08.2019,ADULT SOCIAL CARE,PEOPLEPLUS ILS,723.08,SPEC NEEDS CHILDREN,PAYMENTS TO CLIENTS (DIRECT PAYMENTS),2102986194,1000061886
02.08.2019,ADULT SOCIAL CARE,PEOPLEPLUS ILS,723.08,SPEC NEEDS CHILDREN,PAYMENTS TO CLIENTS (DIRECT PAYMENTS),2102986316,1000061886
02.08.2019,ADULT SOCIAL CARE,PEOPLEPLUS ILS,753.04,SPEC NEEDS CHILDREN,PAYMENTS TO CLIENTS (DIRECT PAYMENTS),2102986158,1000061886
02.08.2019,ADULT SOCIAL CARE,PEOPLEPLUS ILS,753.04,SPEC NEEDS CHILDREN,PAYMENTS TO CLIENTS (DIRECT PAYMENTS),2102986179,1000061886
02.08.2019,ADULT SOCIAL CARE,PEOPLEPLUS ILS,842.92,SPEC NEEDS CHILDREN,PAYMENTS TO CLIENTS (DIRECT PAYMENTS),2102986200,1000061886
02.08.2019,ADULT SOCIAL CARE,PEOPLEPLUS ILS,872.88,SPEC NEEDS CHILDREN,PAYMENTS TO CLIENTS (DIRECT PAYMENTS),2102986314,1000061886
02.08.2019,ADULT SOCIAL CARE,PEOPLEPLUS ILS,909.01,SPEC NEEDS CHILDREN,PAYMENTS TO CLIENTS (DIRECT PAYMENTS),2102986246,1000061886
02.08.2019,ADULT SOCIAL CARE,PEOPLEPLUS ILS,931.52,SPEC NEEDS CHILDREN,PAYMENTS TO CLIENTS (DIRECT PAYMENTS),2102986161,1000061886
02.08.2019,ADULT SOCIAL CARE,PEOPLEPLUS ILS,967.4,SPEC NEEDS CHILDREN,PAYMENTS TO CLIENTS (DIRECT PAYMENTS),2102986321,1000061886
02.08.2019,ADULT SOCIAL CARE,PEOPLEPLUS ILS,992.72,SPEC NEEDS CHILDREN,PAYMENTS TO CLIENTS (DIRECT PAYMENTS),2102986210,1000061886
02.08.2019,ADULT SOCIAL CARE,PEOPLEPLUS ILS,"1,077.00",SPEC NEEDS CHILDREN,PAYMENTS TO CLIENTS (DIRECT PAYMENTS),2102986330,1000061886
02.08.2019,ADULT SOCIAL CARE,PEOPLEPLUS ILS,"1,172.48",SPEC NEEDS CHILDREN,PAYMENTS TO CLIENTS (DIRECT PAYMENTS),2102986258,1000061886
02.08.2019,ADULT SOCIAL CARE,PEOPLEPLUS ILS,"1,232.40",SPEC NEEDS CHILDREN,PAYMENTS TO CLIENTS (DIRECT PAYMENTS),2102986266,1000061886
02.08.2019,ADULT SOCIAL CARE,PEOPLEPLUS ILS,"1,326.40",SPEC NEEDS CHILDREN,PAYMENTS TO CLIENTS (DIRECT PAYMENTS),2102986182,1000061886
02.08.2019,ADULT SOCIAL CARE,PEOPLEPLUS ILS,"1,348.20",SPEC NEEDS CHILDREN,PAYMENTS TO CLIENTS (DIRECT PAYMENTS),2102986223,1000061886
02.08.2019,ADULT SOCIAL CARE,PEOPLEPLUS ILS,"1,849.00",SPEC NEEDS CHILDREN,PAYMENTS TO CLIENTS (DIRECT PAYMENTS),2102986279,1000061886
02.08.2019,ADULT SOCIAL CARE,PEOPLEPLUS ILS,"2,116.20",SPEC NEEDS CHILDREN,PAYMENTS TO CLIENTS (DIRECT PAYMENTS),2102986208,1000061886
02.08.2019,ADULT SOCIAL CARE,PEOPLEPLUS ILS,"3,114.04",SPEC NEEDS CHILDREN,PAYMENTS TO CLIENTS (DIRECT PAYMENTS),2102986250,1000061886
02.08.2019,ADULT SOCIAL CARE,PEOPLEPLUS ILS,"3,676.20",SPEC NEEDS CHILDREN,PAYMENTS TO CLIENTS (DIRECT PAYMENTS),2102986167,1000061886
02.08.2019,ADULT SOCIAL CARE,PEOPLEPLUS ILS,"4,236.20",SPEC NEEDS CHILDREN,PAYMENTS TO CLIENTS (DIRECT PAYMENTS),2102986217,1000061886
02.08.2019,ADULT SOCIAL CARE,PEOPLEPLUS ILS,"5,151.80",SPEC NEEDS CHILDREN,PAYMENTS TO CLIENTS (DIRECT PAYMENTS),2102986175,1000061886
02.08.2019,ADULT SOCIAL CARE,THE CHILDRENS TRUST,548.9,SPECIALIST CARE,OTHER PAYMENTS FOR CLIENTS,5902371440,1758469
02.08.2019,ADULT SOCIAL CARE,THE CHILDRENS TRUST,590.1,SPECIALIST CARE,OTHER PAYMENTS FOR CLIENTS,5902371436,1758469
02.08.2019,ADULT SOCIAL CARE,THE CHILDRENS TRUST,656.73,SPECIALIST CARE,OTHER PAYMENTS FOR CLIENTS,5902371438,1758469
02.08.2019,ADULT SOCIAL CARE,THE CHILDRENS TRUST,"2,010.80",SPECIALIST CARE,OTHER PAYMENTS FOR CLIENTS,5902371435,1758469
02.08.2019,ADULT SOCIAL CARE,THE CHILDRENS TRUST,"2,797.39",SPECIALIST CARE,OTHER PAYMENTS FOR CLIENTS,5902371433,1758469
02.08.2019,ADULT SOCIAL CARE,CHARLIE CHAPLIN ADVENTURE PLAYGROUND,"13,111.03",SPECIALIST CARE,SECTION 17 PAYMENTS TO AGENCIES/CARERS,5902371444,1000058003
02.08.2019,ADULT SOCIAL CARE,DRUGLINK LTD,"2,085.00",SUB LTS 18-64,PLACEMENTS - REHAB,2102986091,1000050942
02.08.2019,ADULT SOCIAL CARE,REDACTED PERSONAL INFORMATION,259.68,TRANSITIONS 14-18YRS,PAYMENTS TO CLIENTS (DIRECT PAYMENTS),REDACTED,REDACTED
02.08.2019,ADULT SOCIAL CARE,REDACTED PERSONAL INFORMATION,269.6,TRANSITIONS 14-18YRS,PAYMENTS TO CLIENTS (DIRECT PAYMENTS),REDACTED,REDACTED
02.08.2019,ADULT SOCIAL CARE,REDACTED PERSONAL INFORMATION,287.2,TRANSITIONS 14-18YRS,PAYMENTS TO CLIENTS (DIRECT PAYMENTS),REDACTED,REDACTED
02.08.2019,ADULT SOCIAL CARE,REDACTED PERSONAL INFORMATION,307.2,TRANSITIONS 14-18YRS,PAYMENTS TO CLIENTS (DIRECT PAYMENTS),REDACTED,REDACTED
02.08.2019,ADULT SOCIAL CARE,REDACTED PERSONAL INFORMATION,307.2,TRANSITIONS 14-18YRS,PAYMENTS TO CLIENTS (DIRECT PAYMENTS),REDACTED,REDACTED
02.08.2019,ADULT SOCIAL CARE,REDACTED PERSONAL INFORMATION,326.68,TRANSITIONS 14-18YRS,PAYMENTS TO CLIENTS (DIRECT PAYMENTS),REDACTED,REDACTED
02.08.2019,ADULT SOCIAL CARE,REDACTED PERSONAL INFORMATION,359.52,TRANSITIONS 14-18YRS,PAYMENTS TO CLIENTS (DIRECT PAYMENTS),REDACTED,REDACTED
02.08.2019,ADULT SOCIAL CARE,REDACTED PERSONAL INFORMATION,359.52,TRANSITIONS 14-18YRS,PAYMENTS TO CLIENTS (DIRECT PAYMENTS),REDACTED,REDACTED
02.08.2019,ADULT SOCIAL CARE,REDACTED PERSONAL INFORMATION,359.52,TRANSITIONS 14-18YRS,PAYMENTS TO CLIENTS (DIRECT PAYMENTS),REDACTED,REDACTED
02.08.2019,ADULT SOCIAL CARE,REDACTED PERSONAL INFORMATION,414.92,TRANSITIONS 14-18YRS,PAYMENTS TO CLIENTS (DIRECT PAYMENTS),REDACTED,REDACTED
02.08.2019,ADULT SOCIAL CARE,REDACTED PERSONAL INFORMATION,430.8,TRANSITIONS 14-18YRS,PAYMENTS TO CLIENTS (DIRECT PAYMENTS),REDACTED,REDACTED
02.08.2019,ADULT SOCIAL CARE,REDACTED PERSONAL INFORMATION,494,TRANSITIONS 14-18YRS,PAYMENTS TO CLIENTS (DIRECT PAYMENTS),REDACTED,REDACTED
02.08.2019,ADULT SOCIAL CARE,REDACTED PERSONAL INFORMATION,522.6,TRANSITIONS 14-18YRS,PAYMENTS TO CLIENTS (DIRECT PAYMENTS),REDACTED,REDACTED
02.08.2019,ADULT SOCIAL CARE,REDACTED PERSONAL INFORMATION,539.28,TRANSITIONS 14-18YRS,PAYMENTS TO CLIENTS (DIRECT PAYMENTS),REDACTED,REDACTED
02.08.2019,ADULT SOCIAL CARE,REDACTED PERSONAL INFORMATION,559.28,TRANSITIONS 14-18YRS,PAYMENTS TO CLIENTS (DIRECT PAYMENTS),REDACTED,REDACTED
02.08.2019,ADULT SOCIAL CARE,REDACTED PERSONAL INFORMATION,599.2,TRANSITIONS 14-18YRS,PAYMENTS TO CLIENTS (DIRECT PAYMENTS),REDACTED,REDACTED
02.08.2019,ADULT SOCIAL CARE,REDACTED PERSONAL INFORMATION,619.2,TRANSITIONS 14-18YRS,PAYMENTS TO CLIENTS (DIRECT PAYMENTS),REDACTED,REDACTED
02.08.2019,ADULT SOCIAL CARE,REDACTED PERSONAL INFORMATION,648.96,TRANSITIONS 14-18YRS,PAYMENTS TO CLIENTS (DIRECT PAYMENTS),REDACTED,REDACTED
02.08.2019,ADULT SOCIAL CARE,REDACTED PERSONAL INFORMATION,718,TRANSITIONS 14-18YRS,PAYMENTS TO CLIENTS (DIRECT PAYMENTS),REDACTED,REDACTED
02.08.2019,ADULT SOCIAL CARE,REDACTED PERSONAL INFORMATION,738,TRANSITIONS 14-18YRS,PAYMENTS TO CLIENTS (DIRECT PAYMENTS),REDACTED,REDACTED
02.08.2019,ADULT SOCIAL CARE,REDACTED PERSONAL INFORMATION,917.52,TRANSITIONS 14-18YRS,PAYMENTS TO CLIENTS (DIRECT PAYMENTS),REDACTED,REDACTED
02.08.2019,ADULT SOCIAL CARE,REDACTED PERSONAL INFORMATION,958.8,TRANSITIONS 14-18YRS,PAYMENTS TO CLIENTS (DIRECT PAYMENTS),REDACTED,REDACTED
02.08.2019,ADULT SOCIAL CARE,REDACTED PERSONAL INFORMATION,978.72,TRANSITIONS 14-18YRS,PAYMENTS TO CLIENTS (DIRECT PAYMENTS),REDACTED,REDACTED
02.08.2019,ADULT SOCIAL CARE,REDACTED PERSONAL INFORMATION,992.08,TRANSITIONS 14-18YRS,PAYMENTS TO CLIENTS (DIRECT PAYMENTS),REDACTED,REDACTED
02.08.2019,ADULT SOCIAL CARE,REDACTED PERSONAL INFORMATION,"1,076.80",TRANSITIONS 14-18YRS,PAYMENTS TO CLIENTS (DIRECT PAYMENTS),REDACTED,REDACTED
02.08.2019,ADULT SOCIAL CARE,REDACTED PERSONAL INFORMATION,"1,137.00",TRANSITIONS 14-18YRS,PAYMENTS TO CLIENTS (DIRECT PAYMENTS),REDACTED,REDACTED
02.08.2019,ADULT SOCIAL CARE,REDACTED PERSONAL INFORMATION,"1,168.80",TRANSITIONS 14-18YRS,PAYMENTS TO CLIENTS (DIRECT PAYMENTS),REDACTED,REDACTED
02.08.2019,ADULT SOCIAL CARE,REDACTED PERSONAL INFORMATION,"1,323.28",TRANSITIONS 14-18YRS,PAYMENTS TO CLIENTS (DIRECT PAYMENTS),REDACTED,REDACTED
02.08.2019,ADULT SOCIAL CARE,REDACTED PERSONAL INFORMATION,"1,384.20",TRANSITIONS 14-18YRS,PAYMENTS TO CLIENTS (DIRECT PAYMENTS),REDACTED,REDACTED
02.08.2019,ADULT SOCIAL CARE,REDACTED PERSONAL INFORMATION,"1,456.00",TRANSITIONS 14-18YRS,PAYMENTS TO CLIENTS (DIRECT PAYMENTS),REDACTED,REDACTED
02.08.2019,ADULT SOCIAL CARE,REDACTED PERSONAL INFORMATION,"1,814.00",TRANSITIONS 14-18YRS,PAYMENTS TO CLIENTS (DIRECT PAYMENTS),REDACTED,REDACTED
02.08.2019,ADULT SOCIAL CARE,PEOPLEPLUS ILS,273.68,TRANSITIONS 14-18YRS,PAYMENTS TO CLIENTS (DIRECT PAYMENTS),2102986154,1000061886
02.08.2019,ADULT SOCIAL CARE,PEOPLEPLUS ILS,273.68,TRANSITIONS 14-18YRS,PAYMENTS TO CLIENTS (DIRECT PAYMENTS),2102986271,1000061886
02.08.2019,ADULT SOCIAL CARE,PEOPLEPLUS ILS,308.88,TRANSITIONS 14-18YRS,PAYMENTS TO CLIENTS (DIRECT PAYMENTS),2102986229,1000061886
02.08.2019,ADULT SOCIAL CARE,PEOPLEPLUS ILS,313.6,TRANSITIONS 14-18YRS,PAYMENTS TO CLIENTS (DIRECT PAYMENTS),2102986172,1000061886
02.08.2019,ADULT SOCIAL CARE,PEOPLEPLUS ILS,333.6,TRANSITIONS 14-18YRS,PAYMENTS TO CLIENTS (DIRECT PAYMENTS),2102986147,1000061886
02.08.2019,ADULT SOCIAL CARE,PEOPLEPLUS ILS,348.6,TRANSITIONS 14-18YRS,PAYMENTS TO CLIENTS (DIRECT PAYMENTS),2102986307,1000061886
02.08.2019,ADULT SOCIAL CARE,PEOPLEPLUS ILS,383.44,TRANSITIONS 14-18YRS,PAYMENTS TO CLIENTS (DIRECT PAYMENTS),2102986160,1000061886
02.08.2019,ADULT SOCIAL CARE,PEOPLEPLUS ILS,393.52,TRANSITIONS 14-18YRS,PAYMENTS TO CLIENTS (DIRECT PAYMENTS),2102986261,1000061886
02.08.2019,ADULT SOCIAL CARE,PEOPLEPLUS ILS,464.8,TRANSITIONS 14-18YRS,PAYMENTS TO CLIENTS (DIRECT PAYMENTS),2102986319,1000061886
02.08.2019,ADULT SOCIAL CARE,PEOPLEPLUS ILS,563.2,TRANSITIONS 14-18YRS,PAYMENTS TO CLIENTS (DIRECT PAYMENTS),2102986284,1000061886
02.08.2019,ADULT SOCIAL CARE,PEOPLEPLUS ILS,603.24,TRANSITIONS 14-18YRS,PAYMENTS TO CLIENTS (DIRECT PAYMENTS),2102986188,1000061886
02.08.2019,ADULT SOCIAL CARE,PEOPLEPLUS ILS,618.24,TRANSITIONS 14-18YRS,PAYMENTS TO CLIENTS (DIRECT PAYMENTS),2102986302,1000061886
02.08.2019,ADULT SOCIAL CARE,PEOPLEPLUS ILS,643.6,TRANSITIONS 14-18YRS,PAYMENTS TO CLIENTS (DIRECT PAYMENTS),2102986221,1000061886
02.08.2019,ADULT SOCIAL CARE,PEOPLEPLUS ILS,840.59,TRANSITIONS 14-18YRS,PAYMENTS TO CLIENTS (DIRECT PAYMENTS),2102986315,1000061886
02.08.2019,ADULT SOCIAL CARE,PEOPLEPLUS ILS,857.68,TRANSITIONS 14-18YRS,PAYMENTS TO CLIENTS (DIRECT PAYMENTS),2102986240,1000061886
02.08.2019,ADULT SOCIAL CARE,PEOPLEPLUS ILS,861.32,TRANSITIONS 14-18YRS,PAYMENTS TO CLIENTS (DIRECT PAYMENTS),2102986287,1000061886
02.08.2019,ADULT SOCIAL CARE,PEOPLEPLUS ILS,895.6,TRANSITIONS 14-18YRS,PAYMENTS TO CLIENTS (DIRECT PAYMENTS),2102986311,1000061886
02.08.2019,ADULT SOCIAL CARE,PEOPLEPLUS ILS,986.44,TRANSITIONS 14-18YRS,PAYMENTS TO CLIENTS (DIRECT PAYMENTS),2102986144,1000061886
02.08.2019,ADULT SOCIAL CARE,PEOPLEPLUS ILS,"1,039.20",TRANSITIONS 14-18YRS,PAYMENTS TO CLIENTS (DIRECT PAYMENTS),2102986291,1000061886
02.08.2019,ADULT SOCIAL CARE,PEOPLEPLUS ILS,"1,112.56",TRANSITIONS 14-18YRS,PAYMENTS TO CLIENTS (DIRECT PAYMENTS),2102986325,1000061886
02.08.2019,ADULT SOCIAL CARE,PEOPLEPLUS ILS,"1,326.40",TRANSITIONS 14-18YRS,PAYMENTS TO CLIENTS (DIRECT PAYMENTS),2102986338,1000061886
02.08.2019,ADULT SOCIAL CARE,PEOPLEPLUS ILS,"1,334.00",TRANSITIONS 14-18YRS,PAYMENTS TO CLIENTS (DIRECT PAYMENTS),2102986335,1000061886
02.08.2019,ADULT SOCIAL CARE,PEOPLEPLUS ILS,"1,507.72",TRANSITIONS 14-18YRS,PAYMENTS TO CLIENTS (DIRECT PAYMENTS),2102986268,1000061886
02.08.2019,ADULT SOCIAL CARE,PEOPLEPLUS ILS,"1,556.56",TRANSITIONS 14-18YRS,PAYMENTS TO CLIENTS (DIRECT PAYMENTS),2102986176,1000061886
02.08.2019,ADULT SOCIAL CARE,PEOPLEPLUS ILS,"1,591.92",TRANSITIONS 14-18YRS,PAYMENTS TO CLIENTS (DIRECT PAYMENTS),2102986324,1000061886
02.08.2019,ADULT SOCIAL CARE,PEOPLEPLUS ILS,"2,775.90",TRANSITIONS 14-18YRS,PAYMENTS TO CLIENTS (DIRECT PAYMENTS),2102986180,1000061886
02.08.2019,ADULT SOCIAL CARE,PEOPLEPLUS ILS,"3,044.08",TRANSITIONS 14-18YRS,PAYMENTS TO CLIENTS (DIRECT PAYMENTS),2102986339,1000061886
02.08.2019,ADULT SOCIAL CARE,PEOPLEPLUS ILS,"3,773.60",TRANSITIONS 14-18YRS,PAYMENTS TO CLIENTS (DIRECT PAYMENTS),2102986292,1000061886
02.08.2019,ADULT SOCIAL CARE,CHARLIE CHAPLIN ADVENTURE PLAYGROUND,"5,948.09",TRANSITIONS 14-18YRS,SECTION 17 PAYMENTS TO AGENCIES/CARERS,5902371444,1000058003
02.08.2019,ASSET MANAGEMENT,STANNAH LIFT SERVICES LTD,"2,060.00",ADAPTATIONS,BUILDING R&M,5902370581,1063595
02.08.2019,ASSET MANAGEMENT,SEDGWICK INTERNATIONAL UK,441,REPAIRS OPERATIONS,PROFESSIONAL FEES,5902371449,1000082289
02.08.2019,CENTRAL FUNCTIONS,DAVID MILES & PARTNERS LTD,"1,850.00",COMMERCIAL PROPERTIES,PROFESSIONAL FEES,5902371171,1000001119
02.08.2019,CENTRAL FUNCTIONS,HERITAGE SURVEYS LTD,"2,356.00",COMMERCIAL PROPERTIES,PROFESSIONAL FEES,5902371155,1000080199
02.08.2019,CENTRAL FUNCTIONS,SANTANDER UK PLC,275,HOME OWNERSHIP INCOME,HOUSING RESIDENTIAL RENTS,2102987180,1000068712
02.08.2019,CENTRAL FUNCTIONS,QUIETGROVE LTD,533.65,HOME OWNERSHIP INCOME,HOUSING RESIDENTIAL RENTS,2102987183,1000080639
02.08.2019,CHIEF EXECUTIVE,SANCHEZ BENTON ARCHITECTS LTD,972.37,CAPITAL PS (REGEN),CONSTRUCTION FEES - ARCHITECT,5902371480,1000080367
02.08.2019,CHIEF EXECUTIVE,SANCHEZ BENTON ARCHITECTS LTD,"3,479.80",CAPITAL PS (REGEN),CONSTRUCTION FEES - ARCHITECT,5902371201,1000080367
02.08.2019,CHIEF EXECUTIVE,SANCHEZ BENTON ARCHITECTS LTD,"4,604.42",CAPITAL PS (REGEN),CONSTRUCTION FEES - ARCHITECT,5902371209,1000080367
02.08.2019,CHILDREN AND ADULT,FAITHFUL & GOULD,"23,600.00",CAPITAL PS (EDUCATION),CONSTRUCTION,5902371387,1000061390
02.08.2019,CHILDREN AND ADULT,FAITHFUL & GOULD,"7,182.00",CAPITAL PS (EDUCATION),CONSTRUCTION FEES  - EXTERNAL,5902371395,1000061390
02.08.2019,CHILDRENS,FAITHFUL & GOULD,"3,150.00",CAPITAL PS (EDUCATION),CONSTRUCTION,5902371381,1000061390
02.08.2019,CHILDRENS,FAITHFUL & GOULD,"11,073.00",CAPITAL PS (EDUCATION),CONSTRUCTION,5902371386,1000061390
02.08.2019,CHILDRENS,FAITHFUL & GOULD,"12,067.00",CAPITAL PS (EDUCATION),CONSTRUCTION,5902371384,1000061390
02.08.2019,CHILDRENS,FAITHFUL & GOULD,"20,439.00",CAPITAL PS (EDUCATION),CONSTRUCTION,5902371377,1000061390
02.08.2019,CHILDREN'S SERVICES,REDACTED PERSONAL INFORMATION,480,ADOPTION PLACEMENTS & INTER AGENCY,PAYMENTS TO CARERS,REDACTED,REDACTED
02.08.2019,CHILDREN'S SERVICES,TFL TELESALES / OYSTER FULFILMENT,870,CENTRAL COSTS - SEN,PUBLIC TRANSPORT,5902371365,1000059727
02.08.2019,CHILDREN'S SERVICES,HEART OF STEEL LTD,350,FOSTERING PRAC GROUPS,EXTERNAL AGENCIES AND BODIES,5902367998,1000073134
02.08.2019,CHILDREN'S SERVICES,REDACTED PERSONAL INFORMATION,627,JOINT FUNDED ADULT CARE PACKAGES,PAYMENTS TO CLIENTS (DIRECT PAYMENTS),REDACTED,REDACTED
02.08.2019,CHILDREN'S SERVICES,HEBER PRIMARY SCHOOL,"10,912.00",MATERNITY COVER,SCHOOLS CAPITATION,2102986062,5001000035
02.08.2019,CHILDREN'S SERVICES,PROSPERO RECRUITMENT LTD,675,PUPIL PREMIUM CURRENT YEAR,EXTERNAL AGENCIES AND BODIES,5902371417,1000082492
02.08.2019,CHILDREN'S SERVICES,FLEET TUTORS,"3,960.00",PUPIL PREMIUM CURRENT YEAR,EXTERNAL AGENCIES AND BODIES,5902371133,1000044820
02.08.2019,CHILDREN'S SERVICES,PURPLE PEBBLES(CHILD CARE) SERVICES,"1,882.14",RESOURCE PANEL,OTHER PAYMENTS FOR CLIENTS,2102986070,1000070705
02.08.2019,CHILDREN'S SERVICES,KINDLY PROPERTIES LTD,910,S24 CLA,EXTERNAL AGENCIES AND BODIES,5902371405,1000060734
02.08.2019,CHILDREN'S SERVICES,KINDLY PROPERTIES LTD,"1,350.00",S24 CLA,EXTERNAL AGENCIES AND BODIES,5902371394,1000060734
02.08.2019,CHILDREN'S SERVICES,KINDLY PROPERTIES LTD,"1,395.00",S24 CLA,EXTERNAL AGENCIES AND BODIES,5902371397,1000060734
02.08.2019,CHILDREN'S SERVICES,KINDLY PROPERTIES LTD,"1,395.00",S24 CLA,EXTERNAL AGENCIES AND BODIES,5902371401,1000060734
02.08.2019,CHILDREN'S SERVICES,MP HABILITATION SERVICES LTD,"1,618.00",SCH TRANS - CONTRACT COST,OTHER PAYMENTS FOR CLIENTS,5902370735,1000082223
02.08.2019,CHILDREN'S SERVICES,SPA EDUCATION TRUST,"169,237.00",SPA SCHOOL,SCHOOLS CAPITATION,2102986061,1000081600
02.08.2019,CHILDREN'S SERVICES,BRITISH TELECOMMUNICATIONS PLC,"1,677.78",THOMAS CALTON CENTRE,TELEPHONES (LAND LINES),5902371269,11149671
02.08.2019,CHILDREN'S SERVICES,KINDLY PROPERTIES LTD,756,UASC SECTION 24,EXTERNAL AGENCIES AND BODIES,5902371426,1000060734
02.08.2019,CHILDREN'S SERVICES,KINDLY PROPERTIES LTD,810,UASC SECTION 24,EXTERNAL AGENCIES AND BODIES,5902371409,1000060734
02.08.2019,CHILDREN'S SERVICES,KINDLY PROPERTIES LTD,837,UASC SECTION 24,EXTERNAL AGENCIES AND BODIES,5902371411,1000060734
02.08.2019,CHILDREN'S SERVICES,KINDLY PROPERTIES LTD,837,UASC SECTION 24,EXTERNAL AGENCIES AND BODIES,5902371415,1000060734
02.08.2019,CHILDREN'S SERVICES,KINDLY PROPERTIES LTD,837,UASC SECTION 24,EXTERNAL AGENCIES AND BODIES,5902371430,1000060734
02.08.2019,CHILDREN'S SERVICES,KINDLY PROPERTIES LTD,"1,323.00",UASC SECTION 24,EXTERNAL AGENCIES AND BODIES,5902371407,1000060734
02.08.2019,CHILDREN'S SERVICES,CONNEXIONS CUISINE,298.6,YOS SUPPORT,REFRESHMENTS FOR MEETINGS,5902370448,11317153
02.08.2019,COMMUNITIES,BEDE HOUSE ASSOCIATION,"2,935.50",COMMUNITY SAFETY FUND,EXTERNAL AGENCIES AND BODIES,5902370162,11265073
02.08.2019,COMMUNITIES,PERRONET HOUSE T&RA,450,TRSIG,GRANTS,5902371483,1000069828
02.08.2019,CUSTOMER EXPERIENCE HGF,NATIONWIDE ACCOMMODATION,"2,165.50",NIGHTLY TA (NSC),EXTERNAL AGENCIES AND BODIES,5902371477,1000076112
02.08.2019,CUSTOMER EXPERIENCE HGF,SOUTH OF THE RIVER INVESTMENTS LTD,"7,575.75",NIGHTLY TA (NSC),EXTERNAL AGENCIES AND BODIES,5902371475,1000073638
02.08.2019,ENVIRONMENT AND LEISURE,STANBURY BUILDING SERVICES LTD,"2,300.00",CAPITAL PS (LEISURE),CONST'N MAIN CONTRACT - NON CERTIFICATED,2102984722,3000001967
02.08.2019,ENVIRONMENT AND LEISURE,LASER SURVEYS LIMITED,"5,445.00",CAPITAL PS (LEISURE),CONSTR'N SUB CONTRACT - NON CERTIFICATED,5902371134,1000051587
02.08.2019,ENVIRONMENT AND LEISURE,ADVANCED TRANSPORT RESEARCH LTD,330,CAPITAL PS (LEISURE),CONSTRUCTION,5902370287,1000070527
02.08.2019,ENVIRONMENT AND LEISURE,STANBURY BUILDING SERVICES LTD,500,CAPITAL PS (LEISURE),CONSTRUCTION MAIN CONTRACT -CERTIFICATED,2102987173,3000001967
02.08.2019,ENVIRONMENT AND LEISURE,ASKEWS & HOLTS LIBRARY SERVICES LTD,"11,075.02",CAPITAL PS (REGEN),"PLANT, MACHINERY & EQUIPMENT ACQUISITION",5902371446,1494168
02.08.2019,ENVIRONMENT DIRECTORATE,PULSE CORPORATION LTD,"1,200.00",BUSINESS CORE,SECURITY SERVICES,5902371233,1000072911
02.08.2019,ENVIRONMENT DIRECTORATE,ARNOLD CLARK VEHICLE MANAGEMENT,252.91,CAR LEASING CTRL A/C,VEHICLE LEASING CHARGES,5902371427,1000079116
02.08.2019,ENVIRONMENT DIRECTORATE,ARNOLD CLARK VEHICLE MANAGEMENT,260.01,CAR LEASING CTRL A/C,VEHICLE LEASING CHARGES,5902371352,1000079116
02.08.2019,ENVIRONMENT DIRECTORATE,ARNOLD CLARK VEHICLE MANAGEMENT,273.37,CAR LEASING CTRL A/C,VEHICLE LEASING CHARGES,5902371311,1000079116
02.08.2019,ENVIRONMENT DIRECTORATE,ARNOLD CLARK VEHICLE MANAGEMENT,288.94,CAR LEASING CTRL A/C,VEHICLE LEASING CHARGES,5902371352,1000079116
02.08.2019,ENVIRONMENT DIRECTORATE,ARNOLD CLARK VEHICLE MANAGEMENT,295.53,CAR LEASING CTRL A/C,VEHICLE LEASING CHARGES,5902371319,1000079116
02.08.2019,ENVIRONMENT DIRECTORATE,ARNOLD CLARK VEHICLE MANAGEMENT,332.29,CAR LEASING CTRL A/C,VEHICLE LEASING CHARGES,5902371425,1000079116
02.08.2019,ENVIRONMENT DIRECTORATE,ARNOLD CLARK VEHICLE MANAGEMENT,333.91,CAR LEASING CTRL A/C,VEHICLE LEASING CHARGES,5902371319,1000079116
02.08.2019,ENVIRONMENT DIRECTORATE,ARNOLD CLARK VEHICLE MANAGEMENT,337.27,CAR LEASING CTRL A/C,VEHICLE LEASING CHARGES,5902371425,1000079116
02.08.2019,ENVIRONMENT DIRECTORATE,ARNOLD CLARK VEHICLE MANAGEMENT,363.4,CAR LEASING CTRL A/C,VEHICLE LEASING CHARGES,5902371327,1000079116
02.08.2019,ENVIRONMENT DIRECTORATE,ARNOLD CLARK VEHICLE MANAGEMENT,379.84,CAR LEASING CTRL A/C,VEHICLE LEASING CHARGES,5902371346,1000079116
02.08.2019,ENVIRONMENT DIRECTORATE,ARNOLD CLARK VEHICLE MANAGEMENT,383.44,CAR LEASING CTRL A/C,VEHICLE LEASING CHARGES,5902371346,1000079116
02.08.2019,ENVIRONMENT DIRECTORATE,ARNOLD CLARK VEHICLE MANAGEMENT,393.84,CAR LEASING CTRL A/C,VEHICLE LEASING CHARGES,5902371327,1000079116
02.08.2019,ENVIRONMENT DIRECTORATE,LEX AUTOLEASE,"1,970.10",CAR LEASING CTRL A/C,VEHICLE LEASING CHARGES,5902371368,1000069462
02.08.2019,ENVIRONMENT DIRECTORATE,SCOT GROUP LIMITED,264.62,COMMERCIAL VEH CTRL A/C,HIRED VEHICLES,5902371163,1709512
02.08.2019,ENVIRONMENT DIRECTORATE,LONDON HIRE LIMITED,537.35,COMMERCIAL VEH CTRL A/C,HIRED VEHICLES,5902371160,1383812
02.08.2019,ENVIRONMENT DIRECTORATE,AUTOMOTIVE LEASING,568.69,COMMERCIAL VEH CTRL A/C,HIRED VEHICLES,5902371280,11014756
02.08.2019,ENVIRONMENT DIRECTORATE,LONDON HIRE LIMITED,645,COMMERCIAL VEH CTRL A/C,HIRED VEHICLES,5902371167,1383812
02.08.2019,ENVIRONMENT DIRECTORATE,LONDON HIRE LIMITED,675,COMMERCIAL VEH CTRL A/C,HIRED VEHICLES,5902371166,1383812
02.08.2019,ENVIRONMENT DIRECTORATE,LONDON HIRE LIMITED,854.01,COMMERCIAL VEH CTRL A/C,HIRED VEHICLES,5902371457,1383812
02.08.2019,ENVIRONMENT DIRECTORATE,LONDON HIRE LIMITED,"1,289.01",COMMERCIAL VEH CTRL A/C,HIRED VEHICLES,5902371162,1383812
02.08.2019,ENVIRONMENT DIRECTORATE,LONDON HIRE LIMITED,"1,481.00",COMMERCIAL VEH CTRL A/C,HIRED VEHICLES,5902371169,1383812
02.08.2019,ENVIRONMENT DIRECTORATE,FIVEWAYS MUNICIPAL VEHICLE HIRE LTD,327.86,COMMERCIAL VEH CTRL A/C,VEHICLE REPAIRS & MAINTENANCE,5902371181,1000023985
02.08.2019,ENVIRONMENT DIRECTORATE,LONDON HIRE T/A R J MOTORS,384.25,COMMERCIAL VEH CTRL A/C,VEHICLE REPAIRS & MAINTENANCE,5902371218,1000047106
02.08.2019,ENVIRONMENT DIRECTORATE,FIVEWAYS MUNICIPAL VEHICLE HIRE LTD,399.02,COMMERCIAL VEH CTRL A/C,VEHICLE REPAIRS & MAINTENANCE,5902371174,1000023985
02.08.2019,ENVIRONMENT DIRECTORATE,FIVEWAYS MUNICIPAL VEHICLE HIRE LTD,419.11,COMMERCIAL VEH CTRL A/C,VEHICLE REPAIRS & MAINTENANCE,5902371178,1000023985
02.08.2019,ENVIRONMENT DIRECTORATE,FIVEWAYS MUNICIPAL VEHICLE HIRE LTD,640.87,COMMERCIAL VEH CTRL A/C,VEHICLE REPAIRS & MAINTENANCE,5902371153,1000023985
02.08.2019,ENVIRONMENT DIRECTORATE,FIVEWAYS MUNICIPAL VEHICLE HIRE LTD,921.05,COMMERCIAL VEH CTRL A/C,VEHICLE REPAIRS & MAINTENANCE,5902371183,1000023985
02.08.2019,ENVIRONMENT DIRECTORATE,LAKEDALE POWER TOOLS,589,ENGINEERING CRAFTS,MATERIALS,5902371139,1015368
02.08.2019,ENVIRONMENT DIRECTORATE,QUARTERMAN WINDSCREENS LTD,480,FLEET INSURANCE WORKS,TRANSPORT INSURANCE COSTS,5902371371,1043709
02.08.2019,ENVIRONMENT DIRECTORATE,LONDON HIRE LIMITED,"8,649.20",FLEET INSURANCE WORKS,TRANSPORT INSURANCE COSTS,5902371376,1383812
02.08.2019,ENVIRONMENT DIRECTORATE,EDWARDES (CAMBERWELL) LTD,"-2,010.00",PUBLIC LIGHTING,MATERIALS,5902371669,11060365
02.08.2019,ENVIRONMENT DIRECTORATE,EDWARDES (CAMBERWELL) LTD,"2,010.00",PUBLIC LIGHTING,MATERIALS,5902368767,11060365
02.08.2019,ENVIRONMENT DIRECTORATE,NPOWER,278.54,SANDGATE STREET,ELECTRICITY,5902370826,1000032342
02.08.2019,ENVIRONMENT DIRECTORATE,NPOWER,452.6,SANDGATE STREET,ELECTRICITY,5902370830,1000032342
02.08.2019,ENVIRONMENT DIRECTORATE,TYCO INTEGRATED FIRE & SECURITY,"13,071.08",TOWN CENTRE CCTV,EQUIPMENT PURCHASE & REPAIR,5902371196,1000077948
02.08.2019,ENVIRONMENT DIRECTORATE,BRITISH TELECOMMUNICATIONS PLC,987.54,TOWN CENTRE CCTV,TELEPHONES (LAND LINES),5902371159,11149671
02.08.2019,EXCHEQUER SERVICES,POSTURITE (UK) LTD,802.62,INCOME MANAGEMENT,OFFICE EXPENSES,5902370975,11015468
02.08.2019,HOUSING HRA,SALTASH ENTERPRISES LTD,"39,446.48",CAPITAL PS (HRA),CONSTRUCTION MAIN CONTRACT -CERTIFICATED,2102987171,4013605
02.08.2019,HOUSING HRA,SALTASH ENTERPRISES LTD,"206,489.52",CAPITAL PS (HRA),CONSTRUCTION MAIN CONTRACT -CERTIFICATED,2102987172,4013605
02.08.2019,HOUSING HRA,ENGIE REGENERATION (APOLLO) LTD,"328,000.26",CAPITAL PS (HRA),CONSTRUCTION MAIN CONTRACT -CERTIFICATED,2102987168,4000449
02.08.2019,HOUSING HRA,A & E ELKINS LTD,"369,524.16",CAPITAL PS (HRA),CONSTRUCTION MAIN CONTRACT -CERTIFICATED,2102987169,4012501
02.08.2019,HOUSING HRA,A & E ELKINS LTD,"728,423.40",CAPITAL PS (HRA),CONSTRUCTION MAIN CONTRACT -CERTIFICATED,2102987170,4012501
02.08.2019,LAW & DEMOCRACY,EMS EVENTS LTD,"3,498.70",CONSTITUTIONAL TEAM,OP LEASE/HIRE CHARGES:PLANT/EQUIP/FURNIT,5902371428,1000057494
02.08.2019,LEISURE DIRECTORATE,NPOWER LTD,757.64,BLUE ANCHOR LIBRARY,ELECTRICITY,5902370420,1000078994
02.08.2019,LEISURE DIRECTORATE,KENT COUNTY COUNCIL - LASER,345.68,BURGESS AREA TEAM,ELECTRICITY,5902371458,1000012926
02.08.2019,LEISURE DIRECTORATE,KENT COUNTY COUNCIL - LASER,577.65,BURGESS AREA TEAM,ELECTRICITY,5902371460,1000012926
02.08.2019,LEISURE DIRECTORATE,KENT COUNTY COUNCIL - LASER,691.99,BURGESS AREA TEAM,ELECTRICITY,5902371431,1000012926
02.08.2019,LEISURE DIRECTORATE,TECHNICAL SURFACES,582.05,BURGESS SPORTS CENTRE,GROUNDS MAINTENANCE,5902371283,1000011451
02.08.2019,LEISURE DIRECTORATE,REDACTED PERSONAL INFORMATION,"1,026.60",CEMETERIES,OP LEASE/HIRE CHARGES:PLANT/EQUIP/FURNIT,REDACTED,REDACTED
02.08.2019,LEISURE DIRECTORATE,KENT COUNTY COUNCIL - LASER,"1,381.08",DULWICH AREA TEAM,ELECTRICITY,5902371434,1000012926
02.08.2019,LEISURE DIRECTORATE,KENT COUNTY COUNCIL - LASER,324.97,DULWICH AREA TEAM,GAS,5902371453,1000012926
02.08.2019,LEISURE DIRECTORATE,INSPIRE AT ST PETER'S LTD,"7,740.75",GRANTS COMMISSIONING,GRANTS,5902370642,1000041565
02.08.2019,LEISURE DIRECTORATE,NPOWER,852.15,NUNHEAD LIBRARY,ELECTRICITY,5902370426,1000055441
02.08.2019,LEISURE DIRECTORATE,ABOUT THIS VAN,434.17,PARKS SERVICES DEVELOPMENT,TREE TERM CONTRACT,5902371279,1000039842
02.08.2019,LEISURE DIRECTORATE,CHUBB FIRE & SECURITY LTD,516.18,SDM BUDGET,OTHER R&M,5902371294,11166155
02.08.2019,LEISURE DIRECTORATE,INVESTEC ASSET FINANCE PLC,285.99,SDM BUDGET,TELEPHONES (LAND LINES),5902371456,1000046072
02.08.2019,LEISURE DIRECTORATE,UNIVERSITY OF ARTS LONDON,"2,500.00",SOUTHWARK FESTIVAL FUND,OP LEASE/HIRE CHARGES:PLANT/EQUIP/FURNIT,5902370545,11042483
02.08.2019,LEISURE DIRECTORATE,ASKEWS & HOLTS LIBRARY SERVICES LTD,779.36,STOCK SERVICES,BOOKS & PUBLICATIONS,5902371137,1494168
02.08.2019,MODERNISATION HGF,ARCH CONSULTING,"5,087.50",APPLICATIONS,SOFTWARE,5902371390,1000056829
02.08.2019,MODERNISATION HGF,TURNITIN LLC,"1,144.00",ILM COSTS,SOFTWARE,5902371466,1000082954
02.08.2019,MODERNISATION HGF,CAPABILITY COACHING LTD,625,MEMBER DEVELOPMENT,TRAINING,5902371135,1000082355
02.08.2019,PUBLIC HEALTH,DAY LEWIS - CAMBERWELL,562.53,SEXUAL HEALTH - CONTRACEPTION,EXTERNAL AGENCIES AND BODIES,5902371482,1000072891
02.08.2019,REGENERATION,SANCHEZ BENTON ARCHITECTS LTD,"1,859.70",7 HOLYROOD STREET,PROFESSIONAL FEES,5902371175,1000080367
02.08.2019,REGENERATION,EMERGENCY EXIT ARTS (LTD),"7,500.00",BLACKFRIARS ROAD PROJECT,MARKETING & PUBLICITY SERVICES,5902371141,1000015187
02.08.2019,REGENERATION,THIS SOLID GROUND LTD,"2,175.00","COURAGE YARD, SHAD THAMES",MARKETING & PUBLICITY SERVICES,5902371165,1000082494
02.08.2019,REGENERATION,LONDON BRIDGE BUSINESS IMPROVEMENT,"2,850.00",MASTER PLAN-H/WAY & TRANS INTERCHANGE,CONSULTANTS SERVICES,5902371447,1000050879
02.08.2019,REGENERATION,INITIAL WASHROOM HYGIENE,"1,354.70",TOWER WORKSHOPS,PREMISES CLEANING,5902371150,1644695
02.08.2019,RESIDENT SERVICES,EXTREME ENVIRONMENTAL SERVICES LTD,295,TA ESTATE VOIDS,ESTATE CLEANING,5902371445,1000023922
02.08.2019,RESIDENT SERVICES,WILLOW ESTATE AGENTS (LONDON) LTD,285,TA PLACEMENTS,EXTERNAL AGENCIES AND BODIES,5902371372,1000060607
03.08.2019,ADULT SOCIAL CARE,LINDA COBB,500,ADULTS MULTI-AGENCY SAFEGUARDING TRNG,TRAINING,5902371077,1000029191
03.08.2019,ADULT SOCIAL CARE,RED R DESIGN,825,QUALITY AND PERF,CONSULTANTS SERVICES,5902371027,1000035984
03.08.2019,ASSET MANAGEMENT,PINNACLE BUILDING SERVICES,"1,150.00",ADAPTATIONS,BUILDING R&M,5902371053,1000082308
03.08.2019,ASSET MANAGEMENT,PINNACLE BUILDING SERVICES,"1,780.00",ADAPTATIONS,BUILDING R&M,5902370255,1000082308
03.08.2019,ASSET MANAGEMENT,CHARLTON ROSS DESIGNS LTD,800,HEALTH AND SAFETY,PROFESSIONAL FEES,5902370384,1000082373
03.08.2019,CHIEF EXECUTIVE,CONWAY AECOM LTD,"7,711.42",CAPITAL PS (REGEN),CONSTR'N SUB CONTRACT - NON CERTIFICATED,5902370260,1000071205
03.08.2019,CHILDREN'S SERVICES,GREATER LONDON AUTHORITY,"4,750.00",ADMISSIONS,SUBSCRIPTIONS,5902371132,1000015827
03.08.2019,COMMUNITIES,JUST ENOUGH UK,350,PREVENT,PROFESSIONAL FEES,5902370500,1000079867
03.08.2019,COMMUNITIES,JUST ENOUGH UK,350,PREVENT,PROFESSIONAL FEES,5902370500,1000079867
03.08.2019,COMMUNITIES,JUST ENOUGH UK,350,PREVENT,PROFESSIONAL FEES,5902370500,1000079867
03.08.2019,COMMUNITIES,JUST ENOUGH UK,350,PREVENT,PROFESSIONAL FEES,5902370500,1000079867
03.08.2019,COMMUNITIES,JUST ENOUGH UK,350,PREVENT,PROFESSIONAL FEES,5902370500,1000079867
03.08.2019,COMMUNITIES,LONGFIELD T&RA,"1,897.50",TENANTS FUND,GRANTS,5902370379,1000059281
03.08.2019,ENVIRONMENT AND LEISURE,INTO SERVICES LONDON LTD,320,CAPITAL PS (LEISURE),CONST'N MAIN CONTRACT - NON CERTIFICATED,5902370601,1000059328
03.08.2019,ENVIRONMENT AND LEISURE,INTO SERVICES LONDON LTD,400,CAPITAL PS (LEISURE),CONST'N MAIN CONTRACT - NON CERTIFICATED,5902370458,1000059328
03.08.2019,ENVIRONMENT AND LEISURE,INTO SERVICES LONDON LTD,560,CAPITAL PS (LEISURE),CONST'N MAIN CONTRACT - NON CERTIFICATED,5902370601,1000059328
03.08.2019,ENVIRONMENT AND LEISURE,INTO SERVICES LONDON LTD,"1,000.00",CAPITAL PS (LEISURE),CONST'N MAIN CONTRACT - NON CERTIFICATED,5902370458,1000059328
03.08.2019,ENVIRONMENT AND LEISURE,INTO SERVICES LONDON LTD,"2,050.00",CAPITAL PS (LEISURE),CONST'N MAIN CONTRACT - NON CERTIFICATED,5902370458,1000059328
03.08.2019,ENVIRONMENT AND LEISURE,INTO SERVICES LONDON LTD,"4,550.00",CAPITAL PS (LEISURE),CONST'N MAIN CONTRACT - NON CERTIFICATED,5902370458,1000059328
03.08.2019,ENVIRONMENT DIRECTORATE,ELLIOT ENVIRONMENTAL LTD,400,STREET CLEANING-GENERAL,OTHER CONTRACTORS,5902370578,1000047392
03.08.2019,ENVIRONMENT DIRECTORATE,WSP UK LTD,"6,396.79",TRANSPORT PROJECTS,OTHER CONTRACTORS,5902370406,1000054214
03.08.2019,EXCHEQUER SERVICES,ETC VENUES LTD,600,ADMINISTRATIVE SUPPORT,HIRE OF ROOMS/HALLS,5902370562,1000045226
03.08.2019,EXCHEQUER SERVICES,CAPITA SECURE INFORMATION,"9,000.00",GM SAP,SOFTWARE,5902370672,1000070739
03.08.2019,HOUSING HRA,CALFORD SEADEN LLP,"27,551.25",CAPITAL PS (HRA),CONSTRUCTION FEES  - EXTERNAL,5902370480,1061592
03.08.2019,MODERNISATION HGF,JOHN STATTERS ASSOCIATES,"6,175.00",OCCUPATIONAL ASSESSMENT,CONSULTANTS SERVICES,5902370755,1000065600
03.08.2019,RESIDENT SERVICES,CHARTWELLS,"4,931.00",SUPPORTED HOSTELS,CATERING MATERIALS & SUPPLIES,5902370793,1000010625
04.08.2019,CHILDREN'S SERVICES,SILVERBULLET BUSINESS TRAINING SOLUTIONS,"1,350.00",YOS SUPPORT,TRAINING,5902370468,1000082109
04.08.2019,COMMUNITIES,BONAMY & BRAMCOTE T&RA,"2,777.50",TENANTS FUND,GRANTS,5902370487,1000055709
04.08.2019,CUSTOMER EXPERIENCE HGF,BACK ON TRACK HOUSING,"1,282.68",HOMELESS PROJECTS,GRANTS,5902370466,1000071262
04.08.2019,ENVIRONMENT DIRECTORATE,SOUTHWARK NEWSPAPER LTD,300,STREET WORKS OVERHEADS,MARKETING & PUBLICITY SERVICES,5902370657,1556957
04.08.2019,ENVIRONMENT DIRECTORATE,SOUTHWARK NEWSPAPER LTD,312,STREET WORKS OVERHEADS,MARKETING & PUBLICITY SERVICES,5902370654,1556957
04.08.2019,ENVIRONMENT DIRECTORATE,SOUTHWARK NEWSPAPER LTD,324,STREET WORKS OVERHEADS,MARKETING & PUBLICITY SERVICES,5902370655,1556957
04.08.2019,HOUSING,LIFTEC LIFTS LTD,"98,694.40",PAYMENTS CONTROL ACCOUNT - LIFTEC,I-WORLD CONTRACTORS HOLDING ACCOUNT,5902370669,1000057278
04.08.2019,PLANNING AND TRANSPORT,SOUTHWARK NEWSPAPER LTD,504,DEVELOPMENT CONTROL ADMINSTRATION,MARKETING & PUBLICITY SERVICES,5902370559,1556957
05.08.2019,ADULT SOCIAL CARE,REDACTED PERSONAL INFORMATION,277.3,APPOINTEESHIPS,OTHER PAYMENTS FOR CLIENTS,REDACTED,REDACTED
05.08.2019,ADULT SOCIAL CARE,GROVE HOTEL LTD,"1,085.00",APPOINTEESHIPS,OTHER PAYMENTS FOR CLIENTS,5902371735,1000043663
05.08.2019,ADULT SOCIAL CARE,LONDON CARE LTD,"4,221.00",EXTRA CARE CONTRACT,HOMECARE - C&V,5902371207,1000003398
05.08.2019,ADULT SOCIAL CARE,LONDON CARE LTD,"40,602.00",EXTRA CARE CONTRACT,HOMECARE - C&V,5902371193,1000003398
05.08.2019,ADULT SOCIAL CARE,LONDON CARE LTD,"53,466.00",EXTRA CARE CONTRACT,HOMECARE - C&V,5902371212,1000003398
05.08.2019,ADULT SOCIAL CARE,LONDON CARE LTD,"60,300.00",EXTRA CARE CONTRACT,HOMECARE - C&V,5902371200,1000003398
05.08.2019,ADULT SOCIAL CARE,SAFFRONLAND HOMES (HESTIA),462.36,LD LTS 18-64,DAYCARE,2102988240,1000021616
05.08.2019,ADULT SOCIAL CARE,SAFFRONLAND HOMES (HESTIA),750.76,LD LTS 18-64,DAYCARE,2102988064,1000021616
05.08.2019,ADULT SOCIAL CARE,SAFFRONLAND HOMES (HESTIA),918.76,LD LTS 18-64,DAYCARE,2102988310,1000021616
05.08.2019,ADULT SOCIAL CARE,THE REGARD PARTNERSHIP,-442.6,LD LTS 18-64,DISCRETIONARY FLEXIBLE FEES & INCOME,2102986641,1823223
05.08.2019,ADULT SOCIAL CARE,REDACTED PERSONAL INFORMATION,269.8,LD LTS 18-64,HOMECARE - SPOT,REDACTED,REDACTED
05.08.2019,ADULT SOCIAL CARE,REDACTED PERSONAL INFORMATION,269.8,LD LTS 18-64,HOMECARE - SPOT,REDACTED,REDACTED
05.08.2019,ADULT SOCIAL CARE,REDACTED PERSONAL INFORMATION,323.76,LD LTS 18-64,HOMECARE - SPOT,REDACTED,REDACTED
05.08.2019,ADULT SOCIAL CARE,REDACTED PERSONAL INFORMATION,323.76,LD LTS 18-64,HOMECARE - SPOT,REDACTED,REDACTED
05.08.2019,ADULT SOCIAL CARE,ANCHOR TRUST,-626.32,LD LTS 18-64,"MAND STATUTORY CHARGES, RESIDENTIAL",2102987899,11257534
05.08.2019,ADULT SOCIAL CARE,SAFFRONLAND HOMES,-569.4,LD LTS 18-64,"MAND STATUTORY CHARGES, RESIDENTIAL",2102987576,1000072152
05.08.2019,ADULT SOCIAL CARE,CARE MANAGEMENT GROUP,-569.4,LD LTS 18-64,"MAND STATUTORY CHARGES, RESIDENTIAL",2102987908,1000040475
05.08.2019,ADULT SOCIAL CARE,THE PADDOCK (THE SWALLOW GROUP),-569.4,LD LTS 18-64,"MAND STATUTORY CHARGES, RESIDENTIAL",2102988023,11153854
05.08.2019,ADULT SOCIAL CARE,AITCH CARE HOMES (LONDON) LTD,-569.4,LD LTS 18-64,"MAND STATUTORY CHARGES, RESIDENTIAL",2102988243,1000059432
05.08.2019,ADULT SOCIAL CARE,THE PADDOCK (THE SWALLOW GROUP),-569.4,LD LTS 18-64,"MAND STATUTORY CHARGES, RESIDENTIAL",2102988528,11153854
05.08.2019,ADULT SOCIAL CARE,OGILVIE COURT,-543.3,LD LTS 18-64,"MAND STATUTORY CHARGES, RESIDENTIAL",2102988290,1910302
05.08.2019,ADULT SOCIAL CARE,PALM CARE LTD,-522.8,LD LTS 18-64,"MAND STATUTORY CHARGES, RESIDENTIAL",2102987723,1000066042
05.08.2019,ADULT SOCIAL CARE,CRAEGMOOR (WINDSOR HOUSE),-510.8,LD LTS 18-64,"MAND STATUTORY CHARGES, RESIDENTIAL",2102988550,1000072462
05.08.2019,ADULT SOCIAL CARE,CLEARWATER CARE (HACKNEY) LTD,-430.6,LD LTS 18-64,"MAND STATUTORY CHARGES, RESIDENTIAL",2102987902,1000070479
05.08.2019,ADULT SOCIAL CARE,CRAEGMOOR WHEELHOUSE PRIORY,-427.4,LD LTS 18-64,"MAND STATUTORY CHARGES, RESIDENTIAL",2102987540,1000068452
05.08.2019,ADULT SOCIAL CARE,THE MEATH,-426.4,LD LTS 18-64,"MAND STATUTORY CHARGES, RESIDENTIAL",2102988560,1000056796
05.08.2019,ADULT SOCIAL CARE,CRAEGMOOR DEVONSHIRE ROAD PRIORY,-414.2,LD LTS 18-64,"MAND STATUTORY CHARGES, RESIDENTIAL",2102987893,1000068453
05.08.2019,ADULT SOCIAL CARE,GLEN CARE GROUP,-409.52,LD LTS 18-64,"MAND STATUTORY CHARGES, RESIDENTIAL",2102988039,1000050223
05.08.2019,ADULT SOCIAL CARE,THE REGARD PARTNERSHIP,-409,LD LTS 18-64,"MAND STATUTORY CHARGES, RESIDENTIAL",2102987392,1823223
05.08.2019,ADULT SOCIAL CARE,BRANDON TRUST,-409,LD LTS 18-64,"MAND STATUTORY CHARGES, RESIDENTIAL",2102987395,1000042417
05.08.2019,ADULT SOCIAL CARE,BRANDON TRUST,-409,LD LTS 18-64,"MAND STATUTORY CHARGES, RESIDENTIAL",2102987425,1000042417
05.08.2019,ADULT SOCIAL CARE,BRANDON TRUST,-409,LD LTS 18-64,"MAND STATUTORY CHARGES, RESIDENTIAL",2102987464,1000042417
05.08.2019,ADULT SOCIAL CARE,BRANDON TRUST,-409,LD LTS 18-64,"MAND STATUTORY CHARGES, RESIDENTIAL",2102987570,1000042417
05.08.2019,ADULT SOCIAL CARE,BRANDON TRUST,-409,LD LTS 18-64,"MAND STATUTORY CHARGES, RESIDENTIAL",2102987601,1000042417
05.08.2019,ADULT SOCIAL CARE,ROYAL MENCAP SOCIETY,-409,LD LTS 18-64,"MAND STATUTORY CHARGES, RESIDENTIAL",2102987637,1000034706
05.08.2019,ADULT SOCIAL CARE,MAYFIELD CHILDRENS HOME,-409,LD LTS 18-64,"MAND STATUTORY CHARGES, RESIDENTIAL",2102987737,1000054051
05.08.2019,ADULT SOCIAL CARE,THE REGARD PARTNERSHIP,-409,LD LTS 18-64,"MAND STATUTORY CHARGES, RESIDENTIAL",2102988004,1823223
05.08.2019,ADULT SOCIAL CARE,BRANDON TRUST,-409,LD LTS 18-64,"MAND STATUTORY CHARGES, RESIDENTIAL",2102988016,1000042417
05.08.2019,ADULT SOCIAL CARE,THE REGARD PARTNERSHIP,-409,LD LTS 18-64,"MAND STATUTORY CHARGES, RESIDENTIAL",2102988074,1823223
05.08.2019,ADULT SOCIAL CARE,BRANDON TRUST,-409,LD LTS 18-64,"MAND STATUTORY CHARGES, RESIDENTIAL",2102988086,1000042417
05.08.2019,ADULT SOCIAL CARE,VOYAGE LTD (EVESLEIGH KENT),-409,LD LTS 18-64,"MAND STATUTORY CHARGES, RESIDENTIAL",2102988117,1000041320
05.08.2019,ADULT SOCIAL CARE,BRANDON TRUST,-409,LD LTS 18-64,"MAND STATUTORY CHARGES, RESIDENTIAL",2102988175,1000042417
05.08.2019,ADULT SOCIAL CARE,BRANDON TRUST,-409,LD LTS 18-64,"MAND STATUTORY CHARGES, RESIDENTIAL",2102988292,1000042417
05.08.2019,ADULT SOCIAL CARE,BRANDON TRUST,-409,LD LTS 18-64,"MAND STATUTORY CHARGES, RESIDENTIAL",2102988334,1000042417
05.08.2019,ADULT SOCIAL CARE,SAFFRONLAND HOMES,-409,LD LTS 18-64,"MAND STATUTORY CHARGES, RESIDENTIAL",2102988409,1000072153
05.08.2019,ADULT SOCIAL CARE,CHOICE CARE GROUP,-409,LD LTS 18-64,"MAND STATUTORY CHARGES, RESIDENTIAL",2102988414,1572506
05.08.2019,ADULT SOCIAL CARE,THE REGARD PARTNERSHIP,-409,LD LTS 18-64,"MAND STATUTORY CHARGES, RESIDENTIAL",2102988446,1823223
05.08.2019,ADULT SOCIAL CARE,BRANDON TRUST,-409,LD LTS 18-64,"MAND STATUTORY CHARGES, RESIDENTIAL",2102988510,1000042417
05.08.2019,ADULT SOCIAL CARE,CARE MANAGEMENT GROUP,-408.04,LD LTS 18-64,"MAND STATUTORY CHARGES, RESIDENTIAL",2102987877,1000040475
05.08.2019,ADULT SOCIAL CARE,HAZELDENE LTD,-402.6,LD LTS 18-64,"MAND STATUTORY CHARGES, RESIDENTIAL",2102987594,1000019679
05.08.2019,ADULT SOCIAL CARE,HAZELDENE LTD,-402.6,LD LTS 18-64,"MAND STATUTORY CHARGES, RESIDENTIAL",2102987652,1000019679
05.08.2019,ADULT SOCIAL CARE,31 WOODBOURNE (FRANCES TAYLOR FOUNDATION),-402.6,LD LTS 18-64,"MAND STATUTORY CHARGES, RESIDENTIAL",2102987786,1000063870
05.08.2019,ADULT SOCIAL CARE,CHOICE CARE GROUP,-402.6,LD LTS 18-64,"MAND STATUTORY CHARGES, RESIDENTIAL",2102987931,1572506
05.08.2019,ADULT SOCIAL CARE,NEXUS PROGRAMME LTD,-402.6,LD LTS 18-64,"MAND STATUTORY CHARGES, RESIDENTIAL",2102987972,1000025336
05.08.2019,ADULT SOCIAL CARE,THE FRANCES TAYLOR FOUNDATION,-402.6,LD LTS 18-64,"MAND STATUTORY CHARGES, RESIDENTIAL",2102988442,1000007274
05.08.2019,ADULT SOCIAL CARE,CRAEGMOOR WILLOWS HYTHE PRIORY,-402.6,LD LTS 18-64,"MAND STATUTORY CHARGES, RESIDENTIAL",2102988453,1000072287
05.08.2019,ADULT SOCIAL CARE,SENSE,-402.6,LD LTS 18-64,"MAND STATUTORY CHARGES, RESIDENTIAL",2102988515,1000046797
05.08.2019,ADULT SOCIAL CARE,THE REGARD PARTNERSHIP,-401.56,LD LTS 18-64,"MAND STATUTORY CHARGES, RESIDENTIAL",2102987797,1823223
05.08.2019,ADULT SOCIAL CARE,ASHDENE HOUSE LIMITED,-401.56,LD LTS 18-64,"MAND STATUTORY CHARGES, RESIDENTIAL",2102987965,1000021007
05.08.2019,ADULT SOCIAL CARE,THE REGARD PARTNERSHIP (INGLEWOOD HSE),-400.6,LD LTS 18-64,"MAND STATUTORY CHARGES, RESIDENTIAL",2102987310,11307451
05.08.2019,ADULT SOCIAL CARE,INSIGHT,-395.8,LD LTS 18-64,"MAND STATUTORY CHARGES, RESIDENTIAL",2102987696,1825618
05.08.2019,ADULT SOCIAL CARE,PLUS SERVICES,-387.2,LD LTS 18-64,"MAND STATUTORY CHARGES, RESIDENTIAL",2102988218,1000021241
05.08.2019,ADULT SOCIAL CARE,CLACTON FAMILY TRUST LTD,-386.6,LD LTS 18-64,"MAND STATUTORY CHARGES, RESIDENTIAL",2102987863,1000012183
05.08.2019,ADULT SOCIAL CARE,CHOICE SUPPORT,-384.8,LD LTS 18-64,"MAND STATUTORY CHARGES, RESIDENTIAL",2102987920,1000031156
05.08.2019,ADULT SOCIAL CARE,CRAEGMOOR HEALTHCARE,-372.6,LD LTS 18-64,"MAND STATUTORY CHARGES, RESIDENTIAL",2102987650,1323845
05.08.2019,ADULT SOCIAL CARE,CHOICE CARE GROUP,-365,LD LTS 18-64,"MAND STATUTORY CHARGES, RESIDENTIAL",2102987991,1572506
05.08.2019,ADULT SOCIAL CARE,DIAGRAMA HEALTH CARE,-360.8,LD LTS 18-64,"MAND STATUTORY CHARGES, RESIDENTIAL",2102987820,1000075492
05.08.2019,ADULT SOCIAL CARE,THE MEATH,-360.8,LD LTS 18-64,"MAND STATUTORY CHARGES, RESIDENTIAL",2102988532,1000056796
05.08.2019,ADULT SOCIAL CARE,GROVE CARE PARTNERSHIP,-355.32,LD LTS 18-64,"MAND STATUTORY CHARGES, RESIDENTIAL",2102988283,1000052893
05.08.2019,ADULT SOCIAL CARE,VOYAGE LTD (EVESLEIGH KENT),-349.6,LD LTS 18-64,"MAND STATUTORY CHARGES, RESIDENTIAL",2102987708,1000041320
05.08.2019,ADULT SOCIAL CARE,CHOICE SUPPORT,-349.08,LD LTS 18-64,"MAND STATUTORY CHARGES, RESIDENTIAL",2102988503,1104183
05.08.2019,ADULT SOCIAL CARE,VALUE IN CARE LTD,-348.6,LD LTS 18-64,"MAND STATUTORY CHARGES, RESIDENTIAL",2102987261,1000041975
05.08.2019,ADULT SOCIAL CARE,FIR TREE LODGE (SEE ABILITY),-348.6,LD LTS 18-64,"MAND STATUTORY CHARGES, RESIDENTIAL",2102987841,1000052257
05.08.2019,ADULT SOCIAL CARE,BRANDON TRUST,-348.32,LD LTS 18-64,"MAND STATUTORY CHARGES, RESIDENTIAL",2102987592,1000042417
05.08.2019,ADULT SOCIAL CARE,LEONARD CHESHIRE (GARDEN HOUSE),-343.8,LD LTS 18-64,"MAND STATUTORY CHARGES, RESIDENTIAL",2102987390,1000049748
05.08.2019,ADULT SOCIAL CARE,CARE MANAGEMENT GROUP,-343.8,LD LTS 18-64,"MAND STATUTORY CHARGES, RESIDENTIAL",2102987726,1000040475
05.08.2019,ADULT SOCIAL CARE,INSIGHT,-343.76,LD LTS 18-64,"MAND STATUTORY CHARGES, RESIDENTIAL",2102987479,1825618
05.08.2019,ADULT SOCIAL CARE,LEONARD CHESHIRE (THICKET ROAD),-330.2,LD LTS 18-64,"MAND STATUTORY CHARGES, RESIDENTIAL",2102987273,1000049761
05.08.2019,ADULT SOCIAL CARE,SAFFRONLAND HOMES,-330.2,LD LTS 18-64,"MAND STATUTORY CHARGES, RESIDENTIAL",2102987296,1000072152
05.08.2019,ADULT SOCIAL CARE,RYDE HOUSE,-330.2,LD LTS 18-64,"MAND STATUTORY CHARGES, RESIDENTIAL",2102987366,1022373
05.08.2019,ADULT SOCIAL CARE,DIAGRAMA HEALTH CARE,-330.2,LD LTS 18-64,"MAND STATUTORY CHARGES, RESIDENTIAL",2102987431,1000075492
05.08.2019,ADULT SOCIAL CARE,DIAGRAMA HEALTH CARE,-330.2,LD LTS 18-64,"MAND STATUTORY CHARGES, RESIDENTIAL",2102987598,1000075492
05.08.2019,ADULT SOCIAL CARE,GLENPAT HOMES,-330.2,LD LTS 18-64,"MAND STATUTORY CHARGES, RESIDENTIAL",2102987611,1000059312
05.08.2019,ADULT SOCIAL CARE,SAFFRONLAND HOMES (HESTIA),-330.2,LD LTS 18-64,"MAND STATUTORY CHARGES, RESIDENTIAL",2102987659,1000021616
05.08.2019,ADULT SOCIAL CARE,THE DRIVE CARE HOMES LTD,-330.2,LD LTS 18-64,"MAND STATUTORY CHARGES, RESIDENTIAL",2102987741,1000003889
05.08.2019,ADULT SOCIAL CARE,THE CHILTERNS - OPTIMA CARE,-330.2,LD LTS 18-64,"MAND STATUTORY CHARGES, RESIDENTIAL",2102987746,1000042209
05.08.2019,ADULT SOCIAL CARE,NATIONAL AUTISTIC SOCIETY CARE PACK,-330.2,LD LTS 18-64,"MAND STATUTORY CHARGES, RESIDENTIAL",2102987776,1000020538
05.08.2019,ADULT SOCIAL CARE,STEPPING STONES RESETTLEMENT UNIT,-330.2,LD LTS 18-64,"MAND STATUTORY CHARGES, RESIDENTIAL",2102987837,1000032806
05.08.2019,ADULT SOCIAL CARE,ENDURANCE CARE LTD,-330.2,LD LTS 18-64,"MAND STATUTORY CHARGES, RESIDENTIAL",2102987887,1000080552
05.08.2019,ADULT SOCIAL CARE,FERRY CARE LTD,-330.2,LD LTS 18-64,"MAND STATUTORY CHARGES, RESIDENTIAL",2102987917,1000041775
05.08.2019,ADULT SOCIAL CARE,SAFFRONLAND HOMES (HESTIA),-330.2,LD LTS 18-64,"MAND STATUTORY CHARGES, RESIDENTIAL",2102988063,1000021616
05.08.2019,ADULT SOCIAL CARE,ASHINGHAM HOUSE LIMITED,-330.2,LD LTS 18-64,"MAND STATUTORY CHARGES, RESIDENTIAL",2102988091,1000016504
05.08.2019,ADULT SOCIAL CARE,ACTION ON HEARING LOSS,-330.2,LD LTS 18-64,"MAND STATUTORY CHARGES, RESIDENTIAL",2102988104,1000014488
05.08.2019,ADULT SOCIAL CARE,ASD UNIQUE SERVICES LTD,-330.2,LD LTS 18-64,"MAND STATUTORY CHARGES, RESIDENTIAL",2102988110,1000038819
05.08.2019,ADULT SOCIAL CARE,CHOICE CARE GROUP,-330.2,LD LTS 18-64,"MAND STATUTORY CHARGES, RESIDENTIAL",2102988153,1572506
05.08.2019,ADULT SOCIAL CARE,THE AVENUES TRUST,-330.2,LD LTS 18-64,"MAND STATUTORY CHARGES, RESIDENTIAL",2102988173,1981708
05.08.2019,ADULT SOCIAL CARE,BRANDON TRUST,-330.2,LD LTS 18-64,"MAND STATUTORY CHARGES, RESIDENTIAL",2102988200,1000042417
05.08.2019,ADULT SOCIAL CARE,SEEABILITY,-330.2,LD LTS 18-64,"MAND STATUTORY CHARGES, RESIDENTIAL",2102988222,1000043641
05.08.2019,ADULT SOCIAL CARE,SAFFRONLAND HOMES (HESTIA),-330.2,LD LTS 18-64,"MAND STATUTORY CHARGES, RESIDENTIAL",2102988239,1000021616
05.08.2019,ADULT SOCIAL CARE,SAFFRONLAND HOMES,-330.2,LD LTS 18-64,"MAND STATUTORY CHARGES, RESIDENTIAL",2102988256,1000072152
05.08.2019,ADULT SOCIAL CARE,SAFFRONLAND HOMES (HESTIA),-330.2,LD LTS 18-64,"MAND STATUTORY CHARGES, RESIDENTIAL",2102988309,1000021616
05.08.2019,ADULT SOCIAL CARE,LEONARD CHESHIRE (GARDEN HOUSE),-330.2,LD LTS 18-64,"MAND STATUTORY CHARGES, RESIDENTIAL",2102988337,1000049748
05.08.2019,ADULT SOCIAL CARE,THE DRIVE CARE HOMES LTD (ADULTS),-330.2,LD LTS 18-64,"MAND STATUTORY CHARGES, RESIDENTIAL",2102988379,1000055145
05.08.2019,ADULT SOCIAL CARE,SAFFRONLAND HOMES (HESTIA),-330.2,LD LTS 18-64,"MAND STATUTORY CHARGES, RESIDENTIAL",2102988416,1000021616
05.08.2019,ADULT SOCIAL CARE,DIAGRAMA HEALTH CARE,-330.2,LD LTS 18-64,"MAND STATUTORY CHARGES, RESIDENTIAL",2102988423,1000075492
05.08.2019,ADULT SOCIAL CARE,VOYAGE LTD (EVESLEIGH KENT),-330.2,LD LTS 18-64,"MAND STATUTORY CHARGES, RESIDENTIAL",2102988472,1000041320
05.08.2019,ADULT SOCIAL CARE,BROADHAM CARE LIMITED,-330.2,LD LTS 18-64,"MAND STATUTORY CHARGES, RESIDENTIAL",2102988495,1000057411
05.08.2019,ADULT SOCIAL CARE,COMMUNITY INTEGRATED CARE,-327.12,LD LTS 18-64,"MAND STATUTORY CHARGES, RESIDENTIAL",2102988163,1000072886
05.08.2019,ADULT SOCIAL CARE,CARLTON NURSING HOMES LTD,-327,LD LTS 18-64,"MAND STATUTORY CHARGES, RESIDENTIAL",2102988141,1000070431
05.08.2019,ADULT SOCIAL CARE,VOYAGE CARE (MOUNTEARL),-321.8,LD LTS 18-64,"MAND STATUTORY CHARGES, RESIDENTIAL",2102988358,1000078173
05.08.2019,ADULT SOCIAL CARE,ATHOL HOUSE LONDON CHESHIRE HOMES,-321.8,LD LTS 18-64,"MAND STATUTORY CHARGES, RESIDENTIAL",2102988477,1022907
05.08.2019,ADULT SOCIAL CARE,LOVING CARE LTD,-295,LD LTS 18-64,"MAND STATUTORY CHARGES, RESIDENTIAL",2102987320,1000082873
05.08.2019,ADULT SOCIAL CARE,THE DRIVE CARE HOMES LTD,-269.4,LD LTS 18-64,"MAND STATUTORY CHARGES, RESIDENTIAL",2102987248,1000003889
05.08.2019,ADULT SOCIAL CARE,RESIDENTIAL CARE SERVICES LTD,-261,LD LTS 18-64,"MAND STATUTORY CHARGES, RESIDENTIAL",2102988275,1000082629
05.08.2019,ADULT SOCIAL CARE,FIR TREE LODGE (SEE ABILITY),323.2,LD LTS 18-64,OTHER PAYMENTS FOR CLIENTS,2102987453,1000052257
05.08.2019,ADULT SOCIAL CARE,ROYAL MENCAP SOCIETY,750.4,LD LTS 18-64,OTHER PAYMENTS FOR CLIENTS,2102987638,1000034706
05.08.2019,ADULT SOCIAL CARE,CRAEGMOOR WHEELHOUSE PRIORY,870,LD LTS 18-64,OTHER PAYMENTS FOR CLIENTS,2102987783,1000068452
05.08.2019,ADULT SOCIAL CARE,RESIDENTIAL CARE SERVICES LTD,"1,120.00",LD LTS 18-64,OTHER PAYMENTS FOR CLIENTS,2102988444,1000082629
05.08.2019,ADULT SOCIAL CARE,NATIONAL AUTISTIC SOCIETY CARE PACK,"2,568.96",LD LTS 18-64,OTHER PAYMENTS FOR CLIENTS,2102987648,1000020538
05.08.2019,ADULT SOCIAL CARE,REDACTED PERSONAL INFORMATION,"19,329.27",LD LTS 18-64,RESIDENTIAL CARE,REDACTED,REDACTED
05.08.2019,ADULT SOCIAL CARE,CHOICE SUPPORT,"-20,755.87",LD LTS 18-64,RESIDENTIAL CARE,2102987800,1104183
05.08.2019,ADULT SOCIAL CARE,ANCHOR TRUST,"2,302.69",LD LTS 18-64,RESIDENTIAL CARE,2102987898,11257534
05.08.2019,ADULT SOCIAL CARE,31 WOODBOURNE (FRANCES TAYLOR FOUNDATION),"2,444.76",LD LTS 18-64,RESIDENTIAL CARE,2102987785,1000063870
05.08.2019,ADULT SOCIAL CARE,THE FRANCES TAYLOR FOUNDATION,"2,444.76",LD LTS 18-64,RESIDENTIAL CARE,2102988441,1000007274
05.08.2019,ADULT SOCIAL CARE,LA ROSA RESIDENTIAL CARE HOME,"2,585.16",LD LTS 18-64,RESIDENTIAL CARE,2102988177,1000053962
05.08.2019,ADULT SOCIAL CARE,THE PADDOCK (THE SWALLOW GROUP),"2,884.56",LD LTS 18-64,RESIDENTIAL CARE,2102988527,11153854
05.08.2019,ADULT SOCIAL CARE,THE PADDOCK (THE SWALLOW GROUP),"2,927.80",LD LTS 18-64,RESIDENTIAL CARE,2102988022,11153854
05.08.2019,ADULT SOCIAL CARE,HAZELDENE LTD,"3,051.00",LD LTS 18-64,RESIDENTIAL CARE,2102987651,1000019679
05.08.2019,ADULT SOCIAL CARE,CRAEGMOOR (WINDSOR HOUSE),"3,227.60",LD LTS 18-64,RESIDENTIAL CARE,2102988549,1000072462
05.08.2019,ADULT SOCIAL CARE,CRAEGMOOR WILLOWS HYTHE PRIORY,"3,240.00",LD LTS 18-64,RESIDENTIAL CARE,2102988452,1000072287
05.08.2019,ADULT SOCIAL CARE,THE WHITE HOUSE CARE HOME,"3,280.00",LD LTS 18-64,RESIDENTIAL CARE,2102987450,1000076369
05.08.2019,ADULT SOCIAL CARE,ROYAL MENCAP SOCIETY,"3,357.08",LD LTS 18-64,RESIDENTIAL CARE,2102987636,1000034706
05.08.2019,ADULT SOCIAL CARE,ASHDENE HOUSE LIMITED,"3,587.36",LD LTS 18-64,RESIDENTIAL CARE,2102987964,1000021007
05.08.2019,ADULT SOCIAL CARE,THE DRIVE CARE HOMES LTD (ADULTS),"3,791.48",LD LTS 18-64,RESIDENTIAL CARE,2102988378,1000055145
05.08.2019,ADULT SOCIAL CARE,DIAGRAMA HEALTH CARE,"3,924.56",LD LTS 18-64,RESIDENTIAL CARE,2102988422,1000075492
05.08.2019,ADULT SOCIAL CARE,LEONARD CHESHIRE (GARDEN HOUSE),"3,933.80",LD LTS 18-64,RESIDENTIAL CARE,2102988336,1000049748
05.08.2019,ADULT SOCIAL CARE,RYDE HOUSE,"3,944.00",LD LTS 18-64,RESIDENTIAL CARE,2102987365,1022373
05.08.2019,ADULT SOCIAL CARE,DIAGRAMA HEALTH CARE,"3,990.36",LD LTS 18-64,RESIDENTIAL CARE,2102987597,1000075492
05.08.2019,ADULT SOCIAL CARE,ENDURANCE CARE LTD,"4,069.76",LD LTS 18-64,RESIDENTIAL CARE,2102987886,1000080552
05.08.2019,ADULT SOCIAL CARE,PLUS SERVICES,"4,252.00",LD LTS 18-64,RESIDENTIAL CARE,2102988217,1000021241
05.08.2019,ADULT SOCIAL CARE,CHOICE SUPPORT,"4,264.92",LD LTS 18-64,RESIDENTIAL CARE,2102988231,1104183
05.08.2019,ADULT SOCIAL CARE,LEONARD CHESHIRE (GARDEN HOUSE),"4,293.00",LD LTS 18-64,RESIDENTIAL CARE,2102987389,1000049748
05.08.2019,ADULT SOCIAL CARE,CRAEGMOOR DEVONSHIRE ROAD PRIORY,"4,392.52",LD LTS 18-64,RESIDENTIAL CARE,2102987892,1000068453
05.08.2019,ADULT SOCIAL CARE,DIAGRAMA HEALTH CARE,"4,440.56",LD LTS 18-64,RESIDENTIAL CARE,2102987430,1000075492
05.08.2019,ADULT SOCIAL CARE,DIAGRAMA HEALTH CARE,"4,493.04",LD LTS 18-64,RESIDENTIAL CARE,2102988196,1000075492
05.08.2019,ADULT SOCIAL CARE,BRANDON TRUST,"4,503.28",LD LTS 18-64,RESIDENTIAL CARE,2102988085,1000042417
05.08.2019,ADULT SOCIAL CARE,BRANDON TRUST,"4,528.72",LD LTS 18-64,RESIDENTIAL CARE,2102988015,1000042417
05.08.2019,ADULT SOCIAL CARE,DIAGRAMA HEALTH CARE,"4,572.76",LD LTS 18-64,RESIDENTIAL CARE,2102987819,1000075492
05.08.2019,ADULT SOCIAL CARE,OGILVIE COURT,"4,591.92",LD LTS 18-64,RESIDENTIAL CARE,2102988289,1910302
05.08.2019,ADULT SOCIAL CARE,BRANDON TRUST,"4,616.48",LD LTS 18-64,RESIDENTIAL CARE,2102987569,1000042417
05.08.2019,ADULT SOCIAL CARE,BRANDON TRUST,"4,616.48",LD LTS 18-64,RESIDENTIAL CARE,2102987591,1000042417
05.08.2019,ADULT SOCIAL CARE,BRANDON TRUST,"4,641.92",LD LTS 18-64,RESIDENTIAL CARE,2102988509,1000042417
05.08.2019,ADULT SOCIAL CARE,GLEN CARE GROUP,"4,646.00",LD LTS 18-64,RESIDENTIAL CARE,2102987959,1000050223
05.08.2019,ADULT SOCIAL CARE,BRANDON TRUST,"4,664.56",LD LTS 18-64,RESIDENTIAL CARE,2102988199,1000042417
05.08.2019,ADULT SOCIAL CARE,BRANDON TRUST,"4,695.72",LD LTS 18-64,RESIDENTIAL CARE,2102988174,1000042417
05.08.2019,ADULT SOCIAL CARE,BRANDON TRUST,"4,695.72",LD LTS 18-64,RESIDENTIAL CARE,2102988291,1000042417
05.08.2019,ADULT SOCIAL CARE,SAFFRONLAND HOMES,"4,734.00",LD LTS 18-64,RESIDENTIAL CARE,2102987827,11172608
05.08.2019,ADULT SOCIAL CARE,BRANDON TRUST,"4,834.88",LD LTS 18-64,RESIDENTIAL CARE,2102987463,1000042417
05.08.2019,ADULT SOCIAL CARE,THE REGARD PARTNERSHIP,"4,852.84",LD LTS 18-64,RESIDENTIAL CARE,2102987391,1823223
05.08.2019,ADULT SOCIAL CARE,BRANDON TRUST,"4,859.80",LD LTS 18-64,RESIDENTIAL CARE,2102988333,1000042417
05.08.2019,ADULT SOCIAL CARE,BRANDON TRUST,"4,868.32",LD LTS 18-64,RESIDENTIAL CARE,2102987424,1000042417
05.08.2019,ADULT SOCIAL CARE,COMMUNITY INTEGRATED CARE,"4,929.84",LD LTS 18-64,RESIDENTIAL CARE,2102988162,1000072886
05.08.2019,ADULT SOCIAL CARE,BRANDON TRUST,"4,935.04",LD LTS 18-64,RESIDENTIAL CARE,2102988254,1000042417
05.08.2019,ADULT SOCIAL CARE,ASD UNIQUE SERVICES LTD,"4,941.12",LD LTS 18-64,RESIDENTIAL CARE,2102988109,1000038819
05.08.2019,ADULT SOCIAL CARE,CHOICE SUPPORT,"5,073.60",LD LTS 18-64,RESIDENTIAL CARE,2102987919,1000031156
05.08.2019,ADULT SOCIAL CARE,NATIONAL AUTISTIC SOCIETY CARE PACK,"5,096.20",LD LTS 18-64,RESIDENTIAL CARE,2102987777,1000020538
05.08.2019,ADULT SOCIAL CARE,PLUS SERVICES,"5,174.04",LD LTS 18-64,RESIDENTIAL CARE,2102987342,1000021241
05.08.2019,ADULT SOCIAL CARE,GLEN CARE GROUP,"5,191.40",LD LTS 18-64,RESIDENTIAL CARE,2102988038,1000050223
05.08.2019,ADULT SOCIAL CARE,THE MEATH,"5,191.40",LD LTS 18-64,RESIDENTIAL CARE,2102988559,1000056796
05.08.2019,ADULT SOCIAL CARE,VOYAGE LTD (EVESLEIGH KENT),"5,199.48",LD LTS 18-64,RESIDENTIAL CARE,2102988471,1000041320
05.08.2019,ADULT SOCIAL CARE,BRANDON TRUST,"5,204.52",LD LTS 18-64,RESIDENTIAL CARE,2102987878,1000042417
05.08.2019,ADULT SOCIAL CARE,CRAEGMOOR WHEELHOUSE PRIORY,"5,259.04",LD LTS 18-64,RESIDENTIAL CARE,2102987539,1000068452
05.08.2019,ADULT SOCIAL CARE,AITCH CARE HOMES (LONDON) LTD,"5,295.24",LD LTS 18-64,RESIDENTIAL CARE,2102988242,1000059432
05.08.2019,ADULT SOCIAL CARE,TRUECARE HAVEN SUPPORT LTD,"5,298.00",LD LTS 18-64,RESIDENTIAL CARE,2102987730,1000078974
05.08.2019,ADULT SOCIAL CARE,RESIDENTIAL CARE SERVICES LTD,"5,300.88",LD LTS 18-64,RESIDENTIAL CARE,2102988274,1000082629
05.08.2019,ADULT SOCIAL CARE,ATHOL HOUSE LONDON CHESHIRE HOMES,"5,309.56",LD LTS 18-64,RESIDENTIAL CARE,2102988476,1022907
05.08.2019,ADULT SOCIAL CARE,CARE MANAGEMENT GROUP,"5,391.76",LD LTS 18-64,RESIDENTIAL CARE,2102987876,1000040475
05.08.2019,ADULT SOCIAL CARE,BRANDON TRUST,"5,408.28",LD LTS 18-64,RESIDENTIAL CARE,2102987600,1000042417
05.08.2019,ADULT SOCIAL CARE,INSIGHT,"5,437.28",LD LTS 18-64,RESIDENTIAL CARE,2102988151,1825618
05.08.2019,ADULT SOCIAL CARE,BRANDON TRUST,"5,442.24",LD LTS 18-64,RESIDENTIAL CARE,2102987394,1000042417
05.08.2019,ADULT SOCIAL CARE,CHOICE SUPPORT,"5,536.76",LD LTS 18-64,RESIDENTIAL CARE,2102988502,1104183
05.08.2019,ADULT SOCIAL CARE,CARE MANAGEMENT GROUP,"5,656.00",LD LTS 18-64,RESIDENTIAL CARE,2102987907,1000040475
05.08.2019,ADULT SOCIAL CARE,CARETECH COMMUNITY SERVICES LTD,"5,693.63",LD LTS 18-64,RESIDENTIAL CARE,2102988331,1000066698
05.08.2019,ADULT SOCIAL CARE,HAZELDENE LTD,"5,704.52",LD LTS 18-64,RESIDENTIAL CARE,2102987593,1000019679
05.08.2019,ADULT SOCIAL CARE,THE MEATH,"5,759.76",LD LTS 18-64,RESIDENTIAL CARE,2102988531,1000056796
05.08.2019,ADULT SOCIAL CARE,PALM CARE LTD,"6,000.00",LD LTS 18-64,RESIDENTIAL CARE,2102987722,1000066042
05.08.2019,ADULT SOCIAL CARE,VOYAGE LTD (EVESLEIGH KENT),"6,091.32",LD LTS 18-64,RESIDENTIAL CARE,2102987707,1000041320
05.08.2019,ADULT SOCIAL CARE,VOYAGE CARE (MOUNTEARL),"6,298.28",LD LTS 18-64,RESIDENTIAL CARE,2102987550,1000078173
05.08.2019,ADULT SOCIAL CARE,THE REGARD PARTNERSHIP (INGLEWOOD HSE),"6,482.60",LD LTS 18-64,RESIDENTIAL CARE,2102987309,11307451
05.08.2019,ADULT SOCIAL CARE,CHOICE SUPPORT,"6,603.28",LD LTS 18-64,RESIDENTIAL CARE,2102988465,1104183
05.08.2019,ADULT SOCIAL CARE,STEPPING STONES RESETTLEMENT UNIT,"6,605.40",LD LTS 18-64,RESIDENTIAL CARE,2102987836,1000032806
05.08.2019,ADULT SOCIAL CARE,ACTION ON HEARING LOSS,"6,662.52",LD LTS 18-64,RESIDENTIAL CARE,2102988103,1000014488
05.08.2019,ADULT SOCIAL CARE,THE REGARD PARTNERSHIP,"6,766.84",LD LTS 18-64,RESIDENTIAL CARE,2102987796,1823223
05.08.2019,ADULT SOCIAL CARE,VOYAGE CARE (MOUNTEARL),"6,788.88",LD LTS 18-64,RESIDENTIAL CARE,2102988357,1000078173
05.08.2019,ADULT SOCIAL CARE,CLEARWATER CARE (HACKNEY) LTD,"6,800.00",LD LTS 18-64,RESIDENTIAL CARE,2102987901,1000070479
05.08.2019,ADULT SOCIAL CARE,SAFFRONLAND HOMES,"6,868.00",LD LTS 18-64,RESIDENTIAL CARE,2102987575,1000072152
05.08.2019,ADULT SOCIAL CARE,GLEN CARE GROUP,"6,868.00",LD LTS 18-64,RESIDENTIAL CARE,2102987685,1000050223
05.08.2019,ADULT SOCIAL CARE,SAFFRONLAND HOMES,"6,900.00",LD LTS 18-64,RESIDENTIAL CARE,2102988408,1000072153
05.08.2019,ADULT SOCIAL CARE,LEONARD CHESHIRE (THICKET ROAD),"6,906.96",LD LTS 18-64,RESIDENTIAL CARE,2102987272,1000049761
05.08.2019,ADULT SOCIAL CARE,VALUE IN CARE LTD,"7,035.52",LD LTS 18-64,RESIDENTIAL CARE,2102987260,1000041975
05.08.2019,ADULT SOCIAL CARE,NEXUS PROGRAMME LTD,"7,100.08",LD LTS 18-64,RESIDENTIAL CARE,2102987970,1000025336
05.08.2019,ADULT SOCIAL CARE,CLACTON FAMILY TRUST LTD,"7,106.92",LD LTS 18-64,RESIDENTIAL CARE,2102987862,1000012183
05.08.2019,ADULT SOCIAL CARE,RNIB COMMUNITY LIVING SERVICE,"7,129.24",LD LTS 18-64,RESIDENTIAL CARE,2102987856,11211087
05.08.2019,ADULT SOCIAL CARE,BROADHAM CARE LIMITED,"7,200.00",LD LTS 18-64,RESIDENTIAL CARE,2102988494,1000057411
05.08.2019,ADULT SOCIAL CARE,VOYAGE LTD (EVESLEIGH KENT),"7,213.16",LD LTS 18-64,RESIDENTIAL CARE,2102988116,1000041320
05.08.2019,ADULT SOCIAL CARE,THE REGARD PARTNERSHIP,"7,272.00",LD LTS 18-64,RESIDENTIAL CARE,2102988445,1823223
05.08.2019,ADULT SOCIAL CARE,CRAEGMOOR HEALTHCARE,"7,305.44",LD LTS 18-64,RESIDENTIAL CARE,2102987649,1323845
05.08.2019,ADULT SOCIAL CARE,SAFFRONLAND HOMES (HESTIA),"7,482.08",LD LTS 18-64,RESIDENTIAL CARE,2102987658,1000021616
05.08.2019,ADULT SOCIAL CARE,GLENPAT HOMES,"7,540.68",LD LTS 18-64,RESIDENTIAL CARE,2102987610,1000059312
05.08.2019,ADULT SOCIAL CARE,BURNHAM HOUSE,"7,600.00",LD LTS 18-64,RESIDENTIAL CARE,2102987687,1000050697
05.08.2019,ADULT SOCIAL CARE,CHOICE CARE GROUP,"7,662.88",LD LTS 18-64,RESIDENTIAL CARE,2102987930,1572506
05.08.2019,ADULT SOCIAL CARE,CARE MANAGEMENT GROUP,"7,745.24",LD LTS 18-64,RESIDENTIAL CARE,2102987725,1000040475
05.08.2019,ADULT SOCIAL CARE,SAFFRONLAND HOMES (HESTIA),"7,806.44",LD LTS 18-64,RESIDENTIAL CARE,2102988062,1000021616
05.08.2019,ADULT SOCIAL CARE,SAFFRONLAND HOMES (HESTIA),"7,806.44",LD LTS 18-64,RESIDENTIAL CARE,2102988238,1000021616
05.08.2019,ADULT SOCIAL CARE,SAFFRONLAND HOMES (HESTIA),"7,806.44",LD LTS 18-64,RESIDENTIAL CARE,2102988308,1000021616
05.08.2019,ADULT SOCIAL CARE,RESIDENTIAL CARE SERVICES LTD,"7,808.08",LD LTS 18-64,RESIDENTIAL CARE,2102988443,1000082629
05.08.2019,ADULT SOCIAL CARE,BROADHAM CARE LIMITED,"7,814.88",LD LTS 18-64,RESIDENTIAL CARE,2102987747,1000057411
05.08.2019,ADULT SOCIAL CARE,ASHINGHAM HOUSE LIMITED,"7,874.68",LD LTS 18-64,RESIDENTIAL CARE,2102988090,1000016504
05.08.2019,ADULT SOCIAL CARE,CHOICE CARE GROUP,"7,962.60",LD LTS 18-64,RESIDENTIAL CARE,2102988152,1572506
05.08.2019,ADULT SOCIAL CARE,FIR TREE LODGE (SEE ABILITY),"7,993.04",LD LTS 18-64,RESIDENTIAL CARE,2102987840,1000052257
05.08.2019,ADULT SOCIAL CARE,GROVE CARE PARTNERSHIP,"8,059.20",LD LTS 18-64,RESIDENTIAL CARE,2102988282,1000052893
05.08.2019,ADULT SOCIAL CARE,CHOICE CARE GROUP,"8,059.80",LD LTS 18-64,RESIDENTIAL CARE,2102988413,1572506
05.08.2019,ADULT SOCIAL CARE,SAFFRONLAND HOMES (HESTIA),"8,228.44",LD LTS 18-64,RESIDENTIAL CARE,2102988415,1000021616
05.08.2019,ADULT SOCIAL CARE,THE AVENUES TRUST,"8,320.80",LD LTS 18-64,RESIDENTIAL CARE,2102988172,1981708
05.08.2019,ADULT SOCIAL CARE,CHOICE CARE GROUP,"8,403.92",LD LTS 18-64,RESIDENTIAL CARE,2102987990,1572506
05.08.2019,ADULT SOCIAL CARE,SAFFRONLAND HOMES,"8,650.24",LD LTS 18-64,RESIDENTIAL CARE,2102987295,1000072152
05.08.2019,ADULT SOCIAL CARE,INSIGHT,"8,800.00",LD LTS 18-64,RESIDENTIAL CARE,2102987537,1825618
05.08.2019,ADULT SOCIAL CARE,INSIGHT,"8,802.20",LD LTS 18-64,RESIDENTIAL CARE,2102987686,1825618
05.08.2019,ADULT SOCIAL CARE,THE REGARD PARTNERSHIP,"8,926.40",LD LTS 18-64,RESIDENTIAL CARE,2102988003,1823223
05.08.2019,ADULT SOCIAL CARE,CARETECH COMMUNITY SERVICES LTD,"8,960.00",LD LTS 18-64,RESIDENTIAL CARE,2102987571,1000066698
05.08.2019,ADULT SOCIAL CARE,ASHMEAD HEALTHCARE LTD,"9,024.00",LD LTS 18-64,RESIDENTIAL CARE,2102987768,1000077917
05.08.2019,ADULT SOCIAL CARE,INSIGHT,"9,258.20",LD LTS 18-64,RESIDENTIAL CARE,2102987695,1825618
05.08.2019,ADULT SOCIAL CARE,SENSE,"9,568.00",LD LTS 18-64,RESIDENTIAL CARE,2102988514,1000046797
05.08.2019,ADULT SOCIAL CARE,THE DRIVE CARE HOMES LTD,"9,600.00",LD LTS 18-64,RESIDENTIAL CARE,2102988028,1000003889
05.08.2019,ADULT SOCIAL CARE,SAFFRONLAND HOMES,"9,620.92",LD LTS 18-64,RESIDENTIAL CARE,2102988255,1000072152
05.08.2019,ADULT SOCIAL CARE,INSIGHT,"10,231.48",LD LTS 18-64,RESIDENTIAL CARE,2102987478,1825618
05.08.2019,ADULT SOCIAL CARE,WESC FOUNDATION,"10,311.84",LD LTS 18-64,RESIDENTIAL CARE,2102987643,1000074658
05.08.2019,ADULT SOCIAL CARE,THE CHILTERNS - OPTIMA CARE,"10,411.08",LD LTS 18-64,RESIDENTIAL CARE,2102987665,1000042209
05.08.2019,ADULT SOCIAL CARE,SEEABILITY,"10,495.60",LD LTS 18-64,RESIDENTIAL CARE,2102988221,1000043641
05.08.2019,ADULT SOCIAL CARE,CARLTON NURSING HOMES LTD,"10,660.00",LD LTS 18-64,RESIDENTIAL CARE,2102988140,1000070431
05.08.2019,ADULT SOCIAL CARE,MAYFIELD CHILDRENS HOME,"10,798.92",LD LTS 18-64,RESIDENTIAL CARE,2102987736,1000054051
05.08.2019,ADULT SOCIAL CARE,LOVING CARE LTD,"11,006.96",LD LTS 18-64,RESIDENTIAL CARE,2102987319,1000082873
05.08.2019,ADULT SOCIAL CARE,FERRY CARE LTD,"11,083.08",LD LTS 18-64,RESIDENTIAL CARE,2102987916,1000041775
05.08.2019,ADULT SOCIAL CARE,THE REGARD PARTNERSHIP,"11,155.00",LD LTS 18-64,RESIDENTIAL CARE,2102988073,1823223
05.08.2019,ADULT SOCIAL CARE,OCEAN COMMUNITY SERVICES LTD,"11,198.48",LD LTS 18-64,RESIDENTIAL CARE,2102987998,1000050124
05.08.2019,ADULT SOCIAL CARE,THE CHILTERNS - OPTIMA CARE,"11,283.72",LD LTS 18-64,RESIDENTIAL CARE,2102987745,1000042209
05.08.2019,ADULT SOCIAL CARE,CARE O LINE,"12,096.00",LD LTS 18-64,RESIDENTIAL CARE,2102987904,11241743
05.08.2019,ADULT SOCIAL CARE,CYGNET CARE SERVICES LTD,"12,404.00",LD LTS 18-64,RESIDENTIAL CARE,2102987524,1000050432
05.08.2019,ADULT SOCIAL CARE,CYGNET CARE SERVICES LTD,"12,672.80",LD LTS 18-64,RESIDENTIAL CARE,2102987585,1000050432
05.08.2019,ADULT SOCIAL CARE,NASH CARE HOMES LTD,"13,244.00",LD LTS 18-64,RESIDENTIAL CARE,2102987262,1000080224
05.08.2019,ADULT SOCIAL CARE,INDEPENDENCE HOMES LTD,"14,273.16",LD LTS 18-64,RESIDENTIAL CARE,2102987532,1000058961
05.08.2019,ADULT SOCIAL CARE,VALUE IN CARE LTD,"14,706.72",LD LTS 18-64,RESIDENTIAL CARE,2102987960,1000041975
05.08.2019,ADULT SOCIAL CARE,THE DRIVE CARE HOMES LTD,"15,183.28",LD LTS 18-64,RESIDENTIAL CARE,2102987247,1000003889
05.08.2019,ADULT SOCIAL CARE,THE DRIVE CARE HOMES LTD (ADULTS),"15,183.80",LD LTS 18-64,RESIDENTIAL CARE,2102987860,1000055145
05.08.2019,ADULT SOCIAL CARE,THE REGARD PARTNERSHIP,"17,517.48",LD LTS 18-64,RESIDENTIAL CARE,2102987568,1823223
05.08.2019,ADULT SOCIAL CARE,REDACTED PERSONAL INFORMATION,269.8,LD LTS 18-64,SUPPORTED LIVING,REDACTED,REDACTED
05.08.2019,ADULT SOCIAL CARE,REDACTED PERSONAL INFORMATION,269.8,LD LTS 18-64,SUPPORTED LIVING,REDACTED,REDACTED
05.08.2019,ADULT SOCIAL CARE,HEALTH PERSONNEL LTD,"-13,644.00",LD LTS 18-64,SUPPORTED LIVING,2102987480,1000076377
05.08.2019,ADULT SOCIAL CARE,CHOICE SUPPORT,"-10,691.76",LD LTS 18-64,SUPPORTED LIVING,2102987049,1104183
05.08.2019,ADULT SOCIAL CARE,CHOICE SUPPORT,"-1,781.96",LD LTS 18-64,SUPPORTED LIVING,2102988139,1104183
05.08.2019,ADULT SOCIAL CARE,PEABODY TRUST,"-1,125.12",LD LTS 18-64,SUPPORTED LIVING,2102987749,11275862
05.08.2019,ADULT SOCIAL CARE,PEABODY TRUST,261.8,LD LTS 18-64,SUPPORTED LIVING,2102987432,11275862
05.08.2019,ADULT SOCIAL CARE,PEABODY TRUST,266.12,LD LTS 18-64,SUPPORTED LIVING,2102988529,11275862
05.08.2019,ADULT SOCIAL CARE,BRANDON TRUST,266.56,LD LTS 18-64,SUPPORTED LIVING,2102988107,1000042417
05.08.2019,ADULT SOCIAL CARE,PEABODY TRUST,281.28,LD LTS 18-64,SUPPORTED LIVING,2102987661,11275862
05.08.2019,ADULT SOCIAL CARE,PEABODY TRUST,281.28,LD LTS 18-64,SUPPORTED LIVING,2102988014,11275862
05.08.2019,ADULT SOCIAL CARE,PEABODY TRUST,301.28,LD LTS 18-64,SUPPORTED LIVING,2102987967,11275862
05.08.2019,ADULT SOCIAL CARE,THE RATHBONE CENTRE,374.4,LD LTS 18-64,SUPPORTED LIVING,2102988108,1000050632
05.08.2019,ADULT SOCIAL CARE,SWK DISABLEMENT ASSN,409.92,LD LTS 18-64,SUPPORTED LIVING,2102987896,1000011698
05.08.2019,ADULT SOCIAL CARE,PECULIAR CARE HOMES LTD,430.8,LD LTS 18-64,SUPPORTED LIVING,2102987398,1000076991
05.08.2019,ADULT SOCIAL CARE,PEABODY TRUST,441.92,LD LTS 18-64,SUPPORTED LIVING,2102987332,11275862
05.08.2019,ADULT SOCIAL CARE,PEABODY TRUST,441.92,LD LTS 18-64,SUPPORTED LIVING,2102987397,11275862
05.08.2019,ADULT SOCIAL CARE,PEABODY TRUST,562.56,LD LTS 18-64,SUPPORTED LIVING,2102987351,11275862
05.08.2019,ADULT SOCIAL CARE,PEABODY TRUST,562.56,LD LTS 18-64,SUPPORTED LIVING,2102988483,11275862
05.08.2019,ADULT SOCIAL CARE,PEABODY TRUST,582.56,LD LTS 18-64,SUPPORTED LIVING,2102988470,11275862
05.08.2019,ADULT SOCIAL CARE,CHOICE SUPPORT,592.44,LD LTS 18-64,SUPPORTED LIVING,2102988297,1104183
05.08.2019,ADULT SOCIAL CARE,CHOICE SUPPORT,658.4,LD LTS 18-64,SUPPORTED LIVING,2102987997,1104183
05.08.2019,ADULT SOCIAL CARE,THE REGARD PARTNERSHIP,675.2,LD LTS 18-64,SUPPORTED LIVING,2102988475,1823223
05.08.2019,ADULT SOCIAL CARE,CHOICE SUPPORT,705.6,LD LTS 18-64,SUPPORTED LIVING,2102987734,1104183
05.08.2019,ADULT SOCIAL CARE,THE REGARD PARTNERSHIP,749.32,LD LTS 18-64,SUPPORTED LIVING,2102987808,1823223
05.08.2019,ADULT SOCIAL CARE,CHOICE SUPPORT,894.13,LD LTS 18-64,SUPPORTED LIVING,2102988069,1104183
05.08.2019,ADULT SOCIAL CARE,SENSE,"1,037.60",LD LTS 18-64,SUPPORTED LIVING,2102988008,1000046797
05.08.2019,ADULT SOCIAL CARE,MEDACS HOMECARE,"1,040.40",LD LTS 18-64,SUPPORTED LIVING,2102987414,11287415
05.08.2019,ADULT SOCIAL CARE,PEABODY TRUST,"1,125.12",LD LTS 18-64,SUPPORTED LIVING,2102988463,11275862
05.08.2019,ADULT SOCIAL CARE,CHOICE SUPPORT,"1,128.00",LD LTS 18-64,SUPPORTED LIVING,2102988464,1104183
05.08.2019,ADULT SOCIAL CARE,CHOICE SUPPORT,"1,295.63",LD LTS 18-64,SUPPORTED LIVING,2102987773,1104183
05.08.2019,ADULT SOCIAL CARE,CHOICE SUPPORT,"1,307.39",LD LTS 18-64,SUPPORTED LIVING,2102987798,1104183
05.08.2019,ADULT SOCIAL CARE,ATEGI LTD,"1,312.00",LD LTS 18-64,SUPPORTED LIVING,2102987743,1000081382
05.08.2019,ADULT SOCIAL CARE,AURORA OPTIONS,"1,427.58",LD LTS 18-64,SUPPORTED LIVING,2102987654,1000066695
05.08.2019,ADULT SOCIAL CARE,CHOICE SUPPORT,"1,543.08",LD LTS 18-64,SUPPORTED LIVING,2102988089,1104183
05.08.2019,ADULT SOCIAL CARE,LINKAGE COMMUNITY TRUST LTD,"1,598.52",LD LTS 18-64,SUPPORTED LIVING,2102988136,1000003632
05.08.2019,ADULT SOCIAL CARE,PEABODY TRUST,"1,895.44",LD LTS 18-64,SUPPORTED LIVING,2102987713,11275862
05.08.2019,ADULT SOCIAL CARE,ATEGI LTD,"1,960.00",LD LTS 18-64,SUPPORTED LIVING,2102987484,1000081382
05.08.2019,ADULT SOCIAL CARE,ATEGI LTD,"1,960.00",LD LTS 18-64,SUPPORTED LIVING,2102987630,1000081382
05.08.2019,ADULT SOCIAL CARE,ATEGI LTD,"2,040.00",LD LTS 18-64,SUPPORTED LIVING,2102988486,1000081382
05.08.2019,ADULT SOCIAL CARE,ATEGI LTD,"2,060.00",LD LTS 18-64,SUPPORTED LIVING,2102987323,1000081382
05.08.2019,ADULT SOCIAL CARE,CHOICE SUPPORT,"2,111.28",LD LTS 18-64,SUPPORTED LIVING,2102988034,1104183
05.08.2019,ADULT SOCIAL CARE,CHOICE SUPPORT,"2,234.48",LD LTS 18-64,SUPPORTED LIVING,2102987666,1104183
05.08.2019,ADULT SOCIAL CARE,CHOICE SUPPORT,"2,238.56",LD LTS 18-64,SUPPORTED LIVING,2102988558,1104183
05.08.2019,ADULT SOCIAL CARE,ATEGI LTD,"2,286.52",LD LTS 18-64,SUPPORTED LIVING,2102987623,1000081382
05.08.2019,ADULT SOCIAL CARE,PEABODY TRUST,"2,314.20",LD LTS 18-64,SUPPORTED LIVING,2102988406,11275862
05.08.2019,ADULT SOCIAL CARE,BRANDON TRUST,"2,330.20",LD LTS 18-64,SUPPORTED LIVING,2102987759,1000042417
05.08.2019,ADULT SOCIAL CARE,PEABODY TRUST,"2,460.92",LD LTS 18-64,SUPPORTED LIVING,2102988298,11275862
05.08.2019,ADULT SOCIAL CARE,BRANDON TRUST,"2,743.36",LD LTS 18-64,SUPPORTED LIVING,2102987305,1000042417
05.08.2019,ADULT SOCIAL CARE,BRANDON TRUST,"2,780.16",LD LTS 18-64,SUPPORTED LIVING,2102987489,1000042417
05.08.2019,ADULT SOCIAL CARE,BRANDON TRUST,"2,781.12",LD LTS 18-64,SUPPORTED LIVING,2102987669,1000042417
05.08.2019,ADULT SOCIAL CARE,PEABODY TRUST,"2,809.56",LD LTS 18-64,SUPPORTED LIVING,2102987481,11275862
05.08.2019,ADULT SOCIAL CARE,CHOICE SUPPORT,"2,909.80",LD LTS 18-64,SUPPORTED LIVING,2102987805,1104183
05.08.2019,ADULT SOCIAL CARE,THE REGARD PARTNERSHIP,"2,920.96",LD LTS 18-64,SUPPORTED LIVING,2102988419,1823223
05.08.2019,ADULT SOCIAL CARE,PEABODY TRUST,"2,939.04",LD LTS 18-64,SUPPORTED LIVING,2102987562,11275862
05.08.2019,ADULT SOCIAL CARE,PEABODY TRUST,"3,144.64",LD LTS 18-64,SUPPORTED LIVING,2102988176,11275862
05.08.2019,ADULT SOCIAL CARE,AURORA OPTIONS,"3,148.16",LD LTS 18-64,SUPPORTED LIVING,2102987364,1000066695
05.08.2019,ADULT SOCIAL CARE,CHOICE SUPPORT,"3,162.96",LD LTS 18-64,SUPPORTED LIVING,2102987292,1104183
05.08.2019,ADULT SOCIAL CARE,AURORA OPTIONS,"3,180.00",LD LTS 18-64,SUPPORTED LIVING,2102988247,1000066695
05.08.2019,ADULT SOCIAL CARE,ENDURANCE CARE LTD,"3,186.40",LD LTS 18-64,SUPPORTED LIVING,2102987888,1000080552
05.08.2019,ADULT SOCIAL CARE,PEABODY TRUST,"3,301.80",LD LTS 18-64,SUPPORTED LIVING,2102987259,11275862
05.08.2019,ADULT SOCIAL CARE,CHOICE SUPPORT,"3,331.80",LD LTS 18-64,SUPPORTED LIVING,2102987880,1104183
05.08.2019,ADULT SOCIAL CARE,BRANDON TRUST,"3,363.12",LD LTS 18-64,SUPPORTED LIVING,2102987814,1000042417
05.08.2019,ADULT SOCIAL CARE,THE REGARD PARTNERSHIP (IVY LODGE),"3,525.72",LD LTS 18-64,SUPPORTED LIVING,2102988094,11002026
05.08.2019,ADULT SOCIAL CARE,CHOICE SUPPORT,"3,546.24",LD LTS 18-64,SUPPORTED LIVING,2102988029,1104183
05.08.2019,ADULT SOCIAL CARE,CHOICE SUPPORT,"3,673.36",LD LTS 18-64,SUPPORTED LIVING,2102987753,1104183
05.08.2019,ADULT SOCIAL CARE,CHOICE SUPPORT,"3,690.24",LD LTS 18-64,SUPPORTED LIVING,2102987300,1104183
05.08.2019,ADULT SOCIAL CARE,BRANDON TRUST,"3,742.36",LD LTS 18-64,SUPPORTED LIVING,2102988516,1000042417
05.08.2019,ADULT SOCIAL CARE,CHOICE SUPPORT,"3,777.12",LD LTS 18-64,SUPPORTED LIVING,2102987684,1104183
05.08.2019,ADULT SOCIAL CARE,BRANDON TRUST,"3,827.24",LD LTS 18-64,SUPPORTED LIVING,2102987246,1000042417
05.08.2019,ADULT SOCIAL CARE,CHOICE SUPPORT,"3,836.00",LD LTS 18-64,SUPPORTED LIVING,2102987322,1104183
05.08.2019,ADULT SOCIAL CARE,FRONTIER SUPPORT SERVICES LTD,"3,902.60",LD LTS 18-64,SUPPORTED LIVING,2102987627,1000072241
05.08.2019,ADULT SOCIAL CARE,CARE MANAGEMENT GROUP,"3,940.00",LD LTS 18-64,SUPPORTED LIVING,2102987833,1000040475
05.08.2019,ADULT SOCIAL CARE,CHILDREN OF COLOUR,"4,000.00",LD LTS 18-64,SUPPORTED LIVING,2102988513,1000044955
05.08.2019,ADULT SOCIAL CARE,CHOICE SUPPORT,"4,101.32",LD LTS 18-64,SUPPORTED LIVING,2102988227,1104183
05.08.2019,ADULT SOCIAL CARE,FRONTIER SUPPORT SERVICES LTD,"4,155.60",LD LTS 18-64,SUPPORTED LIVING,2102987752,1000072241
05.08.2019,ADULT SOCIAL CARE,THE REGARD PARTNERSHIP,"4,225.20",LD LTS 18-64,SUPPORTED LIVING,2102988076,1823223
05.08.2019,ADULT SOCIAL CARE,CARE MANAGEMENT GROUP,"4,360.00",LD LTS 18-64,SUPPORTED LIVING,2102988286,1000040475
05.08.2019,ADULT SOCIAL CARE,CHOICE SUPPORT,"4,374.76",LD LTS 18-64,SUPPORTED LIVING,2102988056,1104183
05.08.2019,ADULT SOCIAL CARE,CHOICE SUPPORT,"4,391.20",LD LTS 18-64,SUPPORTED LIVING,2102988345,1104183
05.08.2019,ADULT SOCIAL CARE,THE REGARD PARTNERSHIP,"4,400.00",LD LTS 18-64,SUPPORTED LIVING,2102988080,1823223
05.08.2019,ADULT SOCIAL CARE,CHOICE SUPPORT,"4,418.64",LD LTS 18-64,SUPPORTED LIVING,2102987996,1104183
05.08.2019,ADULT SOCIAL CARE,PLUS SERVICES,"4,534.00",LD LTS 18-64,SUPPORTED LIVING,2102988435,1000021241
05.08.2019,ADULT SOCIAL CARE,CHOICE SUPPORT,"4,555.80",LD LTS 18-64,SUPPORTED LIVING,2102988160,1104183
05.08.2019,ADULT SOCIAL CARE,CHOICE SUPPORT,"4,572.28",LD LTS 18-64,SUPPORTED LIVING,2102987779,1104183
05.08.2019,ADULT SOCIAL CARE,CHOICE SUPPORT,"4,746.20",LD LTS 18-64,SUPPORTED LIVING,2102987865,1104183
05.08.2019,ADULT SOCIAL CARE,CHOICE SUPPORT,"4,763.08",LD LTS 18-64,SUPPORTED LIVING,2102988281,1104183
05.08.2019,ADULT SOCIAL CARE,FRONTIER SUPPORT SERVICES LTD,"4,772.00",LD LTS 18-64,SUPPORTED LIVING,2102987678,1000072241
05.08.2019,ADULT SOCIAL CARE,CHOICE SUPPORT,"4,826.76",LD LTS 18-64,SUPPORTED LIVING,2102988161,1104183
05.08.2019,ADULT SOCIAL CARE,CARE MANAGEMENT GROUP,"4,908.00",LD LTS 18-64,SUPPORTED LIVING,2102987874,1000040475
05.08.2019,ADULT SOCIAL CARE,CHOICE SUPPORT,"4,944.72",LD LTS 18-64,SUPPORTED LIVING,2102987799,1104183
05.08.2019,ADULT SOCIAL CARE,CARE MANAGEMENT GROUP,"4,960.00",LD LTS 18-64,SUPPORTED LIVING,2102987842,1000040475
05.08.2019,ADULT SOCIAL CARE,PLUS SERVICES,"4,970.16",LD LTS 18-64,SUPPORTED LIVING,2102987350,1000021241
05.08.2019,ADULT SOCIAL CARE,CHOICE SUPPORT,"4,979.36",LD LTS 18-64,SUPPORTED LIVING,2102988049,1104183
05.08.2019,ADULT SOCIAL CARE,CHOICE SUPPORT,"4,999.76",LD LTS 18-64,SUPPORTED LIVING,2102987229,1104183
05.08.2019,ADULT SOCIAL CARE,HEALTH PERSONNEL LTD,"5,057.64",LD LTS 18-64,SUPPORTED LIVING,2102987465,1000076377
05.08.2019,ADULT SOCIAL CARE,PLUS SERVICES,"5,097.56",LD LTS 18-64,SUPPORTED LIVING,2102987306,1000021241
05.08.2019,ADULT SOCIAL CARE,CHOICE SUPPORT,"5,105.40",LD LTS 18-64,SUPPORTED LIVING,2102988166,1104183
05.08.2019,ADULT SOCIAL CARE,CHOICE SUPPORT,"5,105.40",LD LTS 18-64,SUPPORTED LIVING,2102988467,1104183
05.08.2019,ADULT SOCIAL CARE,CHOICE SUPPORT,"5,180.96",LD LTS 18-64,SUPPORTED LIVING,2102988548,1104183
05.08.2019,ADULT SOCIAL CARE,CHOICE SUPPORT,"5,230.68",LD LTS 18-64,SUPPORTED LIVING,2102987712,1104183
05.08.2019,ADULT SOCIAL CARE,CHOICE SUPPORT,"5,230.68",LD LTS 18-64,SUPPORTED LIVING,2102988181,1104183
05.08.2019,ADULT SOCIAL CARE,CARE MANAGEMENT GROUP,"5,240.56",LD LTS 18-64,SUPPORTED LIVING,2102987699,1000040475
05.08.2019,ADULT SOCIAL CARE,PLUS SERVICES,"5,272.80",LD LTS 18-64,SUPPORTED LIVING,2102987307,1000021241
05.08.2019,ADULT SOCIAL CARE,CHOICE SUPPORT,"5,289.48",LD LTS 18-64,SUPPORTED LIVING,2102987411,1104183
05.08.2019,ADULT SOCIAL CARE,BRANDON TRUST,"5,299.80",LD LTS 18-64,SUPPORTED LIVING,2102987335,1000042417
05.08.2019,ADULT SOCIAL CARE,CHOICE SUPPORT,"5,327.28",LD LTS 18-64,SUPPORTED LIVING,2102987419,1104183
05.08.2019,ADULT SOCIAL CARE,NOMASE CARE LTD,"5,368.00",LD LTS 18-64,SUPPORTED LIVING,2102987311,1000082446
05.08.2019,ADULT SOCIAL CARE,CHOICE SUPPORT,"5,396.76",LD LTS 18-64,SUPPORTED LIVING,2102987586,1104183
05.08.2019,ADULT SOCIAL CARE,CHOICE SUPPORT,"5,461.08",LD LTS 18-64,SUPPORTED LIVING,2102988230,1104183
05.08.2019,ADULT SOCIAL CARE,CHOICE SUPPORT,"5,467.52",LD LTS 18-64,SUPPORTED LIVING,2102987361,1104183
05.08.2019,ADULT SOCIAL CARE,CHOICE SUPPORT,"5,584.08",LD LTS 18-64,SUPPORTED LIVING,2102988280,1104183
05.08.2019,ADULT SOCIAL CARE,CHOICE SUPPORT,"5,595.48",LD LTS 18-64,SUPPORTED LIVING,2102988013,1104183
05.08.2019,ADULT SOCIAL CARE,BRANDON TRUST,"5,754.40",LD LTS 18-64,SUPPORTED LIVING,2102987900,1000042417
05.08.2019,ADULT SOCIAL CARE,BRANDON TRUST,"5,754.40",LD LTS 18-64,SUPPORTED LIVING,2102988021,1000042417
05.08.2019,ADULT SOCIAL CARE,BRANDON TRUST,"5,758.28",LD LTS 18-64,SUPPORTED LIVING,2102987804,1000042417
05.08.2019,ADULT SOCIAL CARE,LONDON CYRENIANS HOUSING LTD,"5,768.96",LD LTS 18-64,SUPPORTED LIVING,2102987356,1000078600
05.08.2019,ADULT SOCIAL CARE,CHOICE SUPPORT,"5,778.88",LD LTS 18-64,SUPPORTED LIVING,2102987816,1104183
05.08.2019,ADULT SOCIAL CARE,BRANDON TRUST,"5,839.32",LD LTS 18-64,SUPPORTED LIVING,2102987308,1000042417
05.08.2019,ADULT SOCIAL CARE,BRANDON TRUST,"5,928.08",LD LTS 18-64,SUPPORTED LIVING,2102987326,1000042417
05.08.2019,ADULT SOCIAL CARE,BRANDON TRUST,"5,928.08",LD LTS 18-64,SUPPORTED LIVING,2102987435,1000042417
05.08.2019,ADULT SOCIAL CARE,BRANDON TRUST,"5,928.08",LD LTS 18-64,SUPPORTED LIVING,2102987443,1000042417
05.08.2019,ADULT SOCIAL CARE,BRANDON TRUST,"6,000.64",LD LTS 18-64,SUPPORTED LIVING,2102988132,1000042417
05.08.2019,ADULT SOCIAL CARE,BRANDON TRUST,"6,000.64",LD LTS 18-64,SUPPORTED LIVING,2102988316,1000042417
05.08.2019,ADULT SOCIAL CARE,BRANDON TRUST,"6,102.52",LD LTS 18-64,SUPPORTED LIVING,2102987979,1000042417
05.08.2019,ADULT SOCIAL CARE,BRANDON TRUST,"6,148.80",LD LTS 18-64,SUPPORTED LIVING,2102988100,1000042417
05.08.2019,ADULT SOCIAL CARE,CHOICE SUPPORT,"6,154.48",LD LTS 18-64,SUPPORTED LIVING,2102988044,1104183
05.08.2019,ADULT SOCIAL CARE,CHOICE SUPPORT,"6,210.44",LD LTS 18-64,SUPPORTED LIVING,2102987603,1104183
05.08.2019,ADULT SOCIAL CARE,CHOICE SUPPORT,"6,234.72",LD LTS 18-64,SUPPORTED LIVING,2102988482,1104183
05.08.2019,ADULT SOCIAL CARE,BRANDON TRUST,"6,312.96",LD LTS 18-64,SUPPORTED LIVING,2102988427,1000042417
05.08.2019,ADULT SOCIAL CARE,OPTIMA CARE (SHINE) LONDON LTD,"6,317.32",LD LTS 18-64,SUPPORTED LIVING,2102987278,1000079614
05.08.2019,ADULT SOCIAL CARE,BRANDON TRUST,"6,382.68",LD LTS 18-64,SUPPORTED LIVING,2102987628,1000042417
05.08.2019,ADULT SOCIAL CARE,BRANDON TRUST,"6,442.12",LD LTS 18-64,SUPPORTED LIVING,2102987795,1000042417
05.08.2019,ADULT SOCIAL CARE,BRANDON TRUST,"6,482.76",LD LTS 18-64,SUPPORTED LIVING,2102988485,1000042417
05.08.2019,ADULT SOCIAL CARE,OPTIMA CARE (SHINE) LONDON LTD,"6,533.56",LD LTS 18-64,SUPPORTED LIVING,2102987688,1000079614
05.08.2019,ADULT SOCIAL CARE,CHOICE SUPPORT,"6,633.44",LD LTS 18-64,SUPPORTED LIVING,2102987861,1104183
05.08.2019,ADULT SOCIAL CARE,LONDON CYRENIANS HOUSING LTD,"6,937.88",LD LTS 18-64,SUPPORTED LIVING,2102987771,1000078600
05.08.2019,ADULT SOCIAL CARE,SEQUENCE CARE LTD,"6,993.00",LD LTS 18-64,SUPPORTED LIVING,2102987455,1000080343
05.08.2019,ADULT SOCIAL CARE,CHOICE SUPPORT,"7,013.84",LD LTS 18-64,SUPPORTED LIVING,2102987498,1104183
05.08.2019,ADULT SOCIAL CARE,CHOICE SUPPORT,"7,138.28",LD LTS 18-64,SUPPORTED LIVING,2102987499,1104183
05.08.2019,ADULT SOCIAL CARE,PLUS SERVICES,"7,228.00",LD LTS 18-64,SUPPORTED LIVING,2102988496,1000021241
05.08.2019,ADULT SOCIAL CARE,INDEPENDENCE HOMES LTD,"7,245.40",LD LTS 18-64,SUPPORTED LIVING,2102988386,1000058961
05.08.2019,ADULT SOCIAL CARE,CHOICE SUPPORT,"7,261.72",LD LTS 18-64,SUPPORTED LIVING,2102987529,1104183
05.08.2019,ADULT SOCIAL CARE,BRANDON TRUST,"7,297.80",LD LTS 18-64,SUPPORTED LIVING,2102988319,1000042417
05.08.2019,ADULT SOCIAL CARE,RESIDENTIAL CARE SERVICES LTD,"7,334.80",LD LTS 18-64,SUPPORTED LIVING,2102987986,1000082629
05.08.2019,ADULT SOCIAL CARE,CLEARWATER CARE (HACKNEY) LTD,"7,410.44",LD LTS 18-64,SUPPORTED LIVING,2102988344,1000070479
05.08.2019,ADULT SOCIAL CARE,OPTIMA CARE (SHINE) LONDON LTD,"7,582.48",LD LTS 18-64,SUPPORTED LIVING,2102988351,1000079614
05.08.2019,ADULT SOCIAL CARE,OPTIMA CARE (SHINE) LONDON LTD,"7,675.60",LD LTS 18-64,SUPPORTED LIVING,2102988359,1000079614
05.08.2019,ADULT SOCIAL CARE,CHOICE SUPPORT,"7,675.92",LD LTS 18-64,SUPPORTED LIVING,2102987674,1104183
05.08.2019,ADULT SOCIAL CARE,CHOICE SUPPORT,"7,962.92",LD LTS 18-64,SUPPORTED LIVING,2102988520,1104183
05.08.2019,ADULT SOCIAL CARE,CHOICE SUPPORT,"8,080.68",LD LTS 18-64,SUPPORTED LIVING,2102987374,1104183
05.08.2019,ADULT SOCIAL CARE,LONDON CYRENIANS HOUSING LTD,"8,141.16",LD LTS 18-64,SUPPORTED LIVING,2102987602,1000078600
05.08.2019,ADULT SOCIAL CARE,OPTIMA CARE (SHINE) LONDON LTD,"8,456.48",LD LTS 18-64,SUPPORTED LIVING,2102987238,1000079614
05.08.2019,ADULT SOCIAL CARE,LONDON CYRENIANS HOUSING LTD,"9,103.84",LD LTS 18-64,SUPPORTED LIVING,2102988382,1000078600
05.08.2019,ADULT SOCIAL CARE,LONDON CYRENIANS HOUSING LTD,"9,172.56",LD LTS 18-64,SUPPORTED LIVING,2102988092,1000078600
05.08.2019,ADULT SOCIAL CARE,LONDON CYRENIANS HOUSING LTD,"9,852.24",LD LTS 18-64,SUPPORTED LIVING,2102987338,1000078600
05.08.2019,ADULT SOCIAL CARE,PECULIAR CARE HOMES LTD,"10,205.40",LD LTS 18-64,SUPPORTED LIVING,2102987864,1000076991
05.08.2019,ADULT SOCIAL CARE,OPTIMA CARE (SHINE) LONDON LTD,"10,258.76",LD LTS 18-64,SUPPORTED LIVING,2102988561,1000079614
05.08.2019,ADULT SOCIAL CARE,CLEARWATER CARE (HACKNEY) LTD,"10,584.00",LD LTS 18-64,SUPPORTED LIVING,2102988210,1000070479
05.08.2019,ADULT SOCIAL CARE,OPTIMA CARE (SHINE) LONDON LTD,"11,624.28",LD LTS 18-64,SUPPORTED LIVING,2102988053,1000079614
05.08.2019,ADULT SOCIAL CARE,OPTIMA CARE (SHINE) LONDON LTD,"12,878.04",LD LTS 18-64,SUPPORTED LIVING,2102987968,1000079614
05.08.2019,ADULT SOCIAL CARE,OPTIMA CARE (SHINE) LONDON LTD,"13,204.24",LD LTS 18-64,SUPPORTED LIVING,2102988010,1000079614
05.08.2019,ADULT SOCIAL CARE,SAFFRONLAND HOMES,"13,360.00",LD LTS 18-64,SUPPORTED LIVING,2102988545,11172608
05.08.2019,ADULT SOCIAL CARE,PECULIAR CARE HOMES LTD,"13,570.20",LD LTS 18-64,SUPPORTED LIVING,2102987954,1000076991
05.08.2019,ADULT SOCIAL CARE,HEALTH PERSONNEL LTD,"13,752.92",LD LTS 18-64,SUPPORTED LIVING,2102988436,1000076377
05.08.2019,ADULT SOCIAL CARE,L & Q LIVING,"15,347.48",LD LTS 18-64,SUPPORTED LIVING,2102987789,1000057917
05.08.2019,ADULT SOCIAL CARE,BURGESS AUTISTIC TRUST,"88,587.39",LD LTS 18-64,SUPPORTED LIVING,2102988191,1000044550
05.08.2019,ADULT SOCIAL CARE,NEXUS PROGRAMME LTD,-402.6,LD LTS 18-64,THIRD PARTY TOP UP CARE,2102987971,1000025336
05.08.2019,ADULT SOCIAL CARE,PARKVIEW NURSING HOME,-537.8,LD LTS 65+,"MAND STATUTORY CHARGES, NURSING",2102987474,1776618
05.08.2019,ADULT SOCIAL CARE,HF TRUST LTD,"-1,121.80",LD LTS 65+,"MAND STATUTORY CHARGES, RESIDENTIAL",2102988324,1202433
05.08.2019,ADULT SOCIAL CARE,PLUS SERVICES,-601.64,LD LTS 65+,"MAND STATUTORY CHARGES, RESIDENTIAL",2102987942,1000021241
05.08.2019,ADULT SOCIAL CARE,LEONARD CHESHIRE (GARDEN HOUSE),-569.4,LD LTS 65+,"MAND STATUTORY CHARGES, RESIDENTIAL",2102987388,1000049748
05.08.2019,ADULT SOCIAL CARE,BRANDON TRUST,-569.4,LD LTS 65+,"MAND STATUTORY CHARGES, RESIDENTIAL",2102987437,1000042417
05.08.2019,ADULT SOCIAL CARE,PARKGATE MANOR,-569.4,LD LTS 65+,"MAND STATUTORY CHARGES, RESIDENTIAL",2102987663,1000032801
05.08.2019,ADULT SOCIAL CARE,GROVE VILLA RESIDENTIAL CARE HOME,-569.4,LD LTS 65+,"MAND STATUTORY CHARGES, RESIDENTIAL",2102987938,1000022036
05.08.2019,ADULT SOCIAL CARE,BRANDON TRUST,-569.4,LD LTS 65+,"MAND STATUTORY CHARGES, RESIDENTIAL",2102988006,1000042417
05.08.2019,ADULT SOCIAL CARE,MORTIMER SOCIETY,-569.4,LD LTS 65+,"MAND STATUTORY CHARGES, RESIDENTIAL",2102988425,1002942
05.08.2019,ADULT SOCIAL CARE,LEONARD CHESHIRE (GARDEN HOUSE),-569.4,LD LTS 65+,"MAND STATUTORY CHARGES, RESIDENTIAL",2102988433,1000049748
05.08.2019,ADULT SOCIAL CARE,RYDE HOUSE,-569.4,LD LTS 65+,"MAND STATUTORY CHARGES, RESIDENTIAL",2102988556,1022373
05.08.2019,ADULT SOCIAL CARE,THE REGARD PARTNERSHIP,-537.8,LD LTS 65+,"MAND STATUTORY CHARGES, RESIDENTIAL",2102987233,1823223
05.08.2019,ADULT SOCIAL CARE,PARKVIEW NURSING HOME,"3,300.00",LD LTS 65+,NURSING PLACEMENTS FEES,2102987475,1776618
05.08.2019,ADULT SOCIAL CARE,GROVE VILLA RESIDENTIAL CARE HOME,"1,757.32",LD LTS 65+,RESIDENTIAL CARE,2102987937,1000022036
05.08.2019,ADULT SOCIAL CARE,HF TRUST LTD,"2,258.32",LD LTS 65+,RESIDENTIAL CARE,2102988323,1202433
05.08.2019,ADULT SOCIAL CARE,RYDE HOUSE,"2,949.80",LD LTS 65+,RESIDENTIAL CARE,2102988555,1022373
05.08.2019,ADULT SOCIAL CARE,MORTIMER SOCIETY,"3,067.80",LD LTS 65+,RESIDENTIAL CARE,2102988424,1002942
05.08.2019,ADULT SOCIAL CARE,PARKGATE MANOR,"3,408.00",LD LTS 65+,RESIDENTIAL CARE,2102987662,1000032801
05.08.2019,ADULT SOCIAL CARE,LEONARD CHESHIRE (GARDEN HOUSE),"3,933.80",LD LTS 65+,RESIDENTIAL CARE,2102987387,1000049748
05.08.2019,ADULT SOCIAL CARE,LEONARD CHESHIRE (GARDEN HOUSE),"3,933.80",LD LTS 65+,RESIDENTIAL CARE,2102988432,1000049748
05.08.2019,ADULT SOCIAL CARE,SIGNATURE HEALTH AND LIVING LTD,"4,000.00",LD LTS 65+,RESIDENTIAL CARE,2102988253,1000077751
05.08.2019,ADULT SOCIAL CARE,LEONARD CHESHIRE (GARDEN HOUSE),"4,403.60",LD LTS 65+,RESIDENTIAL CARE,2102988439,1000049748
05.08.2019,ADULT SOCIAL CARE,BRANDON TRUST,"4,827.52",LD LTS 65+,RESIDENTIAL CARE,2102987436,1000042417
05.08.2019,ADULT SOCIAL CARE,BRANDON TRUST,"4,827.52",LD LTS 65+,RESIDENTIAL CARE,2102988005,1000042417
05.08.2019,ADULT SOCIAL CARE,PLUS SERVICES,"5,899.68",LD LTS 65+,RESIDENTIAL CARE,2102987941,1000021241
05.08.2019,ADULT SOCIAL CARE,PLUS SERVICES,"6,426.00",LD LTS 65+,RESIDENTIAL CARE,2102988449,1000021241
05.08.2019,ADULT SOCIAL CARE,THE REGARD PARTNERSHIP,"7,070.00",LD LTS 65+,RESIDENTIAL CARE,2102987232,1823223
05.08.2019,ADULT SOCIAL CARE,CARETECH COMMUNITY SERVICES LTD,"8,644.60",LD LTS 65+,RESIDENTIAL CARE,2102988355,1000066698
05.08.2019,ADULT SOCIAL CARE,ISLE OF WIGHT COUNCIL,"3,054.84",LD LTS 65+,RESIDENTIAL CARE,2102987846,1000051205
05.08.2019,ADULT SOCIAL CARE,PEABODY TRUST,301.28,LD LTS 65+,SUPPORTED LIVING,2102987794,11275862
05.08.2019,ADULT SOCIAL CARE,PEABODY TRUST,441.92,LD LTS 65+,SUPPORTED LIVING,2102988458,11275862
05.08.2019,ADULT SOCIAL CARE,PEABODY TRUST,562.56,LD LTS 65+,SUPPORTED LIVING,2102988277,11275862
05.08.2019,ADULT SOCIAL CARE,CHOICE SUPPORT,"1,448.16",LD LTS 65+,SUPPORTED LIVING,2102988302,1104183
05.08.2019,ADULT SOCIAL CARE,CHOICE SUPPORT,"2,276.40",LD LTS 65+,SUPPORTED LIVING,2102988285,1104183
05.08.2019,ADULT SOCIAL CARE,CHOICE SUPPORT,"2,665.08",LD LTS 65+,SUPPORTED LIVING,2102987806,1104183
05.08.2019,ADULT SOCIAL CARE,CHOICE SUPPORT,"2,966.48",LD LTS 65+,SUPPORTED LIVING,2102987778,1104183
05.08.2019,ADULT SOCIAL CARE,CHOICE SUPPORT,"3,163.96",LD LTS 65+,SUPPORTED LIVING,2102987903,1104183
05.08.2019,ADULT SOCIAL CARE,CHOICE SUPPORT,"3,513.36",LD LTS 65+,SUPPORTED LIVING,2102988093,1104183
05.08.2019,ADULT SOCIAL CARE,CHOICE SUPPORT,"3,691.92",LD LTS 65+,SUPPORTED LIVING,2102987534,1104183
05.08.2019,ADULT SOCIAL CARE,CHOICE SUPPORT,"3,862.56",LD LTS 65+,SUPPORTED LIVING,2102987228,1104183
05.08.2019,ADULT SOCIAL CARE,CHOICE SUPPORT,"3,864.48",LD LTS 65+,SUPPORTED LIVING,2102988169,1104183
05.08.2019,ADULT SOCIAL CARE,CHOICE SUPPORT,"4,151.36",LD LTS 65+,SUPPORTED LIVING,2102987245,1104183
05.08.2019,ADULT SOCIAL CARE,CHOICE SUPPORT,"4,151.36",LD LTS 65+,SUPPORTED LIVING,2102987882,1104183
05.08.2019,ADULT SOCIAL CARE,CHOICE SUPPORT,"4,179.84",LD LTS 65+,SUPPORTED LIVING,2102987807,1104183
05.08.2019,ADULT SOCIAL CARE,CHOICE SUPPORT,"4,496.00",LD LTS 65+,SUPPORTED LIVING,2102986948,1104183
05.08.2019,ADULT SOCIAL CARE,CHOICE SUPPORT,"5,171.24",LD LTS 65+,SUPPORTED LIVING,2102987909,1104183
05.08.2019,ADULT SOCIAL CARE,CHOICE SUPPORT,"7,920.48",LD LTS 65+,SUPPORTED LIVING,2102988410,1104183
05.08.2019,ADULT SOCIAL CARE,FOLKESTONE NURSING HOME LTD,-978.8,MEM LTS 18-64,"MAND STATUTORY CHARGES, NURSING",2102988313,1000080482
05.08.2019,ADULT SOCIAL CARE,STEPPING STONES RESETTLEMENT UNIT,-826.6,MEM LTS 18-64,"MAND STATUTORY CHARGES, RESIDENTIAL",2102987975,1000032806
05.08.2019,ADULT SOCIAL CARE,LOVE WALK HOSTEL FOR DISABLED,-402.6,MEM LTS 18-64,"MAND STATUTORY CHARGES, RESIDENTIAL",2102987348,1008978
05.08.2019,ADULT SOCIAL CARE,LA ROSA 2,-330.2,MEM LTS 18-64,"MAND STATUTORY CHARGES, RESIDENTIAL",2102987287,1000079677
05.08.2019,ADULT SOCIAL CARE,REDACTED PERSONAL INFORMATION,"7,125.52",MEM LTS 18-64,NURSING PLACEMENTS FEES,REDACTED,REDACTED
05.08.2019,ADULT SOCIAL CARE,HC-ONE LTD (TOWER BRIDGE CARE HOME),"2,457.80",MEM LTS 18-64,NURSING PLACEMENTS FEES,2102987770,1000067670
05.08.2019,ADULT SOCIAL CARE,FOLKESTONE NURSING HOME LTD,"2,849.60",MEM LTS 18-64,NURSING PLACEMENTS FEES,2102988312,1000080482
05.08.2019,ADULT SOCIAL CARE,HIGH VIEW CARE SERVICES LTD,"7,854.44",MEM LTS 18-64,NURSING PLACEMENTS FEES,2102987918,1000053562
05.08.2019,ADULT SOCIAL CARE,VOYAGE LTD (EVESLEIGH KENT),984.75,MEM LTS 18-64,RESIDENTIAL CARE,2102987340,1000041320
05.08.2019,ADULT SOCIAL CARE,LOVE WALK HOSTEL FOR DISABLED,"3,564.00",MEM LTS 18-64,RESIDENTIAL CARE,2102987349,1008978
05.08.2019,ADULT SOCIAL CARE,LA ROSA 2,"4,180.00",MEM LTS 18-64,RESIDENTIAL CARE,2102987288,1000079677
05.08.2019,ADULT SOCIAL CARE,STEPPING STONES RESETTLEMENT UNIT,"5,086.04",MEM LTS 18-64,RESIDENTIAL CARE,2102987976,1000032806
05.08.2019,ADULT SOCIAL CARE,HOTHFIELD MANOR CENTRE,"5,138.88",MEM LTS 18-64,RESIDENTIAL CARE,2102988484,1000005473
05.08.2019,ADULT SOCIAL CARE,THE REGARD PARTNERSHIP,"5,825.20",MEM LTS 18-64,SUPPORTED LIVING,2102988385,1823223
05.08.2019,ADULT SOCIAL CARE,ASHLEY GARDENS C/O HEALTHCARE HOMES (LSC) LTD,-390.24,MEM LTS 65+,INCOME FOR THIRD PARTIES/AGENCY ARRANGEMENTS,2102988403,1000078808
05.08.2019,ADULT SOCIAL CARE,LONDON RESIDENTIAL HEALTHCARE LTD,-296.64,MEM LTS 65+,INCOME FOR THIRD PARTIES/AGENCY ARRANGEMENTS,2102988019,1000030895
05.08.2019,ADULT SOCIAL CARE,COLLINGWOOD COURT (BUPA CARE HOMES),"-2,687.76",MEM LTS 65+,"MAND STATUTORY CHARGES, NURSING",2102987561,11042563
05.08.2019,ADULT SOCIAL CARE,LONDON RESIDENTIAL HEALTHCARE LTD,"-2,348.42",MEM LTS 65+,"MAND STATUTORY CHARGES, NURSING",2102988020,1000030895
05.08.2019,ADULT SOCIAL CARE,HC-ONE LTD (TOWER BRIDGE CARE HOME),"-1,770.68",MEM LTS 65+,"MAND STATUTORY CHARGES, NURSING",2102987302,1000067670
05.08.2019,ADULT SOCIAL CARE,HC-ONE LTD (TOWER BRIDGE CARE HOME),"-1,056.80",MEM LTS 65+,"MAND STATUTORY CHARGES, NURSING",2102988448,1000067670
05.08.2019,ADULT SOCIAL CARE,LAURELS NURSING CARE CENTRE,"-1,043.40",MEM LTS 65+,"MAND STATUTORY CHARGES, NURSING",2102988220,1000007358
05.08.2019,ADULT SOCIAL CARE,HC-ONE LTD (TOWER BRIDGE CARE HOME),-893.44,MEM LTS 65+,"MAND STATUTORY CHARGES, NURSING",2102988321,1000067670
05.08.2019,ADULT SOCIAL CARE,FOUR SEASONS (UPLANDS CARE HOME),-794.12,MEM LTS 65+,"MAND STATUTORY CHARGES, NURSING",2102988512,11290299
05.08.2019,ADULT SOCIAL CARE,CARING HOMES HEALTHCARE GROUP LTD,-785.6,MEM LTS 65+,"MAND STATUTORY CHARGES, NURSING",2102987227,1000080206
05.08.2019,ADULT SOCIAL CARE,HC-ONE LTD (TOWER BRIDGE CARE HOME),-778.48,MEM LTS 65+,"MAND STATUTORY CHARGES, NURSING",2102987486,1000067670
05.08.2019,ADULT SOCIAL CARE,HC-ONE LTD (TOWER BRIDGE CARE HOME),-749.2,MEM LTS 65+,"MAND STATUTORY CHARGES, NURSING",2102987277,1000067670
05.08.2019,ADULT SOCIAL CARE,HC-ONE LTD (TOWER BRIDGE CARE HOME),-643.04,MEM LTS 65+,"MAND STATUTORY CHARGES, NURSING",2102987461,1000067670
05.08.2019,ADULT SOCIAL CARE,HC-ONE LTD (TOWER BRIDGE CARE HOME),-640.4,MEM LTS 65+,"MAND STATUTORY CHARGES, NURSING",2102988041,1000067670
05.08.2019,ADULT SOCIAL CARE,HC-ONE LTD (TOWER BRIDGE CARE HOME),-593.4,MEM LTS 65+,"MAND STATUTORY CHARGES, NURSING",2102988059,1000067670
05.08.2019,ADULT SOCIAL CARE,HC-ONE LTD (TOWER BRIDGE CARE HOME),-569.4,MEM LTS 65+,"MAND STATUTORY CHARGES, NURSING",2102987282,1000067670
05.08.2019,ADULT SOCIAL CARE,BEECHCROFT CARE HOME,-537.8,MEM LTS 65+,"MAND STATUTORY CHARGES, NURSING",2102987609,1000077126
05.08.2019,ADULT SOCIAL CARE,HC-ONE LTD (TOWER BRIDGE CARE HOME),-537.8,MEM LTS 65+,"MAND STATUTORY CHARGES, NURSING",2102987640,1000067670
05.08.2019,ADULT SOCIAL CARE,BEECHCROFT CARE HOME,-537.8,MEM LTS 65+,"MAND STATUTORY CHARGES, NURSING",2102987826,1000077126
05.08.2019,ADULT SOCIAL CARE,BROOK HOUSE CARE CENTRE,-537.8,MEM LTS 65+,"MAND STATUTORY CHARGES, NURSING",2102988205,1000081938
05.08.2019,ADULT SOCIAL CARE,HC-ONE LTD (TOWER BRIDGE CARE HOME),-537.8,MEM LTS 65+,"MAND STATUTORY CHARGES, NURSING",2102988252,1000067670
05.08.2019,ADULT SOCIAL CARE,MINSA CARE LTD,"-2,626.44",MEM LTS 65+,"MAND STATUTORY CHARGES, RESIDENTIAL",2102987318,1000075831
05.08.2019,ADULT SOCIAL CARE,AVANTE PARTNERSHIP (WEYBOURNE),"-1,047.04",MEM LTS 65+,"MAND STATUTORY CHARGES, RESIDENTIAL",2102987934,11130185
05.08.2019,ADULT SOCIAL CARE,YARA ENTERPRISES LTD,-828.8,MEM LTS 65+,"MAND STATUTORY CHARGES, RESIDENTIAL",2102987958,11192021
05.08.2019,ADULT SOCIAL CARE,NORBURY HALL RESIDENTIAL CARE HOME,-785.92,MEM LTS 65+,"MAND STATUTORY CHARGES, RESIDENTIAL",2102987830,1000060513
05.08.2019,ADULT SOCIAL CARE,FIELDSIDE RESIDENTIAL CARE HOME,-640.64,MEM LTS 65+,"MAND STATUTORY CHARGES, RESIDENTIAL",2102988146,1840278
05.08.2019,ADULT SOCIAL CARE,HC-ONE LTD (TOWER BRIDGE CARE HOME),-625.48,MEM LTS 65+,"MAND STATUTORY CHARGES, RESIDENTIAL",2102987316,1000067670
05.08.2019,ADULT SOCIAL CARE,PORTELET CARE LTD,-569.4,MEM LTS 65+,"MAND STATUTORY CHARGES, RESIDENTIAL",2102988390,1000037449
05.08.2019,ADULT SOCIAL CARE,ANCHOR TRUST,-552.4,MEM LTS 65+,"MAND STATUTORY CHARGES, RESIDENTIAL",2102987334,11257534
05.08.2019,ADULT SOCIAL CARE,ANCHOR TRUST,-552.4,MEM LTS 65+,"MAND STATUTORY CHARGES, RESIDENTIAL",2102987458,11257534
05.08.2019,ADULT SOCIAL CARE,ASHLEY GARDENS C/O HEALTHCARE HOMES (LSC) LTD,-552.4,MEM LTS 65+,"MAND STATUTORY CHARGES, RESIDENTIAL",2102988404,1000078808
05.08.2019,ADULT SOCIAL CARE,ANCHOR TRUST,-541.8,MEM LTS 65+,"MAND STATUTORY CHARGES, RESIDENTIAL",2102987953,11257534
05.08.2019,ADULT SOCIAL CARE,ANCHOR TRUST,-537.8,MEM LTS 65+,"MAND STATUTORY CHARGES, RESIDENTIAL",2102987607,11257534
05.08.2019,ADULT SOCIAL CARE,ANCHOR TRUST,-537.8,MEM LTS 65+,"MAND STATUTORY CHARGES, RESIDENTIAL",2102988112,11257534
05.08.2019,ADULT SOCIAL CARE,ANCHOR TRUST,-537.8,MEM LTS 65+,"MAND STATUTORY CHARGES, RESIDENTIAL",2102988523,11257534
05.08.2019,ADULT SOCIAL CARE,LONDON RESIDENTIAL HEALTHCARE LTD,"2,348.42",MEM LTS 65+,NURSING PLACEMENTS FEES,2102988017,1000030895
05.08.2019,ADULT SOCIAL CARE,HARBLEDOWN LODGE,"2,379.96",MEM LTS 65+,NURSING PLACEMENTS FEES,2102988265,1000068526
05.08.2019,ADULT SOCIAL CARE,FOUR SEASONS (UPLANDS CARE HOME),"2,398.36",MEM LTS 65+,NURSING PLACEMENTS FEES,2102988511,11290299
05.08.2019,ADULT SOCIAL CARE,CARING HOMES HEALTHCARE GROUP LTD,"2,400.80",MEM LTS 65+,NURSING PLACEMENTS FEES,2102987226,1000080206
05.08.2019,ADULT SOCIAL CARE,HC-ONE LTD (TOWER BRIDGE CARE HOME),"2,454.64",MEM LTS 65+,NURSING PLACEMENTS FEES,2102987301,1000067670
05.08.2019,ADULT SOCIAL CARE,HC-ONE LTD (TOWER BRIDGE CARE HOME),"2,465.32",MEM LTS 65+,NURSING PLACEMENTS FEES,2102988251,1000067670
05.08.2019,ADULT SOCIAL CARE,BEECHCROFT CARE HOME,"2,484.36",MEM LTS 65+,NURSING PLACEMENTS FEES,2102987825,1000077126
05.08.2019,ADULT SOCIAL CARE,LAURELS NURSING CARE CENTRE,"2,541.88",MEM LTS 65+,NURSING PLACEMENTS FEES,2102988219,1000007358
05.08.2019,ADULT SOCIAL CARE,BEECHCROFT CARE HOME,"2,558.00",MEM LTS 65+,NURSING PLACEMENTS FEES,2102987608,1000077126
05.08.2019,ADULT SOCIAL CARE,HC-ONE LTD (TOWER BRIDGE CARE HOME),"2,624.12",MEM LTS 65+,NURSING PLACEMENTS FEES,2102988058,1000067670
05.08.2019,ADULT SOCIAL CARE,PARKVIEW NURSING HOME,"2,675.64",MEM LTS 65+,NURSING PLACEMENTS FEES,2102988349,1776618
05.08.2019,ADULT SOCIAL CARE,PARKVIEW NURSING HOME,"2,683.40",MEM LTS 65+,NURSING PLACEMENTS FEES,2102987885,1776618
05.08.2019,ADULT SOCIAL CARE,COLLINGWOOD COURT (BUPA CARE HOMES),"2,687.76",MEM LTS 65+,NURSING PLACEMENTS FEES,2102987560,11042563
05.08.2019,ADULT SOCIAL CARE,HC-ONE LTD (TOWER BRIDGE CARE HOME),"2,695.84",MEM LTS 65+,NURSING PLACEMENTS FEES,2102987276,1000067670
05.08.2019,ADULT SOCIAL CARE,HC-ONE LTD (TOWER BRIDGE CARE HOME),"2,695.84",MEM LTS 65+,NURSING PLACEMENTS FEES,2102987994,1000067670
05.08.2019,ADULT SOCIAL CARE,HC-ONE LTD (TOWER BRIDGE CARE HOME),"2,695.84",MEM LTS 65+,NURSING PLACEMENTS FEES,2102988040,1000067670
05.08.2019,ADULT SOCIAL CARE,MANLEY COURT NURSING HOME (BUPA),"2,717.92",MEM LTS 65+,NURSING PLACEMENTS FEES,2102988000,11101434
05.08.2019,ADULT SOCIAL CARE,HC-ONE LTD (TOWER BRIDGE CARE HOME),"2,723.96",MEM LTS 65+,NURSING PLACEMENTS FEES,2102987399,1000067670
05.08.2019,ADULT SOCIAL CARE,HC-ONE LTD (TOWER BRIDGE CARE HOME),"2,723.96",MEM LTS 65+,NURSING PLACEMENTS FEES,2102987460,1000067670
05.08.2019,ADULT SOCIAL CARE,HC-ONE LTD (TOWER BRIDGE CARE HOME),"2,729.28",MEM LTS 65+,NURSING PLACEMENTS FEES,2102988320,1000067670
05.08.2019,ADULT SOCIAL CARE,HC-ONE LTD (TOWER BRIDGE CARE HOME),"2,729.28",MEM LTS 65+,NURSING PLACEMENTS FEES,2102988447,1000067670
05.08.2019,ADULT SOCIAL CARE,TRINITY COURT NURSING HOME,"2,731.60",MEM LTS 65+,NURSING PLACEMENTS FEES,2102987657,1000040754
05.08.2019,ADULT SOCIAL CARE,HC-ONE LTD (TOWER BRIDGE CARE HOME),"2,746.12",MEM LTS 65+,NURSING PLACEMENTS FEES,2102987485,1000067670
05.08.2019,ADULT SOCIAL CARE,BROOK HOUSE CARE CENTRE,"2,751.64",MEM LTS 65+,NURSING PLACEMENTS FEES,2102988204,1000081938
05.08.2019,ADULT SOCIAL CARE,HC-ONE LTD (TOWER BRIDGE CARE HOME),"2,763.00",MEM LTS 65+,NURSING PLACEMENTS FEES,2102987281,1000067670
05.08.2019,ADULT SOCIAL CARE,AVERY HEALTHCARE GROUP,"2,826.84",MEM LTS 65+,NURSING PLACEMENTS FEES,2102987701,1000082342
05.08.2019,ADULT SOCIAL CARE,CASTLEBAR HEALTHCARE LTD,"2,843.12",MEM LTS 65+,NURSING PLACEMENTS FEES,2102987312,1651851
05.08.2019,ADULT SOCIAL CARE,ST MARY'S CARE HOMES,"2,894.60",MEM LTS 65+,NURSING PLACEMENTS FEES,2102987530,1000079984
05.08.2019,ADULT SOCIAL CARE,MANLEY COURT NURSING HOME (BUPA),"2,912.16",MEM LTS 65+,NURSING PLACEMENTS FEES,2102988129,11101434
05.08.2019,ADULT SOCIAL CARE,HC-ONE LTD (TOWER BRIDGE CARE HOME),"2,970.52",MEM LTS 65+,NURSING PLACEMENTS FEES,2102987639,1000067670
05.08.2019,ADULT SOCIAL CARE,HC-ONE LTD (ALEXANDER CARE CENTRE),"3,057.80",MEM LTS 65+,NURSING PLACEMENTS FEES,2102988553,1000068551
05.08.2019,ADULT SOCIAL CARE,COLLINGWOOD COURT (BUPA CARE HOMES),"3,086.20",MEM LTS 65+,NURSING PLACEMENTS FEES,2102987237,11042563
05.08.2019,ADULT SOCIAL CARE,PEARTREE CARE CENTRE (EXCELCARE),"3,141.60",MEM LTS 65+,NURSING PLACEMENTS FEES,2102988325,1000048698
05.08.2019,ADULT SOCIAL CARE,PEARTREE CARE CENTRE (EXCELCARE),"3,168.00",MEM LTS 65+,NURSING PLACEMENTS FEES,2102988314,1000048698
05.08.2019,ADULT SOCIAL CARE,FOUR SEASONS (UPLANDS CARE HOME),"3,300.00",MEM LTS 65+,NURSING PLACEMENTS FEES,2102988157,11290299
05.08.2019,ADULT SOCIAL CARE,PRIORY GROUP NORTHERN OFFICE,"3,501.16",MEM LTS 65+,NURSING PLACEMENTS FEES,2102988009,1000024520
05.08.2019,ADULT SOCIAL CARE,HC-ONE LTD (TOWER BRIDGE CARE HOME),360,MEM LTS 65+,OTHER PAYMENTS FOR CLIENTS,2102987769,1000067670
05.08.2019,ADULT SOCIAL CARE,ANCHOR TRUST,"-1,640.98",MEM LTS 65+,RESIDENTIAL CARE,2102988519,11257534
05.08.2019,ADULT SOCIAL CARE,LEATHERLAND LODGE,"2,028.00",MEM LTS 65+,RESIDENTIAL CARE,2102988113,1000080149
05.08.2019,ADULT SOCIAL CARE,ANCHOR TRUST,"2,030.76",MEM LTS 65+,RESIDENTIAL CARE,2102987428,11257534
05.08.2019,ADULT SOCIAL CARE,ANCHOR TRUST,"2,030.76",MEM LTS 65+,RESIDENTIAL CARE,2102987541,11257534
05.08.2019,ADULT SOCIAL CARE,ANCHOR TRUST,"2,030.76",MEM LTS 65+,RESIDENTIAL CARE,2102987599,11257534
05.08.2019,ADULT SOCIAL CARE,ANCHOR TRUST,"2,030.76",MEM LTS 65+,RESIDENTIAL CARE,2102987675,11257534
05.08.2019,ADULT SOCIAL CARE,ANCHOR TRUST,"2,030.76",MEM LTS 65+,RESIDENTIAL CARE,2102987735,11257534
05.08.2019,ADULT SOCIAL CARE,ANCHOR TRUST,"2,030.76",MEM LTS 65+,RESIDENTIAL CARE,2102988186,11257534
05.08.2019,ADULT SOCIAL CARE,ANCHOR TRUST,"2,030.76",MEM LTS 65+,RESIDENTIAL CARE,2102988187,11257534
05.08.2019,ADULT SOCIAL CARE,ANCHOR TRUST,"2,030.76",MEM LTS 65+,RESIDENTIAL CARE,2102988266,11257534
05.08.2019,ADULT SOCIAL CARE,ANCHOR TRUST,"2,030.76",MEM LTS 65+,RESIDENTIAL CARE,2102988522,11257534
05.08.2019,ADULT SOCIAL CARE,ANCHOR TRUST,"2,030.76",MEM LTS 65+,RESIDENTIAL CARE,2102988564,11257534
05.08.2019,ADULT SOCIAL CARE,ANCHOR TRUST,"2,146.10",MEM LTS 65+,RESIDENTIAL CARE,2102988405,11257534
05.08.2019,ADULT SOCIAL CARE,ANCHOR TRUST,"2,183.04",MEM LTS 65+,RESIDENTIAL CARE,2102988147,11257534
05.08.2019,ADULT SOCIAL CARE,ANCHOR TRUST,"2,322.63",MEM LTS 65+,RESIDENTIAL CARE,2102987333,11257534
05.08.2019,ADULT SOCIAL CARE,ANCHOR TRUST,"2,366.96",MEM LTS 65+,RESIDENTIAL CARE,2102987297,11257534
05.08.2019,ADULT SOCIAL CARE,ANCHOR TRUST,"2,366.96",MEM LTS 65+,RESIDENTIAL CARE,2102987403,11257534
05.08.2019,ADULT SOCIAL CARE,ANCHOR TRUST,"2,366.96",MEM LTS 65+,RESIDENTIAL CARE,2102987714,11257534
05.08.2019,ADULT SOCIAL CARE,ANCHOR TRUST,"2,366.96",MEM LTS 65+,RESIDENTIAL CARE,2102987844,11257534
05.08.2019,ADULT SOCIAL CARE,ANCHOR TRUST,"2,366.96",MEM LTS 65+,RESIDENTIAL CARE,2102987858,11257534
05.08.2019,ADULT SOCIAL CARE,ANCHOR TRUST,"2,366.96",MEM LTS 65+,RESIDENTIAL CARE,2102987859,11257534
05.08.2019,ADULT SOCIAL CARE,ANCHOR TRUST,"2,366.96",MEM LTS 65+,RESIDENTIAL CARE,2102988012,11257534
05.08.2019,ADULT SOCIAL CARE,ANCHOR TRUST,"2,366.96",MEM LTS 65+,RESIDENTIAL CARE,2102988267,11257534
05.08.2019,ADULT SOCIAL CARE,ANCHOR TRUST,"2,366.96",MEM LTS 65+,RESIDENTIAL CARE,2102988394,11257534
05.08.2019,ADULT SOCIAL CARE,HC-ONE LTD (TOWER BRIDGE CARE HOME),"2,402.24",MEM LTS 65+,RESIDENTIAL CARE,2102987574,1000067670
05.08.2019,ADULT SOCIAL CARE,FOUR SEASONS (UPLANDS CARE HOME),"2,402.24",MEM LTS 65+,RESIDENTIAL CARE,2102988234,11290299
05.08.2019,ADULT SOCIAL CARE,HC-ONE LTD (TOWER BRIDGE CARE HOME),"2,406.84",MEM LTS 65+,RESIDENTIAL CARE,2102988083,1000067670
05.08.2019,ADULT SOCIAL CARE,ANCHOR TRUST,"2,447.72",MEM LTS 65+,RESIDENTIAL CARE,2102987279,11257534
05.08.2019,ADULT SOCIAL CARE,ANCHOR TRUST,"2,447.72",MEM LTS 65+,RESIDENTIAL CARE,2102987371,11257534
05.08.2019,ADULT SOCIAL CARE,ANCHOR TRUST,"2,447.72",MEM LTS 65+,RESIDENTIAL CARE,2102987457,11257534
05.08.2019,ADULT SOCIAL CARE,ANCHOR TRUST,"2,447.72",MEM LTS 65+,RESIDENTIAL CARE,2102987606,11257534
05.08.2019,ADULT SOCIAL CARE,ANCHOR TRUST,"2,447.72",MEM LTS 65+,RESIDENTIAL CARE,2102987706,11257534
05.08.2019,ADULT SOCIAL CARE,ANCHOR TRUST,"2,447.72",MEM LTS 65+,RESIDENTIAL CARE,2102987711,11257534
05.08.2019,ADULT SOCIAL CARE,ANCHOR TRUST,"2,447.72",MEM LTS 65+,RESIDENTIAL CARE,2102987952,11257534
05.08.2019,ADULT SOCIAL CARE,ANCHOR TRUST,"2,447.72",MEM LTS 65+,RESIDENTIAL CARE,2102987966,11257534
05.08.2019,ADULT SOCIAL CARE,ANCHOR TRUST,"2,447.72",MEM LTS 65+,RESIDENTIAL CARE,2102987973,11257534
05.08.2019,ADULT SOCIAL CARE,ANCHOR TRUST,"2,447.72",MEM LTS 65+,RESIDENTIAL CARE,2102988111,11257534
05.08.2019,ADULT SOCIAL CARE,ANCHOR TRUST,"2,447.72",MEM LTS 65+,RESIDENTIAL CARE,2102988133,11257534
05.08.2019,ADULT SOCIAL CARE,ANCHOR TRUST,"2,447.72",MEM LTS 65+,RESIDENTIAL CARE,2102988361,11257534
05.08.2019,ADULT SOCIAL CARE,HC-ONE OVAL LTD (SEABROOKE MANOR),"2,479.80",MEM LTS 65+,RESIDENTIAL CARE,2102988362,1000081740
05.08.2019,ADULT SOCIAL CARE,PENERLEY LODGE REST HOME,"2,488.16",MEM LTS 65+,RESIDENTIAL CARE,2102988287,1958913
05.08.2019,ADULT SOCIAL CARE,AVANTE PARTNERSHIP (WEYBOURNE),"2,525.12",MEM LTS 65+,RESIDENTIAL CARE,2102987933,11130185
05.08.2019,ADULT SOCIAL CARE,ASHLEY GARDENS C/O HEALTHCARE HOMES (LSC) LTD,"2,553.96",MEM LTS 65+,RESIDENTIAL CARE,2102988401,1000078808
05.08.2019,ADULT SOCIAL CARE,YARA ENTERPRISES LTD,"2,558.28",MEM LTS 65+,RESIDENTIAL CARE,2102987957,11192021
05.08.2019,ADULT SOCIAL CARE,HC-ONE LTD (TOWER BRIDGE CARE HOME),"2,574.84",MEM LTS 65+,RESIDENTIAL CARE,2102987315,1000067670
05.08.2019,ADULT SOCIAL CARE,HOMELANDS CARE,"2,584.29",MEM LTS 65+,RESIDENTIAL CARE,2102987633,1000063634
05.08.2019,ADULT SOCIAL CARE,FIELDSIDE RESIDENTIAL CARE HOME,"2,593.36",MEM LTS 65+,RESIDENTIAL CARE,2102988145,1840278
05.08.2019,ADULT SOCIAL CARE,LITTLE SISTERS OF THE POOR,"2,606.72",MEM LTS 65+,RESIDENTIAL CARE,2102987415,1860341
05.08.2019,ADULT SOCIAL CARE,MINSA CARE LTD,"2,626.44",MEM LTS 65+,RESIDENTIAL CARE,2102987317,1000075831
05.08.2019,ADULT SOCIAL CARE,PEARTREE CARE CENTRE (EXCELCARE),"2,816.00",MEM LTS 65+,RESIDENTIAL CARE,2102987857,1000048698
05.08.2019,ADULT SOCIAL CARE,NORBURY HALL RESIDENTIAL CARE HOME,"2,860.00",MEM LTS 65+,RESIDENTIAL CARE,2102987829,1000060513
05.08.2019,ADULT SOCIAL CARE,WATERFIELD SUPPORTED HOMES LTD,"3,513.15",MEM LTS 65+,RESIDENTIAL CARE,2102987490,1000076773
05.08.2019,ADULT SOCIAL CARE,SIGNATURE HEALTH AND LIVING LTD,"4,528.80",MEM LTS 65+,RESIDENTIAL CARE,2102988554,1000077751
05.08.2019,ADULT SOCIAL CARE,VOYAGE LTD (EVESLEIGH KENT),"5,005.80",MEM LTS 65+,RESIDENTIAL CARE,2102987291,1000041320
05.08.2019,ADULT SOCIAL CARE,LONDON RESIDENTIAL HEALTHCARE LTD,296.64,MEM LTS 65+,THIRD PARTY TOP UP CARE,2102988018,1000030895
05.08.2019,ADULT SOCIAL CARE,ASHLEY GARDENS C/O HEALTHCARE HOMES (LSC) LTD,390.24,MEM LTS 65+,THIRD PARTY TOP UP CARE,2102988402,1000078808
05.08.2019,ADULT SOCIAL CARE,REDACTED PERSONAL INFORMATION,431.68,MH LTS 18-64,HOMECARE - SPOT,REDACTED,REDACTED
05.08.2019,ADULT SOCIAL CARE,REDACTED PERSONAL INFORMATION,431.68,MH LTS 18-64,HOMECARE - SPOT,REDACTED,REDACTED
05.08.2019,ADULT SOCIAL CARE,COLLINGWOOD COURT (BUPA CARE HOMES),-569.4,MH LTS 18-64,"MAND STATUTORY CHARGES, NURSING",2102988189,11042563
05.08.2019,ADULT SOCIAL CARE,COLLINGWOOD COURT (BUPA CARE HOMES),"2,987.12",MH LTS 18-64,NURSING PLACEMENTS FEES,2102988190,11042563
05.08.2019,ADULT SOCIAL CARE,MANLEY COURT NURSING HOME (BUPA),"3,608.00",MH LTS 18-64,NURSING PLACEMENTS FEES,2102987321,11101434
05.08.2019,ADULT SOCIAL CARE,KINGS LODGE,"4,452.92",MH LTS 18-64,NURSING PLACEMENTS FEES,2102987517,1000064276
05.08.2019,ADULT SOCIAL CARE,ANCHOR TRUST,"2,030.76",MH LTS 18-64,RESIDENTIAL CARE,2102988250,11257534
05.08.2019,ADULT SOCIAL CARE,HIGH VIEW CARE SERVICES LTD,"6,771.52",MH LTS 18-64,RESIDENTIAL CARE,2102988499,1000065920
05.08.2019,ADULT SOCIAL CARE,REDACTED PERSONAL INFORMATION,253.6,MH LTS 18-64,SUPPORTED LIVING,REDACTED,REDACTED
05.08.2019,ADULT SOCIAL CARE,REDACTED PERSONAL INFORMATION,253.6,MH LTS 18-64,SUPPORTED LIVING,REDACTED,REDACTED
05.08.2019,ADULT SOCIAL CARE,REDACTED PERSONAL INFORMATION,253.6,MH LTS 18-64,SUPPORTED LIVING,REDACTED,REDACTED
05.08.2019,ADULT SOCIAL CARE,REDACTED PERSONAL INFORMATION,275.8,MH LTS 18-64,SUPPORTED LIVING,REDACTED,REDACTED
05.08.2019,ADULT SOCIAL CARE,REDACTED PERSONAL INFORMATION,275.8,MH LTS 18-64,SUPPORTED LIVING,REDACTED,REDACTED
05.08.2019,ADULT SOCIAL CARE,REDACTED PERSONAL INFORMATION,275.8,MH LTS 18-64,SUPPORTED LIVING,REDACTED,REDACTED
05.08.2019,ADULT SOCIAL CARE,REDACTED PERSONAL INFORMATION,275.8,MH LTS 18-64,SUPPORTED LIVING,REDACTED,REDACTED
05.08.2019,ADULT SOCIAL CARE,REDACTED PERSONAL INFORMATION,275.8,MH LTS 18-64,SUPPORTED LIVING,REDACTED,REDACTED
05.08.2019,ADULT SOCIAL CARE,REDACTED PERSONAL INFORMATION,275.8,MH LTS 18-64,SUPPORTED LIVING,REDACTED,REDACTED
05.08.2019,ADULT SOCIAL CARE,REDACTED PERSONAL INFORMATION,330.96,MH LTS 18-64,SUPPORTED LIVING,REDACTED,REDACTED
05.08.2019,ADULT SOCIAL CARE,REDACTED PERSONAL INFORMATION,330.96,MH LTS 18-64,SUPPORTED LIVING,REDACTED,REDACTED
05.08.2019,ADULT SOCIAL CARE,REDACTED PERSONAL INFORMATION,330.96,MH LTS 18-64,SUPPORTED LIVING,REDACTED,REDACTED
05.08.2019,ADULT SOCIAL CARE,REDACTED PERSONAL INFORMATION,330.96,MH LTS 18-64,SUPPORTED LIVING,REDACTED,REDACTED
05.08.2019,ADULT SOCIAL CARE,REDACTED PERSONAL INFORMATION,330.96,MH LTS 18-64,SUPPORTED LIVING,REDACTED,REDACTED
05.08.2019,ADULT SOCIAL CARE,REDACTED PERSONAL INFORMATION,330.96,MH LTS 18-64,SUPPORTED LIVING,REDACTED,REDACTED
05.08.2019,ADULT SOCIAL CARE,REDACTED PERSONAL INFORMATION,330.96,MH LTS 18-64,SUPPORTED LIVING,REDACTED,REDACTED
05.08.2019,ADULT SOCIAL CARE,REDACTED PERSONAL INFORMATION,330.96,MH LTS 18-64,SUPPORTED LIVING,REDACTED,REDACTED
